Workbook

Sheet Portada

Sheet Créditos
A1: CONSEJERÍA DE ECONOMÍA, EMPLEO Y COMPETITIVIDAD
A3: Consejera de Economía, Empleo y Competitividad
A4: Excmo. Sr. D. Manuel Giménez Rasero
A6: Viceconsejera de Empleo
A7: Ilma. Sra. Doña Eva María Blázquez Agudo
A9: Director General de Trabajo y Gerente del Instituto Regional
A10: de Seguridad y Salud en el Trabajo
A11: Ilmo. Sr. D. Álvaro Rodríguez de la Calle
A13: Elaboración
A14: Dirección
A15: Álvaro Rodríguez de la Calle
A16: y Gerente del Instituto Regional de Seguridad y Salud en el Trabajo
A18: Autoría
A19: Dolores Núñez Munaiz
A20: Unidad Técnica de Estadística de Accidentes de trabajo y Enfermedades
A21: Profesionales
A23: Unidad Técnica de Divulgación y Difusión
A24: Alberto Muñoz González
A25: Germán Blázquez López
A26: Rebeca Robles Gayo
A28: © Comunidad de Madrid, 2020
A30: Edita: Instituto Regional de Seguridad y Salud en el Trabajo
A31: Ventura Rodríguez, 7. 28008 Madrid
A32: Tel.: 900 713 123 Fax.: 91 420 61 17
A33: irsst.formacion@madrid.org
A34: www.madrid.org

Sheet Presentación
A1: Presentación
A4: El Instituto Regional de Seguridad y Salud en el Trabajo de la Comunidad de Madrid realiza estudios estadísticos de diversa índole que permiten analizar a fondo la accidentalidad laboral en la región, ofreciendo una información imprescindible para caracterizar los accidentes ocurridos en el ejercicio, y permitiendo diseñar e impulsar medidas específicas que contribuyan a reducir los índices de siniestralidad en nuestra comunidad autónoma. Así, en consonancia con lo establecido en el Eje 1 del V Plan director en prevención de riesgos laborales de la Comunidad de Madrid, los resultados obtenidos en este estudio relativo a la siniestralidad, nos permitirán asesorar con mayor efectividad tanto a los trabajadores como a los empresarios de la región, en aras de lograr una prevención más práctica y adaptarla a la cambiante realidad de nuestro ámbito laboral.
A5: Así, con la publicación anual del informe “Accidentes de trabajo Sin baja en la Comunidad de Madrid”, la Consejería de Economía, Empleo y Hacienda, a través del Instituto Regional de Seguridad y Salud en el Trabajo, se presentan los datos estadísticos de siniestralidad laboral, que permiten obtener información sobre el perfil del trabajador accidentado, las características de la empresa y tipo de lesión.
A6: Nuestra sociedad no puede permitirse los costes humanos, así como sociales y económicos, que representan los accidentes de trabajo, por ello, el Instituto Regional de Seguridad y Salud en el Trabajo de la Comunidad de Madrid confía en que este documento se convierta en un útil instrumento para todos los que desde cualquier ámbito, público o privado, dedicamos importantes recursos para el diseño y elaboración de estrategias en la lucha contra la siniestralidad laboral.
A8: Director General de Trabajo
A9: y Gerente del Instituto Regional de Seguridad y Salud en el Trabajo

Sheet Índice
A3: Índice de tablas de Accidentes registrados SIN baja (*)
A5: Serie homogénea de accidentes registrados sin baja
A6: 2012-2019
A8: TablaS1 Accidentes en jornada de trabajo sin baja según sectores de actividad
A9: TablaS2 Accidentes en jornada de trabajo sin baja según división de actividad económica
A10: Tabla S2.1 Índices de incidencia según división de actividad económica
A11: TablaS3 Accidentes sin baja registrados según tipo de contrato
A12: TablaS4 Accidentes en jornada de trabajo sin baja según plantilla de la empresa
A13: TablaS5. Accidentes sin baja registrados, por forma de contacto
A14: TablaS6. Accidentes sin baja registrados, por parte lesionada
A15: TablaS7. Accidentes sin baja registrados, por tipo de lesión
A17: 2019
A18: Tabla 1 Accidentes sin baja registrados, por género según sector de actividad. Gráfico 1.1 y 1.2
A19: Tabla 2 Accidentes sin baja registrados, por género según tipo de contrato
A20: Tabla 2.1 Accidentes sin baja registrados, por sector según tipo de contrato. Gráfico 2. Gráfico 2.1
A21: Tabla 3 Accidentes sin baja registrados, por género según plantilla de la empresa. Gráfico 3
A22: Tabla 4 Accidentes sin baja registrados, por sector de actividad según plantilla de la empresa. Gráfico 4
A23: Tabla 5 Accidentes sin baja registrados, por actividad de la empresa e índice de incidencia. Gráfico 5
A24: Tabla 6 Accidentes sin baja registrados, por parte lesionada y género. Gráfico 6
A25: Tabla 7Accidentes sin baja registrados, por forma de contacto según parte lesionada. Gráfico 7
A26: Tabla 8 Accidentes sin baja registrados, por tipo de lesión y género. Gráfico 8
A27: Tabla 9 Accidentes sin baja registrados, por tipo de lesión según sector de actividad. Gráfico 9
A30: Afiliados a la Seguridad Social
A32: Notas
A36: (*) Año de registro

Sheet Hoja 1 (hidden)
B2: Estadística de accidentes de trabajo sin baja registrados en la Comunidad de Madrid
B3: =Índice!A17 -> 2019
B4: IRSST
B6: Accidentes sin baja registrados, por género según sector de actividad
B7: Sector de Actividad | C7: Total | D7: Hombres | E7: Mujeres
B8: Total | C8: 95213 | D8: 60556 | E8: 34657
B9: Agricultura y ganadería | C9: 273 | D9: 242 | E9: 31
B10: Industria, energía y minería | C10: 13041 | D10: 11288 | E10: 1753
B11: Construcción | C11: 12118 | D11: 11767 | E11: 351
B12: Servicios | C12: 69781 | D12: 37259 | E12: 32522
B13: Fuente: IRSST

Sheet Hoja 2 (hidden)
B2: Estadística de accidentes de trabajo sin baja registrados en la Comunidad de Madrid
B3: =Índice!A17 -> 2019
B4: IRSST
B7: Accidentes sin baja registrados por género según tipo de contrato | J7: Accidentes sin baja registrados por sector según tipo de contrato
B8: Tipo de contrato | C8: Total | D8: Hombres | E8: Mujeres | J8: Tipo de contrato | K8: Total | L8: Agricultura y ganadería | M8: Industria, energía y minería | N8: Construcción | O8: Servicios
B9: Total | C9: 95213 | D9: 60556 | E9: 34657 | J9: Total | K9: 95213 | L9: 273 | M9: 13041 | N9: 12118 | O9: 69781
B10: Indefinido | C10: 66224 | D10: 42103 | E10: 24121 | J10: Indefinido | K10: 66224 | L10: 183 | M10: 10040 | N10: 6191 | O10: 49810
B11: Temporal | C11: 28989 | D11: 18453 | E11: 10536 | J11: Temporal | K11: 28989 | L11: 90 | M11: 3001 | N11: 5927 | O11: 19971
B12: Fuente: IRSST | J12: Fuente: IRSST

Sheet Hoja 3 (hidden)
B2: Estadística de accidentes de trabajo sin baja registrados en la Comunidad de Madrid
B3: =Índice!A17 -> 2019
B4: IRSST
B8: Accidentes sin baja registrados, por sector de actividad según plantilla de la empresa
B9: Plantilla de la empresa | C9: Total | D9: Agricultura y ganadería | E9: Industria, energía y minería | F9: Construcción | G9: Servicios
B10: Total | C10: 95213 | D10: 273 | E10: 13041 | F10: 12118 | G10: 69781 | AM10: Plantilla de la empresa | AN10: Total | AO10: Agricultura y ganadería | AP10: Industria y energía | AQ10: Construcción | AR10: Servicios
B11: Menos de 3 trab. | C11: 4840 | D11: 44 | E11: 590 | F11: 1283 | G11: 2923 | AM11: Total | AN11: 91506 | AO11: =+D10 -> 273 | AP11: =+E10 -> 13041 | AQ11: =+F10 -> 12118 | AR11: =+G10 -> 69781
B12: De 3 a 9 trab. | C12: 8541 | D12: 57 | E12: 1478 | F12: 2292 | G12: 4714 | AM12: Menos de 3 trab. | AN12: 4289 | AO12: =+D11 -> 44 | AP12: =+E11 -> 590 | AQ12: 1283 | AR12: 2923
B13: De 10 a 49 trab. | C13: 22874 | D13: 70 | E13: 4621 | F13: 4942 | G13: 13241 | AM13: De 3 a 9 trab. | AN13: 9231 | AO13: 57 | AP13: 1478 | AQ13: 2292 | AR13: 4714
B14: De 50 a 99 trab. | C14: 10070 | D14: 41 | E14: 1727 | F14: 1784 | G14: 6518 | AM14: De 10 a 49 trab. | AN14: 21386 | AO14: 70 | AP14: 4621 | AQ14: 4942 | AR14: 13241
B15: De 100 a 249 trab. | C15: 11979 | D15: 39 | E15: 1900 | F15: 1165 | G15: 8875 | AM15: De 50 a 99 trab. | AN15: 9081 | AO15: 41 | AP15: 1727 | AQ15: 1784 | AR15: 6518
B16: 250 y más trab. | C16: 36909 | D16: 22 | E16: 2725 | F16: 652 | G16: 33510 | AM16: De 100 a 249 trab. | AN16: 12092 | AO16: 39 | AP16: 1900 | AQ16: 1165 | AR16: 8875
B17: Fuente; IRSST | AM17: 250 y más trab. | AN17: 35427 | AO17: 22 | AP17: 2725 | AQ17: 652 | AR17: 33510
AM20: Plantilla de la empresa | AN20: Total | AO20: Agricultura y ganadería | AP20: Industria y energía | AQ20: Construcción | AR20: Servicios
AM21: Total | AN21: =C10 -> 95213 | AO21: =D10 -> 273 | AP21: 13041 | AQ21: 12118 | AR21: 69781
AM22: Menos de 3 trab. | AN22: =C11 -> 4840 | AO22: 44 | AP22: 590 | AQ22: 1283 | AR22: 2923
AM23: De 3 a 9 trab. | AN23: 8541 | AO23: 57 | AP23: 1478 | AQ23: 2292 | AR23: 4714
AM24: De 10 a 49 trab. | AN24: 22874 | AO24: 70 | AP24: 4621 | AQ24: 4942 | AR24: 13241
AM25: De 50 a 99 trab. | AN25: 10070 | AO25: 41 | AP25: 1727 | AQ25: 1784 | AR25: 6518
AM26: De 100 a 249 trab. | AN26: 11979 | AO26: 39 | AP26: 1900 | AQ26: 1165 | AR26: 8875
AM27: 250 y más trab. | AN27: 36909 | AO27: 22 | AP27: 2725 | AQ27: 652 | AR27: 33510

Sheet Hoja 4 (hidden)
B2: Estadística de accidentes de trabajo sin baja registrados en la Comunidad de Madrid
B3: =Índice!A17 -> 2019
B4: IRSST
B9: Accidentes sin baja registrados, por género según plantilla de la empresa
B10: Plantilla de la empresa | C10: Total | D10: % | E10: Hombres | F10: % | G10: Mujeres | H10: %
B11: Total | C11: 95213 | D11: 1 | E11: 60556 | F11: 1 | G11: 34657 | H11: 1
B12: Menos de 3 trab. | C12: 4840 | D12: 0.051 | E12: 3922 | F12: 0.065 | G12: 918 | H12: 0.026
B13: De 3 a 9 trab. | C13: 8541 | D13: 0.09 | E13: 6823 | F13: 0.113 | G13: 1718 | H13: 0.05
B14: De 10 a 49 trab. | C14: 22874 | D14: 0.24 | E14: 17948 | F14: 0.296 | G14: 4926 | H14: 0.142
B15: De 50 a 99 trab. | C15: 10070 | D15: 0.106 | E15: 7165 | F15: 0.118 | G15: 2905 | H15: 0.084
B16: De 100 a 249 trab. | C16: 11979 | D16: 0.126 | E16: 7383 | F16: 0.122 | G16: 4596 | H16: 0.133
B17: 250 y más trab. | C17: 36909 | D17: 0.388 | E17: 17315 | F17: 0.286 | G17: 19594 | H17: 0.565
B18: Fuente; IRSST

Sheet Hoja 5 (hidden)
B2: Estadística de accidentes de trabajo sin baja registrados en la Comunidad de Madrid
B3: =Índice!A17 -> 2019
B4: IRSST
B8: Accidentes sin baja registrados y porcentajes, por actividad de la empresa ordenados de mayor a menor frecuencia para el periodo enero-diciembre 2016
B9: CNAE 09 | C9: Total | D9: %
B10: Total | C10: 99688 | D10: 100
B11: 47 Comercio al por menor, excepto de vehículos de motor y motocicletas | C11: 10617 | D11: 10.7
B12: 43 Actividades de construcción especializada | C12: 6768 | D12: 6.8
B13: 56 Servicios de comidas y bebidas | C13: 6692 | D13: 6.7
B14: 86 Actividades sanitarias | C14: 6155 | D14: 6.2
B15: 84 Administración Pública y defensa; Seguridad Social obligatoria | C15: 5660 | D15: 5.7
B16: 81 Servicios a edificios y actividades de jardinería | C16: 5403 | D16: 5.4
B17: 46 Comercio al por mayor e intermediarios del comercio, excepto de vehículos de motor y motocicletas | C17: 4894 | D17: 4.9
B18: 45 Venta y reparación de vehículos de motor y motocicletas | C18: 3306 | D18: 3.3
B19: 49 Transporte terrestre y por tubería | C19: 2860 | D19: 2.9
B20: 82 Actividades administrativas de oficina y otras actividades auxiliares a las empresas | C20: 2835 | D20: 2.8
B21: 41 Construcción de edificios | C21: 2827 | D21: 2.8
B22: 87 Asistencia en establecimientos residenciales | C22: 2664 | D22: 2.7
B23: 85 Educación | C23: 2633 | D23: 2.6
B24: 25 Fabricación de productos metálicos, excepto maquinaria y equipo | C24: 2350 | D24: 2.4
B25: 96 Otros servicios personales | C25: 1815 | D25: 1.8
B26: 52 Almacenamiento y actividades anexas al transporte | C26: 1628 | D26: 1.6
B27: 78 Actividades relacionadas con el empleo | C27: 1602 | D27: 1.6
B28: 80 Actividades de seguridad e investigación | C28: 1421 | D28: 1.4
B29: 38 Recogida, tratamiento y eliminación de residuos; valorización | C29: 1367 | D29: 1.4
B30: 10 Industria de la alimentación | C30: 1355 | D30: 1.4
B31: 88 Actividades de servicios sociales sin alojamiento | C31: 1341 | D31: 1.3
B32: 93 Actividades deportivas, recreativas y de entretenimiento | C32: 1262 | D32: 1.3
B33: 18 Artes gráficas y reproducción de soportes grabados: impresión, encuadernación | C33: 1134 | D33: 1.1
B34: 28 Fabricación de maquinaria y equipo n.c.o.p. | C34: 1015 | D34: 1
B35: 62 Programación, consultoría y otras actividades relacionadas con la informática | C35: 942 | D35: 0.9
B36: 71 Servicios técnicos de arquitectura e ingeniería; ensayos y análisis técnicos | C36: 896 | D36: 0.9
B37: 53 Actividades postales y de correos | C37: 880 | D37: 0.9
B38: 55 Servicios de alojamiento | C38: 780 | D38: 0.8
B39: 24 Metalurgia; fabricación de productos de hierro, acero y ferroaleaciones | C39: 779 | D39: 0.8
B40: 61 Telecomunicaciones | C40: 706 | D40: 0.7
B41: 64 Servicios financieros, excepto seguros y fondos de pensiones | C41: 692 | D41: 0.7
B42: 33 Reparación e instalación de maquinaria y equipo | C42: 655 | D42: 0.7
B43: 29 Fabricación de vehículos de motor, remolques y semirremolques | C43: 637 | D43: 0.6
B44: 90 Actividades de creación, artísticas y espectáculos | C44: 598 | D44: 0.6
B45: 69 Actividades jurídicas y de contabilidad | C45: 582 | D45: 0.6
B46: 42 ingeniería civil | C46: 562 | D46: 0.6
B47: 30 Fabricación de otro material de transporte | C47: 557 | D47: 0.6
B48: 31 Fabricación de muebles | C48: 534 | D48: 0.5
B49: 74 Otras actividades profesionales, científicas y técnicas | C49: 516 | D49: 0.5
B50: 73 Publicidad y estudios de mercado | C50: 514 | D50: 0.5
B51: 51 Transporte aéreo | C51: 465 | D51: 0.5
B52: 32 Otras industrias manufactureras | C52: 444 | D52: 0.4
B53: 72 Investigación y desarrollo | C53: 442 | D53: 0.4
B54: 77Actividades de alquiler | C54: 438 | D54: 0.4
B55: 22 Fabricación de productos de caucho y plásticos | C55: 433 | D55: 0.4
B56: 21 Fabricación de productos farmacéuticos | C56: 385 | D56: 0.4
B57: 95 Reparación de ordenadores, efectos personales y artículos de uso doméstico | C57: 377 | D57: 0.4
B58: 27 Fabricación de material y equipo eléctrico | C58: 362 | D58: 0.4
B59: 94 Actividades asociativas | C59: 344 | D59: 0.3
B60: 68 Actividades inmobiliarias | C60: 342 | D60: 0.3
B61: 17 Industria del papel | C61: 328 | D61: 0.3
B62: 23 Fabricación de otros productos minerales no metálicos | C62: 311 | D62: 0.3
B63: 16 Industria de la madera y del corcho, excepto muebles; cestería y espartería | C63: 305 | D63: 0.3
B64: 20 Industria química | C64: 296 | D64: 0.3
B65: 59 Actividades cinematográficas, de vídeo y de programas de televisión, grabación de sonido y edición musical | C65: 295 | D65: 0.3
B66: 65 Seguros, reaseguros y fondos de pensiones, excepto Seguridad Social obligatoria | C66: 284 | D66: 0.3
B67: 26 Fabricación de productos informáticos, electrónicos y ópticos | C67: 277 | D67: 0.3
B68: 97 Actividades de los hogares como empleadores de personal doméstico | C68: 264 | D68: 0.3
B69: 50 Transporte marítimo y por vías navegables interiores | C69: 259 | D69: 0.3
B70: 70 Actividades de las sedes centrales; actividades de consultoría de gestión empresarial | C70: 254 | D70: 0.3
B71: 35 Suministro de energía eléctrica, gas, vapor y aire acondicionado | C71: 242 | D71: 0.2
B72: 58 Edición | C72: 230 | D72: 0.2
B73: 01 Agricultura, ganadería, caza y servicios relacionados con las mismas | C73: 196 | D73: 0.2
B74: 66 Actividades auxiliares a los servicios financieros y a los seguros | C74: 171 | D74: 0.2
B75: 13 Industria textil | C75: 156 | D75: 0.2
B76: 60 Actividades de programación y emisión de radio y televisión | C76: 149 | D76: 0.1
B77: 36 Captación, depuración y distribución de agua | C77: 132 | D77: 0.1
B78: 79 Actividades de agencias de viajes, operadores turísticos, servicios de reservas y act. relacionadas con los mismos | C78: 125 | D78: 0.1
B79: 63 Servicios de información | C79: 118 | D79: 0.1
B80: 92 Actividades de juegos de azar y apuestas | C80: 116 | D80: 0.1
B81: 91 Actividades de bibliotecas, archivos, museos y otras actividades culturales | C81: 113 | D81: 0.1
B82: 11 Fabricación de bebidas | C82: 86 | D82: 0.1
B83: 39 Actividades de descontaminación y otros servicios de gestión de residuos | C83: 82 | D83: 0.1
B84: 14 Confección de prendas de vestir | C84: 81 | D84: 0.1
B85: 02 Silvicultura y explotación forestal | C85: 80 | D85: 0.1
B86: 37 Recogida y tratamiento de aguas residuales | C86: 54 | D86: 0.1
B87: 75 Actividades veterinarias | C87: 51 | D87: 0.1
B88: 99 Actividades de organizaciones y organismos extraterritoriales | C88: 34 | D88: 0
B89: 15 Industria del cuero y del calzado | C89: 33 | D89: 0
B90: 08 Otras industrias extractivas | C90: 30 | D90: 0
B91: 19 Coquerías y refino de petróleo | C91: 24 | D91: 0
B92: 12 Industria del tabaco | C92: 22 | D92: 0
B93: 09 Actividades de apoyo a las industrias extractivas | C93: 14 | D93: 0
B94: 06 Extracción de crudo de petróleo y gas natural | C94: 5 | D94: 0
B95: 05 Extracción de antracita, hulla y lignito | C95: 2 | D95: 0
B96: 03 Pesca y acuicultura | C96: 2 | D96: 0
B97: 07 Extracción de minerales metálicos | C97: 1 | D97: 0
B98: Fuente; IRSST

Sheet Hoja 6 (hidden)
B2: Estadística de accidentes de trabajo sin baja registrados en la Comunidad de Madrid
B3: =Índice!A17 -> 2019
B4: IRSST
B8: Accidentes sin baja registrados e índices de incidencia, por actividad de la empresa ordenadas según índice de incidencia de mayor a menor
B9: CNAE 09 | C9: Total | D9: Afiliados medios 2018 | E9: índice de incidencia | AG9: Total | AH9: 91506 | AI9: 100
B10: Total | C10: =SUM(C11:C97) -> 99425 | D10: 2749850.417 | E10: 3615.651215 | AG10: Total | AH10: 91506 | AI10: 3809.549978
B11: 39 Actividades de descontaminación y otros servicios de gestión de residuos | C11: 94 | D11: 167.75 | E11: 56035.76751 | AG11: 39 Actividades de descontaminación y otros servicios de gestión de residuos | AH11: 63 | AI11: 62479.33884
B12: 24 Metalurgia; fabricación de productos de hierro, acero y ferroaleaciones | C12: 844 | D12: 3241.916667 | E12: 26033.98196 | AG12: 24 Metalurgia; fabricación de productos de hierro, acero y ferroaleaciones | AH12: 817 | AI12: 28623.98178
B13: 05 Extracción de antracita, hulla y lignito | C13: 1 | D13: 4.083333333 | E13: 24489.79592 | AG13: 25 Fabricación de productos metálicos, excepto maquinaria y equipo | AH13: 2095 | AI13: 14534.81649
B14: 25 Fabricación de productos metálicos, excepto maquinaria y equipo | C14: 2413 | D14: 17053.16667 | E14: 14149.86464 | AG14: 16 Industria de la madera y del corcho, excepto muebles; cestería y espartería | AH14: 260 | AI14: 13676.41257
B15: 07 Extracción de minerales metálicos | C15: 1 | D15: 7.25 | E15: 13793.10345 | AG15: 38 Recogida, tratamiento y eliminación de residuos; valorización | AH15: 1315 | AI15: 12805.01164
B16: 16 Industria de la madera y del corcho, excepto muebles; cestería y espartería | C16: 289 | D16: 2189.25 | E16: 13200.86788 | AG16: 02 Silvicultura y explotación forestal | AH16: 91 | AI16: 12231.1828
B17: 02 Silvicultura y explotación forestal | C17: 99 | D17: 793.25 | E17: 12480.30255 | AG17: 37 Recogida y tratamiento de aguas residuales | AH17: 74 | AI17: 11742.92515
B18: 38 Recogida, tratamiento y eliminación de residuos; valorización | C18: 1353 | D18: 11445.25 | E18: 11821.498 | AG18: 07 Extracción de minerales metálicos | AH18: 1 | AI18: 11538.46154
B19: 08 Otras industrias extractivas | C19: 41 | D19: 381.1666667 | E19: 10756.4495 | AG19: 13 Industria textil | AH19: 145 | AI19: 10533.96295
B20: 31 Fabricación de muebles | C20: 504 | D20: 4785.333333 | E20: 10532.18167 | AG20: 06 Extracción de crudo de petróleo y gas natural | AH20: 9 | AI20: 10275.92769
B21: 32 Otras industrias manufactureras | C21: 522 | D21: 5309.916667 | E21: 9830.662754 | AG21: 31 Fabricación de muebles | AH21: 386 | AI21: 9316.920106
B22: 43 Actividades de construcción especializada | C22: 7430 | D22: 86158.16667 | E22: 8623.674676 | AG22: 08 Otras industrias extractivas | AH22: 30 | AI22: 8706.166868
B23: 37 Recogida y tratamiento de aguas residuales | C23: 40 | D23: 478.25 | E23: 8363.826451 | AG23: 42 ingeniería civil | AH23: 675 | AI23: 8655.325697
B24: 50 Transporte marítimo y por vías navegables interiores | C24: 252 | D24: 3066 | E24: 8219.178082 | AG24: 45 Venta y reparación de vehículos de motor y motocicletas | AH24: 3265 | AI24: 8650.95452
B25: 10 Industria de la alimentación | C25: 1355 | D25: 17096.83333 | E25: 7925.444283 | AG25: 22 Fabricación de productos de caucho y plásticos | AH25: 442 | AI25: 8486.4
B26: 22 Fabricación de productos de caucho y plásticos | C26: 421 | D26: 5431.5 | E26: 7751.081653 | AG26: 28 Fabricación de maquinaria y equipo n.c.o.p. | AH26: 936 | AI26: 8327.710843
B27: 33 Reparación e instalación de maquinaria y equipo | C27: 776 | D27: 10028.33333 | E27: 7738.075453 | AG27: 10 Industria de la alimentación | AH27: 1221 | AI27: 8224.853067
B28: 42 Ingeniería civil | C28: 604 | D28: 7828.166667 | E28: 7715.727395 | AG28: 43 Actividades de construcción especializada | AH28: 5508 | AI28: 8077.499808
B29: 28 Fabricación de maquinaria y equipo n.c.o.p. | C29: 943 | D29: 12369.66667 | E29: 7623.487564 | AG29: 32 Otras industrias manufactureras | AH29: 374 | AI29: 7966.769624
B30: 17 Industria del papel | C30: 366 | D30: 4984.666667 | E30: 7342.517052 | AG30: 17 Industria del papel | AH30: 367 | AI30: 7768.839966
B31: 41 Construcción de edificios | C31: 3693 | D31: 51068.75 | E31: 7231.428222 | AG31: 23 Fabricación de otros productos minerales no metálicos | AH31: 351 | AI31: 7620.357136
B32: 45 Venta y reparación de vehículos de motor y motocicletas | C32: 3125 | D32: 43367 | E32: 7205.94 | AG32: 18 Artes gráficas y reproducción de soportes grabados: impresión, encuadernación | AH32: 1056 | AI32: 7513.295901
B33: 13 Industria textil | C33: 130 | D33: 1824.583333 | E33: 7124.914364 | AG33: 27 Fabricación de material y equipo eléctrico | AH33: 330 | AI33: 7231.55588
B34: 18 Artes gráficas y reproducción de soportes grabados: impresión, encuadernación | C34: 1005 | D34: 14105.83333 | E34: 7124.711999 | AG34: 90 Actividades de creación, artísticas y espectáculos | AH34: 518 | AI34: 6976.979112
B35: 23 Fabricación de otros productos minerales no metálicos | C35: 312 | D35: 4418.416667 | E35: 7061.353049 | AG35: 20 Industria química | AH35: 390 | AI35: 6752.662107
B36: 27 Fabricación de material y equipo eléctrico | C36: 284 | D36: 4530.666667 | E36: 6268.393172 | AG36: 50 Transporte marítimo y por vías navegables interiores | AH36: 209 | AI36: 6665.072152
B37: 90 Actividades de creación, artísticas y espectáculos | C37: 558 | D37: 8939.666667 | E37: 6241.843469 | AG37: 96 Otros servicios personales | AH37: 1956 | AI37: 6651.722584
B38: 29 Fabricación de vehículos de motor, remolques y semirremolques | C38: 579 | D38: 9512.5 | E38: 6086.727989 | AG38: 41 Construcción de edificios | AH38: 2422 | AI38: 6141.920978
B39: 87 Asistencia en establecimientos residenciales | C39: 2512 | D39: 44246.41667 | E39: 5677.295902 | AG39: 33 Reparación e instalación de maquinaria y equipo | AH39: 603 | AI39: 5837.979136
B40: 53 Actividades postales y de correos | C40: 932 | D40: 16744 | E40: 5566.172957 | AG40: 52 Almacenamiento y actividades anexas al transporte | AH40: 1751 | AI40: 5797.597303
B41: 78 Actividades relacionadas con el empleo | C41: 1989 | D41: 37718.83333 | E41: 5273.227786 | AG41: 87 Asistencia en establecimientos residenciales | AH41: 2209 | AI41: 5673.631355
B42: 52 Almacenamiento y actividades anexas al transporte | C42: 1765 | D42: 36107.5 | E42: 4888.181126 | AG42: 01 Agricultura, ganadería, caza y servicios relacionados con las mismas | AH42: 244 | AI42: 5596.437241
B43: 96 Otros servicios personales | C43: 1660 | D43: 34095.66667 | E43: 4868.653886 | AG43: 55 Servicios de alojamiento | AH43: 908 | AI43: 5489.307035
B44: 20 Industria química | C44: 295 | D44: 6200.833333 | E44: 4757.425077 | AG44: 15 Industria del cuero y del calzado | AH44: 50 | AI44: 5408.816371
B45: 81 Servicios a edificios y actividades de jardinería | C45: 5197 | D45: 110845.5833 | E45: 4688.504353 | AG45: 53 Actividades postales y de correos | AH45: 743 | AI45: 5356.885364
B46: 88 Actividades de servicios sociales sin alojamiento | C46: 1588 | D46: 34005.25 | E46: 4669.867153 | AG46: 81 Servicios a edificios y actividades de jardinería | AH46: 5247 | AI46: 5306.821141
B47: 01 Agricultura, ganadería, caza y servicios relacionados con las mismas | C47: 194 | D47: 4256.166667 | E47: 4558.09218 | AG47: 84 Administración Pública y defensa; Seguridad Social obligatoria | AH47: 5564 | AI47: 4685.9505
B48: 36 Captación, depuración y distribución de agua | C48: 188 | D48: 4156.583333 | E48: 4522.945528 | AG48: 47 Comercio al por menor, excepto de vehículos de motor y motocicletas | AH48: 9824 | AI48: 4580.84321
B49: 86 Actividades sanitarias | C49: 6578 | D49: 147776 | E49: 4451.331745 | AG49: 91 Actividades de bibliotecas, archivos, museos y otras actividades culturales | AH49: 121 | AI49: 4579.574844
B50: 06 Extracción de crudo de petróleo y gas natural | C50: 3 | D50: 68.58333333 | E50: 4374.240583 | AG50: 78 Actividades relacionadas con el empleo | AH50: 1076 | AI50: 4547.743915
B51: 47 Comercio al por menor, excepto de vehículos de motor y motocicletas | C51: 9991 | D51: 235163.75 | E51: 4248.528951 | AG51: 93 Actividades deportivas, recreativas y de entretenimiento | AH51: 963 | AI51: 4484.945394
B52: 95 Reparación de ordenadores, efectos personales y artículos de uso doméstico | C52: 338 | D52: 7997.833333 | E52: 4226.144581 | AG52: 80 Actividades de seguridad e investigación | AH52: 1515 | AI52: 4456.931043
B53: 55 Servicios de alojamiento | C53: 832 | D53: 20021.66667 | E53: 4155.49821 | AG53: 74 Otras actividades profesionales, científicas y técnicas | AH53: 695 | AI53: 4438.035132
B54: 56 Servicios de comidas y bebidas | C54: 6891 | D54: 167383.75 | E54: 4116.887093 | AG54: 88 Actividades de servicios sociales sin alojamiento | AH54: 1131 | AI54: 4433.251345
B55: 30 Fabricación de otro material de transporte | C55: 560 | D55: 13993 | E55: 4002.001001 | AG55: 29 Fabricación de vehículos de motor, remolques y semirremolques | AH55: 452 | AI55: 4389.592522
B56: 93 Actividades deportivas, recreativas y de entretenimiento | C56: 1156 | D56: 29363.25 | E56: 3936.893906 | AG56: 49 Transporte terrestre y por tubería | AH56: 2828 | AI56: 4345.06494
B57: 49 Transporte terrestre y por tubería | C57: 2850 | D57: 73325 | E57: 3886.805319 | AG57: 95 Reparación de ordenadores, efectos personales y artículos de uso doméstico | AH57: 404 | AI57: 4266.253652
B58: 84 Administración Pública y defensa; Seguridad Social obligatoria | C58: 4281 | D58: 116441.0833 | E58: 3676.537419 | AG58: 56 Servicios de comidas y bebidas | AH58: 5596 | AI58: 4155.417259
B59: 80 Actividades de seguridad e investigación | C59: 1418 | D59: 38617.08333 | E59: 3671.950022 | AG59: 86 Actividades sanitarias | AH59: 5357 | AI59: 4109.050535
B60: 99 Actividades de organizaciones y organismos extraterritoriales | C60: 85 | D60: 2330 | E60: 3648.06867 | AG60: 11 Fabricación de bebidas | AH60: 119 | AI60: 3738.219895
B61: 35 Suministro de energía eléctrica, gas, vapor y aire acondicionado | C61: 282 | D61: 7730.916667 | E61: 3647.691628 | AG61: 21 Fabricación de productos farmacéuticos | AH61: 404 | AI61: 3664.011367
B62: 21 Fabricación de productos farmacéuticos | C62: 436 | D62: 12785.75 | E62: 3410.046341 | AG62: 82 Actividades administrativas de oficina y otras actividades auxiliares a las empresas | AH62: 2374 | AI62: 3564.390627
B63: 82 Actividades administrativas de oficina y otras actividades auxiliares a las empresas | C63: 2936 | D63: 88334.41667 | E63: 3323.732822 | AG63: 30 Fabricación de otro material de transporte | AH63: 397 | AI63: 3457.033801
B64: 03 Pesca y acuicultura | C64: 3 | D64: 94.91666667 | E64: 3160.667252 | AG64: 46 Comercio al por mayor e intermediarios del comercio, excepto de vehículos de motor y motocicletas | AH64: 4529 | AI64: 3415.13624
B65: 46 Comercio al por mayor e intermediarios del comercio, excepto de vehículos de motor y motocicletas | C65: 4539 | D65: 147619.6667 | E65: 3074.793557 | AG65: 51 Transporte aéreo | AH65: 573 | AI65: 3345.822588
B66: 91 Actividades de bibliotecas, archivos, museos y otras actividades culturales | C66: 94 | D66: 3142.083333 | E66: 2991.64567 | AG66: 36 Captación, depuración y distribución de agua | AH66: 108 | AI66: 3055.306709
B67: 12 Industria del tabaco | C67: 12 | D67: 409.5833333 | E67: 2929.806714 | AG67: 12 Industria del tabaco | AH67: 13 | AI67: 2970.29703
B68: 26 Fabricación de productos informáticos, electrónicos y ópticos | C68: 270 | D68: 9570.5 | E68: 2821.169218 | AG68: 92 Actividades de juegos de azar y apuestas | AH68: 154 | AI68: 2942.675159
B69: 74 Otras actividades profesionales, científicas y técnicas | C69: 548 | D69: 20550 | E69: 2666.666667 | AG69: 03 Pesca y acuicultura | AH69: 4 | AI69: 2921.485088
B70: 15 Industria del cuero y del calzado | C70: 26 | D70: 977.5833333 | E70: 2659.619811 | AG70: 35 Suministro de energía eléctrica, gas, vapor y aire acondicionado | AH70: 214 | AI70: 2856.50723
B71: 11 Fabricación de bebidas | C71: 66 | D71: 2506.166667 | E71: 2633.504023 | AG71: 26 Fabricación de productos informáticos, electrónicos y ópticos | AH71: 310 | AI71: 2450.108674
B72: 75 Actividades veterinarias | C72: 67 | D72: 2557.833333 | E72: 2619.404444 | AG72: 72 Investigación y desarrollo | AH72: 380 | AI72: 2186.138158
B73: 77Actividades de alquiler | C73: 501 | D73: 20235.41667 | E73: 2475.857099 | AG73: 60 Actividades de programación y emisión de radio y televisión | AH73: 175 | AI73: 2144.191793
B74: 59 Actividades cinematográficas, de vídeo y de programas de televisión, grabación de sonido y edición musical | C74: 350 | D74: 14258.5 | E74: 2454.676158 | AG74: 61 Telecomunicaciones | AH74: 768 | AI74: 2044.415458
B75: 92 Actividades de juegos de azar y apuestas | C75: 131 | D75: 5794.5 | E75: 2260.764518 | AG75: 99 Actividades de organizaciones y organismos extraterritoriales | AH75: 42 | AI75: 1971.059836
B76: 14 Confección de prendas de vestir | C76: 84 | D76: 3978.833333 | E76: 2111.171616 | AG76: 68 Actividades inmobiliarias | AH76: 360 | AI76: 1900.755902
B77: 72 Investigación y desarrollo | C77: 384 | D77: 19440 | E77: 1975.308642 | AG77: 77Actividades de alquiler | AH77: 390 | AI77: 1778.527698
B78: 51 Transporte aéreo | C78: 355 | D78: 18698.66667 | E78: 1898.53109 | AG78: 59 Actividades cinematográficas, de vídeo y de programas de televisión, grabación de sonido y edición musical | AH78: 176 | AI78: 1733.520475
B79: 60 Actividades de programación y emisión de radio y televisión | C79: 179 | D79: 9580.25 | E79: 1868.427233 | AG79: 63 Servicios de información | AH79: 148 | AI79: 1725.310381
B80: 61 Telecomunicaciones | C80: 543 | D80: 33157.41667 | E80: 1637.642659 | AG80: 85 Educación | AH80: 2415 | AI80: 1688.272044
B81: 85 Educación | C81: 2613 | D81: 169868.6667 | E81: 1538.247195 | AG81: 14 Confección de prendas de vestir | AH81: 59 | AI81: 1532.434363
B82: 71 Servicios técnicos de arquitectura e ingeniería; ensayos y análisis técnicos | C82: 900 | D82: 62148.58333 | E82: 1448.142422 | AG82: 71 Servicios técnicos de arquitectura e ingeniería; ensayos y análisis técnicos | AH82: 829 | AI82: 1455.91638
B83: 94 Actividades asociativas | C83: 318 | D83: 22728.33333 | E83: 1399.134707 | AG83: 75 Actividades veterinarias | AH83: 24 | AI83: 1338.849891
B84: 68 Actividades inmobiliarias | C84: 338 | D84: 24450.83333 | E84: 1382.365973 | AG84: 94 Actividades asociativas | AH84: 290 | AI84: 1330.427801
B85: 19 Coquerías y refino de petróleo | C85: 13 | D85: 950.25 | E85: 1368.061037 | AG85: 65 Seguros, reaseguros y fondos de pensiones, excepto Seguridad Social obligatoria | AH85: 299 | AI85: 1273.058214
B86: 73 Publicidad y estudios de mercado | C86: 520 | D86: 39270 | E86: 1324.16603 | AG86: 58 Edición | AH86: 238 | AI86: 1222.440515
B87: 58 Edición | C87: 208 | D87: 16616.33333 | E87: 1251.780377 | AG87: 73 Publicidad y estudios de mercado | AH87: 391 | AI87: 1155.152888
B88: 79 Actividades de agencias de viajes, operadores turísticos, servicios de reservas y act. relacionadas con los mismos | C88: 165 | D88: 13335.25 | E88: 1237.322135 | AG88: 64 Servicios financieros, excepto seguros y fondos de pensiones | AH88: 704 | AI88: 1134.818843
B89: 65 Seguros, reaseguros y fondos de pensiones, excepto Seguridad Social obligatoria | C89: 274 | D89: 25191.08333 | E89: 1087.68645 | AG89: 19 Coquerías y refino de petróleo | AH89: 9 | AI89: 1028.571429
B90: 70 Actividades de las sedes centrales; actividades de consultoría de gestión empresarial | C90: 298 | D90: 31810.58333 | E90: 936.7951442 | AG90: 66 Actividades auxiliares a los servicios financieros y a los seguros | AH90: 170 | AI90: 1005.015223
B91: 63 Servicios de información | C91: 103 | D91: 11147.58333 | E91: 923.9670781 | AG91: 79 Actividades de agencias de viajes, operadores turísticos, servicios de reservas y act. relacionadas con los mismos | AH91: 108 | AI91: 973.9381369
B92: 66 Actividades auxiliares a los servicios financieros y a los seguros | C92: 198 | D92: 22017.41667 | E92: 899.2880636 | AG92: 70 Actividades de las sedes centrales; actividades de consultoría de gestión empresarial | AH92: 196 | AI92: 963.3579907
B93: 64 Servicios financieros, excepto seguros y fondos de pensiones | C93: 559 | D93: 62200.75 | E93: 898.7029899 | AG93: 62 Programación, consultoría y otras actividades relacionadas con la informática | AH93: 793 | AI93: 926.8485105
B94: 69 Actividades jurídicas y de contabilidad | C94: 534 | D94: 66836.08333 | E94: 798.9696185 | AG94: 69 Actividades jurídicas y de contabilidad | AH94: 506 | AI94: 882.1670626
B95: 62 Programación, consultoría y otras actividades relacionadas con la informática | C95: 978 | D95: 122635.4167 | E95: 797.4857725 | AG95: 09 Actividades de apoyo a las industrias extractivas | AH95: 7 | AI95: 523.5928442
B96: 09 Actividades de apoyo a las industrias extractivas | C96: 7 | D96: 1126.833333 | E96: 621.2098802 | AG96: 97 Actividades de los hogares como empleadores de personal doméstico | AH96: 243 | AI96: 192.6754265
B97: 97 Actividades de los hogares como empleadores de personal doméstico | C97: 256 | D97: 124648.25 | E97: 205.3779335 | AG97: 05 Extracción de antracita, hulla y lignito | AH97: 0 | AI97: 0
B98: Fuente; IRSST | AG98: Fuente; IRSST

Sheet Hoja 7 (hidden)
B2: Estadística de accidentes de trabajo sin baja registrados en la Comunidad de Madrid
B3: =Índice!A17 -> 2019
B4: IRSST
B8: Accidentes sin baja registrados, por parte lesionada según género
C9: Total | D9: % | E9: Hombres | F9: % | G9: Mujeres | H9: %
B10: Total | C10: 95213 | D10: 1 | E10: 60556 | F10: 1 | G10: 34657 | H10: 1
B11: No consta | C11: 284 | D11: 0.003 | E11: 180 | F11: 0.003 | G11: 104 | H11: 0.003
B12: Cabeza | C12: 14438 | D12: 0.152 | E12: 11367 | F12: 0.188 | G12: 3071 | H12: 0.089
B13: Cuello | C13: 6098 | D13: 0.064 | E13: 3024 | F13: 0.05 | G13: 3074 | H13: 0.089
B14: Espalda | C14: 12124 | D14: 0.127 | E14: 8408 | F14: 0.139 | G14: 3716 | H14: 0.107
B15: Tronco y órganos | C15: 3513 | D15: 0.037 | E15: 2541 | F15: 0.042 | G15: 972 | H15: 0.028
B16: Extremidades superiores | C16: 32036 | D16: 0.336 | E16: 19288 | F16: 0.319 | G16: 12748 | H16: 0.368
B17: Extremidades inferiores | C17: 20647 | D17: 0.217 | E17: 12502 | F17: 0.206 | G17: 8145 | H17: 0.235
B18: Todo el cuerpo y múltiples partes | C18: 5729 | D18: 0.06 | E18: 3023 | F18: 0.05 | G18: 2706 | H18: 0.078
B19: Otras partes no mencionadas | C19: 344 | D19: 0.004 | E19: 223 | F19: 0.004 | G19: 121 | H19: 0.003
B20: Fuente: IRSST

Sheet Hoja 8 (hidden)
B2: Estadística de accidentes de trabajo sin baja registrados en la Comunidad de Madrid
B3: =Índice!A17 -> 2019
B4: IRSST
B8: Accidentes sin baja registrados, por forma de contacto según parte lesionada
B9: Forma de contacto | C9: Total | D9: No consta | E9: Cabeza | F9: Cuello | G9: Espalda | H9: Tronco y órganos | I9: Extremidades superiores | J9: Extremidades inferiores | K9: Todo el cuerpo y múltiples partes | L9: Otras partes no mencionadas
B10: Total | C10: 95213 | D10: 284 | E10: 14438 | F10: 6098 | G10: 12124 | H10: 3513 | I10: 32036 | J10: 20647 | K10: 5729 | L10: 344
B11: No consta | C11: 535 | D11: 180 | E11: 68 | F11: 21 | G11: 20 | H11: 18 | I11: 67 | J11: 80 | K11: 8 | L11: 73
B12: Contacto eléctrico, con fuego, temp. o sust. peligrosas | C12: 8776 | D12: 19 | E12: 5213 | F12: 87 | G12: 135 | H12: 188 | I12: 2073 | J12: 487 | K12: 530 | L12: 44
B13: Ahogamiento, quedar sepultado, o envuelto | C13: 305 | D13: 0 | E13: 234 | F13: 8 | G13: 5 | H13: 14 | I13: 19 | J13: 8 | K13: 17 | L13: 0
B14: Golpe contra un obj inmóvil, trab. en movimiento | C14: 17780 | D14: 35 | E14: 1501 | F14: 277 | G14: 1238 | H14: 933 | I14: 4261 | J14: 7765 | K14: 1727 | L14: 43
B15: Choque o golpe contra objeto en movimiento | C15: 24033 | D15: 23 | E15: 5307 | F15: 3729 | G15: 1619 | H15: 935 | I15: 5540 | J15: 4396 | K15: 2437 | L15: 47
B16: Contacto con Agente material cortante, punzante o duro | C16: 10961 | D16: 5 | E16: 1161 | F16: 12 | G16: 24 | H16: 53 | I16: 8879 | J16: 743 | K16: 75 | L16: 9
B17: Quedar atrapado, ser aplastado o sufrir amputación | C17: 1550 | D17: 0 | E17: 24 | F17: 11 | G17: 18 | H17: 27 | I17: 1117 | J17: 324 | K17: 27 | L17: 2
B18: Sobreesfuerzo, trauma psíquico, radiaciones, ruido | C18: 27765 | D18: 13 | E18: 277 | F18: 1768 | G18: 8956 | H18: 1166 | I18: 8802 | J18: 6230 | K18: 508 | L18: 45
B19: Mordeduras, patadas (de animales o personas) | C19: 2548 | D19: 4 | E19: 491 | F19: 122 | G19: 60 | H19: 135 | I19: 1071 | J19: 369 | K19: 289 | L19: 7
B20: Infartos, derrames cerebrales y otras patologías no traum. | C20: 960 | D20: 5 | E20: 162 | F20: 63 | G20: 49 | H20: 44 | I20: 207 | J20: 245 | K20: 111 | L20: 74
B21: Fuente: IRSST

Sheet Hoja 9 (hidden)
B2: Estadística de accidentes de trabajo sin baja registrados en la Comunidad de Madrid
B3: =Índice!A17 -> 2019
B4: IRSST
B8: Accidentes sin baja registrados, por tipo de lesión y género
C9: Total | E9: Hombres | G9: Mujeres
C10: Total | D10: %
B11: Total | C11: 95213 | D11: 1 | E11: 60556 | F11: 1 | G11: 34657 | H11: 1
B12: Desconocida | C12: 1123 | D12: 0.012 | E12: 741 | F12: 0.012 | G12: 382 | H12: 0.011
B13: Heridas y lesiones superficiales | C13: 53652 | D13: 0.563 | E13: 34741 | F13: 0.574 | G13: 18911 | H13: 0.546
B14: Fracturas de hueso | C14: 714 | D14: 0.007 | E14: 465 | F14: 0.008 | G14: 249 | H14: 0.007
B15: Dislocaciones, esguinces y torceduras | C15: 24012 | D15: 0.252 | E15: 14763 | F15: 0.244 | G15: 9249 | H15: 0.267
B16: Amputaciones traumáticas, pérdidas de partes de cuerpo | C16: 7 | D16: 0 | E16: 6 | F16: 0 | G16: 1 | H16: 0
B17: Conmoción y lesiones internas | C17: 10587 | D17: 0.111 | E17: 6757 | F17: 0.112 | G17: 3830 | H17: 0.111
B18: Quemaduras, escaldaduras y congelación | C18: 901 | D18: 0.009 | E18: 486 | F18: 0.008 | G18: 415 | H18: 0.012
B19: Envenenamientos e infecciones | C19: 284 | D19: 0.003 | E19: 143 | F19: 0.002 | G19: 141 | H19: 0.004
B20: Ahogamiento y asfixia | C20: 79 | D20: 0.001 | E20: 49 | F20: 0.001 | G20: 30 | H20: 0.001
B21: Efectos del ruido, la vibración y la presión | C21: 36 | D21: 0 | E21: 25 | F21: 0 | G21: 11 | H21: 0
B22: Efectos de las temperaturas extremas, luz y radiación | C22: 65 | D22: 0.001 | E22: 48 | F22: 0.001 | G22: 17 | H22: 0
B23: Daños psicológicos, choques traumáticos | C23: 773 | D23: 0.008 | E23: 422 | F23: 0.007 | G23: 351 | H23: 0.01
B24: Lesiones múltiples | C24: 914 | D24: 0.01 | E24: 531 | F24: 0.009 | G24: 383 | H24: 0.011
B25: Infartos, derrames cerebrales y otras PNT | C25: 62 | D25: 0.001 | E25: 25 | F25: 0 | G25: 37 | H25: 0.001
B26: Otras lesiones | C26: 2004 | D26: 0.021 | E26: 1354 | F26: 0.022 | G26: 650 | H26: 0.019
B27: Fuente: IRSST

Sheet Hoja 10 (hidden)
B2: Estadística de accidentes de trabajo sin baja registrados en la Comunidad de Madrid
B3: =Índice!A17 -> 2019
B4: IRSST
B8: Accidentes sin baja registrados, por tipo de lesión según sector de actividad
B9: Tipo de lesión | C9: Total | D9: Agricultura y ganadería | E9: Industria, energía y minería | F9: Construcción | G9: Servicios
B10: Total | C10: 95213 | D10: 273 | E10: 13041 | F10: 12118 | G10: 69781
B11: Desconocida | C11: 1123 | D11: 7 | E11: 88 | F11: 121 | G11: 907
B12: Heridas y lesiones superficiales | C12: 53652 | D12: 158 | E12: 8138 | F12: 7596 | G12: 37760
B13: Fracturas de hueso | C13: 714 | D13: 1 | E13: 102 | F13: 69 | G13: 542
B14: Dislocaciones, esguinces y torceduras | C14: 24012 | D14: 66 | E14: 2784 | F14: 2481 | G14: 18681
B15: Amputaciones traumáticas, pérdidas de partes de cuerpo | C15: 7 | D15: 0 | E15: 1 | F15: 1 | G15: 5
B16: Conmoción y lesiones internas | C16: 10587 | D16: 28 | E16: 1332 | F16: 1234 | G16: 7993
B17: Quemaduras, escaldaduras y congelación | C17: 901 | D17: 2 | E17: 144 | F17: 62 | G17: 693
B18: Envenenamientos e infecciones | C18: 284 | D18: 1 | E18: 39 | F18: 19 | G18: 225
B19: Ahogamiento y asfixia | C19: 79 | D19: 0 | E19: 13 | F19: 8 | G19: 58
B20: Efectos del ruido, la vibración y la presión | C20: 36 | D20: 0 | E20: 9 | F20: 6 | G20: 21
B21: Efectos de las temperaturas extremas, luz y radiación | C21: 65 | D21: 0 | E21: 11 | F21: 15 | G21: 39
B22: Daños psicológicos, choques traumáticos | C22: 773 | D22: 4 | E22: 61 | F22: 98 | G22: 610
B23: Lesiones múltiples | C23: 914 | D23: 1 | E23: 70 | F23: 93 | G23: 750
B24: Infartos, derrames cerebrales y otras PNT | C24: 62 | D24: 1 | E24: 4 | F24: 6 | G24: 51
B25: Otras lesiones | C25: 2004 | D25: 4 | E25: 245 | F25: 309 | G25: 1446
B26: Fuente: IRSST

Sheet Hoja 11 (hidden)
B1: Estadística de accidentes de trabajo sin baja registrados en la Comunidad de Madrid
B2: =Índice!A6 -> 2012-2019
B3: IRSST
B8: Accidentes sin baja según sectores de actividad
C9: 2012 | E9: 2013 | G9: % Variación | H9: 2014 | J9: % Variación | K9: 2015 | M9: % Variación | N9: 2016 | P9: % Variación | Q9: 2017 | S9: % Variación | T9: 2018 | V9: % Variación | W9: 2019 | Y9: % Variación
C10: Total | D10: % | E10: Total | F10: % | G10: 2013-2012 | H10: Total | I10: % | J10: 2014-2013 | K10: Total | L10: % | M10: 2015-2014 | N10: Total | O10: % | P10: 2016-2015 | Q10: Total | R10: % | S10: 2017-2016 | T10: Total | U10: % | V10: 2018-2017 | W10: Total | X10: % | Y10: 2019-2018
B11: Total | C11: 95210 | D11: 1 | E11: 94536 | F11: 1 | G11: =(+E11/C11)-1 -> -0.007079088331 | H11: 91479 | I11: 1 | J11: =(+H11/E11)-1 -> -0.03233688753 | K11: 96152 | L11: 1 | M11: =(+K11/H11)-1 -> 0.05108276216 | N11: 99688 | O11: 1 | P11: =(+N11/K11)-1 -> 0.03677510608 | Q11: 99305 | R11: 1 | S11: =(+Q11/N11)-1 -> -0.003841986999 | T11: 99425 | U11: 1 | V11: =(+T11/Q11)-1 -> 0.001208398369 | W11: 95213 | X11: 1 | Y11: =(+W11/T11)-1 -> -0.04236359065
B12: Agricultura y ganadería | C12: 647 | D12: 0.007 | E12: 594 | F12: 0.006 | G12: =(+E12/C12)-1 -> -0.08191653787 | H12: 370 | I12: =+H12/$H$11 -> 0.004044644126 | J12: =(+H12/E12)-1 -> -0.3771043771 | K12: 304 | L12: =+K12/K$11 -> 0.003161660704 | M12: =(+K12/H12)-1 -> -0.1783783784 | N12: 278 | O12: =+N12/N$11 -> 0.002788700746 | P12: =(+N12/K12)-1 -> -0.08552631579 | Q12: 313 | R12: =+Q12/Q$11 -> 0.003151905745 | S12: =(+Q12/N12)-1 -> 0.1258992806 | T12: 296 | U12: =+T12/T$11 -> 0.002977118431 | V12: =(+T12/Q12)-1 -> -0.05431309904 | W12: 273 | X12: =+W12/W$11 -> 0.002867255522 | Y12: =(+W12/T12)-1 -> -0.0777027027
B13: Industria, energía y minería | C13: 15175 | D13: 0.159 | E13: 14609 | F13: 0.155 | G13: =(+E13/C13)-1 -> -0.03729818781 | H13: 13375 | I13: =+H13/$H$11 -> 0.1462084194 | J13: =(+H13/E13)-1 -> -0.08446847834 | K13: 14173 | L13: =+K13/K$11 -> 0.1474020301 | M13: =(+K13/H13)-1 -> 0.0596635514 | N13: 14488 | O13: =+N13/N$11 -> 0.1453334403 | P13: =(+N13/K13)-1 -> 0.02222535808 | Q13: 14234 | R13: =+Q13/Q$11 -> 0.1433361865 | S13: =(+Q13/N13)-1 -> -0.01753175041 | T13: 14515 | U13: =+T13/T$11 -> 0.1459894393 | V13: =(+T13/Q13)-1 -> 0.0197414641 | W13: 13041 | X13: =+W13/W$11 -> 0.1369665907 | Y13: =(+W13/T13)-1 -> -0.1015501206
B14: Construcción | C14: 11104 | D14: 0.117 | E14: 9361 | F14: 0.099 | G14: =(+E14/C14)-1 -> -0.1569704611 | H14: 8599 | I14: =+H14/$H$11 -> 0.09399971578 | J14: =(+H14/E14)-1 -> -0.08140155966 | K14: 9390 | L14: 0.09765787503 | M14: =(+K14/H14)-1 -> 0.0919874404 | N14: 10157 | O14: 0.1018878902 | P14: =(+N14/K14)-1 -> 0.08168264111 | Q14: 11006 | R14: 0.1108302704 | S14: =(+Q14/N14)-1 -> 0.08358767353 | T14: 11727 | U14: 0.1179482022 | V14: =(+T14/Q14)-1 -> 0.06550972197 | W14: 12118 | X14: 0.1272725363 | Y14: =(+W14/T14)-1 -> 0.03334186066
B15: Servicios | C15: 68284 | D15: 0.717 | E15: 69972 | F15: 0.74 | G15: =(+E15/C15)-1 -> 0.02472028586 | H15: 69135 | I15: =+H15/$H$11 -> 0.7557472207 | J15: =(+H15/E15)-1 -> -0.01196192763 | K15: 72285 | L15: 0.7517784341 | M15: =(+K15/H15)-1 -> 0.04556302886 | N15: 74765 | O15: 0.7499899687 | P15: =(+N15/K15)-1 -> 0.03430863941 | Q15: 73752 | R15: 0.7426816374 | S15: =(+Q15/N15)-1 -> -0.01354912058 | T15: 72887 | U15: 0.7330852401 | V15: =(+T15/Q15)-1 -> -0.0117284955 | W15: 69781 | X15: =+W15/W$11 -> 0.7328936175 | Y15: =(+W15/T15)-1 -> -0.0426139092
B17: Fuente: IRSST

Sheet Hoja 12 (hidden)
B1: Estadística de accidentes de trabajo sin baja registrados en la Comunidad de Madrid
B2: =Índice!A6 -> 2012-2019
B3: IRSST
B7: S2.1 Índices de incidencia según división de actividad económica
C9: 2012 | D9: 2013 | E9: % Variación | F9: 2014 | G9: % Variación | H9: 2015 | I9: % Variación | J9: 2016 | K9: % Variación | L9: 2017 | M9: % Variación | N9: 2018 | O9: % Variación | P9: 2019 | Q9: % Variación
B10: CNAE 09 | C10: Índices de incidencia | D10: Índices de incidencia | E10: 2013-2012 | F10: Índices de incidencia | G10: 2013-2014 | H10: Índices de incidencia | I10: 2015-2014 | J10: Índices de incidencia | K10: 2016-2015 | L10: Índices de incidencia | M10: 2017-2016 | N10: Índices de incidencia | O10: 2018-2017 | P10: Índices de incidencia | Q10: 2019-2018
B11: Total | C11: =(+'Hoja 13'!C11/'Hoja 19'!B7)*100000 -> 3900.100595 | D11: =(+'Hoja 13'!E11/'Hoja 19'!C7)*100000 -> 3980.691384 | E11: =(+D11/C11)-1 -> 0.02066377187 | F11: 3809.549978 | G11: -0.03205128205 | H11: 3871.157747 | I11: 0.01617192827 | J11: 3891.591618 | K11: =(+J11/H11)-1 -> 0.00527849092 | L11: 3743.706846 | M11: =(+L11/J11)-1 -> -0.03800110253 | N11: 3615.651215 | O11: -0.03420557118 | P11: 3019.144295 | Q11: =(+P11/N11)-1 -> -0.1649791102
B12: 01 Agricultura, ganadería, caza y servicios relacionados con las mismas | C12: =(+'Hoja 13'!C12/'Hoja 19'!B8)*100000 -> 6761.729531 | D12: =(+'Hoja 13'!E12/'Hoja 19'!C8)*100000 -> 6676.488834 | E12: =(+D12/C12)-1 -> -0.01260634527 | F12: 5596.437241 | G12: -0.149825784 | H12: 4861.247016 | I12: -0.1313675457 | J12: 4744.805326 | K12: -0.02395304936 | L12: 4553.806823 | M12: -0.04025423383 | N12: 4558.09218 | O12: 0.0009410494164 | P12: 3197.141669 | Q12: -0.2985789793
B13: 02 Silvicultura y explotación forestal | C13: =(+'Hoja 13'!C13/'Hoja 19'!B9)*100000 -> 47961.6307 | D13: =(+'Hoja 13'!E13/'Hoja 19'!C9)*100000 -> 42300.03513 | E13: -0.1180442675 | F13: 12231.1828 | G13: -0.6976744186 | H13: 13486.44026 | I13: 0.1026276436 | J13: 11574.63226 | K13: -0.1417577924 | L13: 15779.34573 | M13: 0.3632697242 | N13: 12480.30255 | O13: -0.209073509 | P13: 11660.77739 | Q13: -0.06566548881
B14: 03 Pesca y acuicultura | C14: =(+'Hoja 13'!C14/'Hoja 19'!B10)*100000 -> 2078.52194 | D14: =(+'Hoja 13'!E14/'Hoja 19'!C10)*100000 -> 4176.334107 | E14: 1.009280742 | F14: 2921.485088 | G14: -0.3333333333 | H14: 3863.490019 | I14: 0.3224404379 | J14: 2687.569989 | K14: -0.3043673012 | L14: 0 | M14: -1 | N14: 3160.667252 | O14: =IFERROR((+N14/L14)-1,"-") -> - | P14: 794.7019868 | Q14: =IFERROR((+P14/N14)-1,"-") -> -0.7485651214
B15: 05 Extracción de antracita, hulla y lignito | C15: =(+'Hoja 13'!C15/'Hoja 19'!B11)*100000 -> 0 | D15: =(+'Hoja 13'!E15/'Hoja 19'!C11)*100000 -> 7692.307692 | E15: =IFERROR((+D15/C15)-1,"-") -> - | F15: 0 | G15: -1 | H15: 24161.07383 | I15: - | J15: 19512.19512 | K15: -0.1924119241 | L15: 30000 | M15: 0.5375 | N15: 24489.79592 | O15: -0.1836734694 | P15: 0 | Q15: =(+P15/N15)-1 -> -1
B16: 06 Extracción de crudo de petróleo y gas natural | C16: =(+'Hoja 13'!C16/'Hoja 19'!B12)*100000 -> 12661.19578 | D16: =(+'Hoja 13'!E16/'Hoja 19'!C12)*100000 -> 2820.211516 | E16: -0.7772555164 | F16: 10275.92769 | G16: 3.5 | H16: 9586.056645 | I16: -0.0671346728 | J16: 5277.044855 | K16: -0.4495082754 | L16: 3862.660944 | M16: -0.2680257511 | N16: 4374.240583 | O16: 0.1324422843 | P16: 1022.146508 | Q16: -0.7663259512
B17: 07 Extracción de minerales metálicos | C17: =(+'Hoja 13'!C17/'Hoja 19'!B13)*100000 -> 80000 | D17: =(+'Hoja 13'!E17/'Hoja 19'!C13)*100000 -> 0 | E17: -1 | F17: 11538.46154 | G17: - | H17: 18045.11278 | I17: 0.5639097744 | J17: 10434.78261 | K17: -0.4217391304 | L17: 25000 | M17: 1.395833333 | N17: 13793.10345 | O17: -0.4482758621 | P17: 37113.40206 | Q17: 1.690721649
B18: 08 Otras industrias extractivas | C18: =(+'Hoja 13'!C18/'Hoja 19'!B14)*100000 -> 8293.153327 | D18: =(+'Hoja 13'!E18/'Hoja 19'!C14)*100000 -> 11734.79366 | E18: 0.414997794 | F18: 8706.166868 | G18: -0.4 | H18: 11909.87124 | I18: 0.3679810443 | J18: 9438.909282 | K18: -0.2074717612 | L18: 6963.249516 | M18: -0.2622823985 | N18: 10756.4495 | O18: 0.5447456639 | P18: 6167.551825 | Q18: -0.4266182511
B19: 09 Actividades de apoyo a las industrias extractivas | C19: =(+'Hoja 13'!C19/'Hoja 19'!B15)*100000 -> 311.809796 | D19: =(+'Hoja 13'!E19/'Hoja 19'!C15)*100000 -> 907.830034 | E19: 1.911486572 | F19: 523.5928442 | G19: -0.4166666667 | H19: 1317.233809 | I19: 1.515759762 | J19: 1085.762296 | K19: -0.1757254572 | L19: 682.3512687 | M19: -0.3715463583 | N19: 621.2098802 | O19: -0.0896039787 | P19: 1253.372791 | Q19: 1.017631772
B20: 10 Industria de la alimentación | C20: =(+'Hoja 13'!C20/'Hoja 19'!B16)*100000 -> 7521.656907 | D20: =(+'Hoja 13'!E20/'Hoja 19'!C16)*100000 -> 8084.393838 | E20: 0.07481555426 | F20: 8224.853067 | G20: 0.0115990058 | H20: 8369.031276 | I20: 0.01752957867 | J20: 8657.086725 | K20: 0.03441921047 | L20: 8033.106134 | M20: -0.07207743329 | N20: 7925.444283 | O20: -0.01340226925 | P20: 6666.020051 | Q20: -0.1589089756
B21: 11 Fabricación de bebidas | C21: =(+'Hoja 13'!C21/'Hoja 19'!B17)*100000 -> 3216.779928 | D21: =(+'Hoja 13'!E21/'Hoja 19'!C17)*100000 -> 3624.247945 | E21: 0.1266695346 | F21: 3738.219895 | G21: -0.05555555556 | H21: 3107.701272 | I21: -0.1686681471 | J21: 3585.325181 | K21: 0.1536904183 | L21: 2721.456859 | M21: -0.2409455984 | N21: 2633.504023 | O21: -0.0323182915 | P21: 2691.91436 | Q21: 0.02217970288
B22: 12 Industria del tabaco | C22: =(+'Hoja 13'!C22/'Hoja 19'!B18)*100000 -> 4104.234528 | D22: =(+'Hoja 13'!E22/'Hoja 19'!C18)*100000 -> 3610.379842 | E22: -0.1203280861 | F22: 2970.29703 | G22: -0.1875 | H22: 3823.805061 | I22: 0.2873477038 | J22: 4935.501963 | K22: 0.2907305379 | L22: 2822.975887 | M22: -0.4280265902 | N22: 2929.806714 | O22: 0.03784333672 | P22: 3074.295474 | Q22: 0.04931682323
B23: 13 Industria textil | C23: =(+'Hoja 13'!C23/'Hoja 19'!B19)*100000 -> 9250.175193 | D23: =(+'Hoja 13'!E23/'Hoja 19'!C19)*100000 -> 9920.414584 | E23: 0.07245694031 | F23: 10533.96295 | G23: 0.08208955224 | H23: 8452.672022 | I23: -0.1975791008 | J23: 9914.204004 | K23: 0.1729076886 | L23: 6989.036805 | M23: -0.2950481146 | N23: 7124.914364 | O23: 0.01944152861 | P23: 4752.564876 | Q23: -0.3329653335
B24: 14 Confección de prendas de vestir | C24: =(+'Hoja 13'!C24/'Hoja 19'!B20)*100000 -> 2923.697424 | D24: =(+'Hoja 13'!E24/'Hoja 19'!C20)*100000 -> 2295.648298 | E24: -0.2148133117 | F24: 1532.434363 | G24: -0.427184466 | H24: 2365.291912 | I24: 0.543486605 | J24: 2065.931263 | K24: -0.1265639338 | L24: 2113.674443 | M24: 0.02310976182 | N24: 2111.171616 | O24: -0.001184111452 | P24: 1221.975187 | Q24: -0.4211862373
B25: 15 Industria del cuero y del calzado | C25: =(+'Hoja 13'!C25/'Hoja 19'!B21)*100000 -> 5208.898535 | D25: =(+'Hoja 13'!E25/'Hoja 19'!C21)*100000 -> 5779.383162 | E25: 0.1095211633 | F25: 5408.816371 | G25: -0.03846153846 | H25: 6499.871034 | I25: 0.2017178231 | J25: 3380.28169 | K25: -0.4799463447 | L25: 4882.59727 | M25: 0.4444350259 | N25: 2659.619811 | O25: -0.4552858523 | P25: 3002.573635 | Q25: 0.1289484393
B26: 16 Industria de la madera y del corcho, excepto muebles; cestería y espartería | C26: =(+'Hoja 13'!C26/'Hoja 19'!B22)*100000 -> 14101.89662 | D26: =(+'Hoja 13'!E26/'Hoja 19'!C22)*100000 -> 17015.31729 | E26: 0.2065977897 | F26: 13676.41257 | G26: -0.1975308642 | H26: 14487.61795 | I26: 0.05931419316 | J26: 14534.76828 | K26: 0.003254525969 | L26: 15185.18519 | M26: 0.04474903866 | N26: 13200.86788 | O26: -0.1306745544 | P26: 9941.790631 | Q26: -0.2468835592
B27: 17 Industria del papel | C27: =(+'Hoja 13'!C27/'Hoja 19'!B23)*100000 -> 7767.969735 | D27: =(+'Hoja 13'!E27/'Hoja 19'!C23)*100000 -> 7070.742604 | E27: -0.08975667454 | F27: 7768.839966 | G27: 0.09552238806 | H27: 7070.363054 | I27: -0.08990749132 | J27: 6672.317342 | K27: -0.05629777556 | L27: 6550.88813 | M27: -0.0181989563 | N27: 7342.517052 | O27: 0.120842992 | P27: 5291.90679 | Q27: -0.279278924
B28: 18 Artes gráficas y reproducción de soportes grabados: impresión, encuadernación | C28: =(+'Hoja 13'!C28/'Hoja 19'!B24)*100000 -> 7198.999461 | D28: =(+'Hoja 13'!E28/'Hoja 19'!C24)*100000 -> 8200.440001 | E28: 0.1391082949 | F28: 7513.295901 | G28: -0.119266055 | H28: 7139.048486 | I28: -0.04981135041 | J28: 8043.836782 | K28: 0.1267379396 | L28: 7211.926589 | M28: -0.1034220629 | N28: 7124.711999 | O28: -0.01209310569 | P28: 4963.636893 | Q28: -0.3033210473
B29: 19 Coquerías y refino de petróleo | C29: =(+'Hoja 13'!C29/'Hoja 19'!B25)*100000 -> 1546.534107 | D29: =(+'Hoja 13'!E29/'Hoja 19'!C25)*100000 -> 2125.984252 | E29: 0.3746766029 | F29: 1028.571429 | G29: -0.5 | H29: 1038.261873 | I29: 0.009421265141 | J29: 2702.449094 | K29: 1.602858841 | L29: 1355.676897 | M29: -0.498352476 | N29: 1368.061037 | O29: 0.009135022947 | P29: 1971.059836 | Q29: 0.4407689299
B30: 20 Industria química | C30: =(+'Hoja 13'!C30/'Hoja 19'!B26)*100000 -> 7131.952017 | D30: =(+'Hoja 13'!E30/'Hoja 19'!C26)*100000 -> 6771.874601 | E30: -0.05048791906 | F30: 6752.662107 | G30: -0.02010050251 | H30: 6439.667891 | I30: -0.04635123317 | J30: 5163.316035 | K30: -0.1982015032 | L30: 4838.308801 | M30: -0.06294544662 | N30: 4757.425077 | O30: -0.01671735461 | P30: 4224.60029 | Q30: -0.1119985662
B31: 21 Fabricación de productos farmacéuticos | C31: =(+'Hoja 13'!C31/'Hoja 19'!B27)*100000 -> 3897.784905 | D31: =(+'Hoja 13'!E31/'Hoja 19'!C27)*100000 -> 3667.464057 | E31: -0.05909018933 | F31: 3664.011367 | G31: 0.05759162304 | H31: 3485.18646 | I31: -0.04880577283 | J31: 3328.194563 | K31: -0.04504548028 | L31: 3643.952052 | M31: 0.09487350675 | N31: 3410.046341 | O31: -0.06419011771 | P31: 2777.242044 | Q31: -0.1855705856
B32: 22 Fabricación de productos de caucho y plásticos | C32: =(+'Hoja 13'!C32/'Hoja 19'!B28)*100000 -> 8828.764685 | D32: =(+'Hoja 13'!E32/'Hoja 19'!C28)*100000 -> 8675.611681 | E32: -0.01734704789 | F32: 8486.4 | G32: -0.03493449782 | H32: 8048.492482 | I32: -0.05160109327 | J32: 7815.884477 | K32: -0.02890081665 | L32: 8411.848949 | M32: 0.07625041974 | N32: 7751.081653 | O32: -0.07855196869 | P32: 6773.249268 | Q32: -0.1261543135
B33: 23 Fabricación de otros productos minerales no metálicos | C33: =(+'Hoja 13'!C33/'Hoja 19'!B29)*100000 -> 7859.14914 | D33: =(+'Hoja 13'!E33/'Hoja 19'!C29)*100000 -> 9769.308894 | E33: 0.24304918 | F33: 7620.357136 | G33: -0.304950495 | H33: 8765.639304 | I33: 0.1502924531 | J33: 7315.208656 | K33: -0.165467754 | L33: 7426.05174 | M33: 0.01515241593 | N33: 7061.353049 | O33: -0.04911071241 | P33: 7036.498846 | Q33: -0.003519750757
B34: 24 Metalurgia; fabricación de productos de hierro, acero y ferroaleaciones | C34: =(+'Hoja 13'!C34/'Hoja 19'!B30)*100000 -> 30649.59051 | D34: =(+'Hoja 13'!E34/'Hoja 19'!C30)*100000 -> 28857.04765 | E34: -0.05848505092 | F34: 28623.98178 | G34: -0.05658198614 | H34: 26932.32955 | I34: -0.05909912339 | J34: 26614.28083 | K34: -0.0118091796 | L34: 27359.84139 | M34: 0.0280135527 | N34: 26033.98196 | O34: -0.04846005567 | P34: 22317.4322 | Q34: -0.1427576373
B35: 25 Fabricación de productos metálicos, excepto maquinaria y equipo | C35: =(+'Hoja 13'!C35/'Hoja 19'!B31)*100000 -> 14879.45304 | D35: =(+'Hoja 13'!E35/'Hoja 19'!C31)*100000 -> 15575.0259 | E35: 0.04674720633 | F35: 14534.81649 | G35: -0.09110629067 | H35: 15126.41747 | I35: 0.04070233555 | J35: 14996.09144 | K35: -0.008615789406 | L35: 13575.05702 | M35: -0.09476032029 | N35: 14149.86464 | O35: 0.04234292515 | P35: 11437.30728 | Q35: -0.1917020003
B36: 26 Fabricación de productos informáticos, electrónicos y ópticos | C36: =(+'Hoja 13'!C36/'Hoja 19'!B32)*100000 -> 2342.486382 | D36: =(+'Hoja 13'!E36/'Hoja 19'!C32)*100000 -> 2289.604372 | E36: -0.02257516227 | F36: 2450.108674 | G36: 0.08013937282 | H36: 2306.616515 | I36: -0.05856563028 | J36: 2300.075424 | K36: -0.002835795083 | L36: 2180.076523 | M36: -0.05217172425 | N36: 2821.169218 | O36: 0.2940688954 | P36: 2659.938728 | Q36: -0.05715023728
B37: 27 Fabricación de material y equipo eléctrico | C37: =(+'Hoja 13'!C37/'Hoja 19'!B33)*100000 -> 8113.201309 | D37: =(+'Hoja 13'!E37/'Hoja 19'!C33)*100000 -> 8548.247397 | E37: 0.05362200091 | F37: 7231.55588 | G37: -0.1811414392 | H37: 7725.086413 | I37: 0.06824679798 | J37: 7997.937917 | K37: 0.03532018783 | L37: 6736.27484 | M37: -0.1577485459 | N37: 6268.393172 | O37: -0.06945703355 | P37: 4987.775061 | Q37: -0.2042976687
B38: 28 Fabricación de maquinaria y equipo n.c.o.p. | C38: =(+'Hoja 13'!C38/'Hoja 19'!B34)*100000 -> 7985.505948 | D38: =(+'Hoja 13'!E38/'Hoja 19'!C34)*100000 -> 8188.634714 | E38: 0.02543718173 | F38: 8327.710843 | G38: 0.00537056928 | H38: 8768.53453 | I38: 0.05293455732 | J38: 8589.320471 | K38: -0.02043831375 | L38: 7829.595872 | M38: -0.08844990715 | N38: 7623.487564 | O38: -0.02632425889 | P38: 6218.930969 | Q38: -0.1842406881
B39: 29 Fabricación de vehículos de motor, remolques y semirremolques | C39: =(+'Hoja 13'!C39/'Hoja 19'!B35)*100000 -> 5427.685918 | D39: =(+'Hoja 13'!E39/'Hoja 19'!C35)*100000 -> 5964.512555 | E39: 0.09890525079 | F39: 4389.592522 | G39: -0.2904238619 | H39: 5503.126399 | I39: 0.2536759099 | J39: 6400.133964 | K39: 0.1629996296 | L39: 6752.294847 | M39: 0.05502398616 | N39: 6086.727989 | O39: -0.09856898615 | P39: 5856.731097 | Q39: -0.03778662247
B40: 30 Fabricación de otro material de transporte | C40: =(+'Hoja 13'!C40/'Hoja 19'!B36)*100000 -> 3261.926511 | D40: =(+'Hoja 13'!E40/'Hoja 19'!C36)*100000 -> 3343.931666 | E40: 0.02514009897 | F40: 3457.033801 | G40: 0.0365535248 | H40: 4941.945182 | I40: 0.4295333705 | J40: 4720.405655 | K40: -0.04482840621 | L40: 3637.674257 | M40: -0.2293725323 | N40: 4002.001001 | O40: 0.100153757 | P40: 3443.338451 | Q40: -0.1395958045
B41: 31 Fabricación de muebles | C41: =(+'Hoja 13'!C41/'Hoja 19'!B37)*100000 -> 10378.25325 | D41: =(+'Hoja 13'!E41/'Hoja 19'!C37)*100000 -> 10280.75253 | E41: -0.009394713765 | F41: 9316.920106 | G41: -0.1306306306 | H41: 10046.5553 | I41: 0.07831291721 | J41: 11866.22718 | K41: 0.1811239598 | L41: 11807.45431 | M41: -0.00495295311 | N41: 10532.18167 | O41: -0.1080057234 | P41: 7679.915644 | Q41: -0.2708143586
B42: 32 Otras industrias manufactureras | C42: =(+'Hoja 13'!C42/'Hoja 19'!B38)*100000 -> 8627.78188 | D42: =(+'Hoja 13'!E42/'Hoja 19'!C38)*100000 -> 7789.232532 | E42: -0.0971917649 | F42: 7966.769624 | G42: 0.04761904762 | H42: 8068.955288 | I42: 0.0128264866 | J42: 8477.866531 | K42: 0.05067709864 | L42: 10264.26896 | M42: 0.2107136769 | N42: 9830.662754 | O42: -0.0422442366 | P42: 6220.178365 | Q42: -0.3672676481
B43: 33 Reparación e instalación de maquinaria y equipo | C43: =(+'Hoja 13'!C43/'Hoja 19'!B39)*100000 -> 5719.015969 | D43: =(+'Hoja 13'!E43/'Hoja 19'!C39)*100000 -> 5726.828295 | E43: 0.001366026212 | F43: 5837.979136 | G43: 0.05052264808 | H43: 6533.8209 | I43: 0.119192232 | J43: 6925.659303 | K43: =(+J43/H43)-1 -> 0.05997079037 | L43: 7238.730301 | M43: 0.04520450451 | N43: 7738.075453 | O43: 0.06898242255 | P43: 6585.486899 | Q43: -0.1489502863
B44: 35 Suministro de energía eléctrica, gas, vapor y aire acondicionado | C44: =(+'Hoja 13'!C44/'Hoja 19'!B40)*100000 -> 3032.945202 | D44: =(+'Hoja 13'!E44/'Hoja 19'!C40)*100000 -> 3045.384134 | E44: 0.004101271587 | F44: 2856.50723 | G44: -0.07359307359 | H44: 3120.324856 | I44: 0.09235671546 | J44: 3377.058331 | K44: 0.08227780348 | L44: 3603.724295 | M44: 0.06711935115 | N44: 3647.691628 | O44: 0.01220052623 | P44: 2960.687961 | Q44: -0.1883392943
B45: 36 Captación, depuración y distribución de agua | C45: =(+'Hoja 13'!C45/'Hoja 19'!B41)*100000 -> 3659.984634 | D45: =(+'Hoja 13'!E45/'Hoja 19'!C41)*100000 -> 4088.779518 | E45: 0.1171575642 | F45: 3055.306709 | G45: -0.25 | H45: 6224.037822 | I45: 1.037123737 | J45: 3573.039791 | K45: -0.425928972 | L45: 3832.955649 | M45: 0.0727436227 | N45: 4522.945528 | O45: 0.180015096 | P45: 3961.217792 | Q45: -0.1241951143
B46: 37 Recogida y tratamiento de aguas residuales | C46: =(+'Hoja 13'!C46/'Hoja 19'!B42)*100000 -> 10471.88106 | D46: =(+'Hoja 13'!E46/'Hoja 19'!C42)*100000 -> 13327.48794 | E46: 0.2726928302 | F46: 11742.92515 | G46: -0.02631578947 | H46: 8807.669263 | I46: -0.2499595161 | J46: 9046.488901 | K46: 0.02711496437 | L46: 8682.782437 | M46: -0.04020415745 | N46: 8363.826451 | O46: -0.03673430594 | P46: 10827.06767 | Q46: 0.2945112782
B47: 38 Recogida, tratamiento y eliminación de residuos; valorización | C47: =(+'Hoja 13'!C47/'Hoja 19'!B43)*100000 -> 12230.19222 | D47: =(+'Hoja 13'!E47/'Hoja 19'!C43)*100000 -> 13803.06437 | E47: 0.1286056769 | F47: 12805.01164 | G47: -0.1488673139 | H47: 13613.89772 | I47: 0.06316949194 | J47: 13218.15926 | K47: -0.02906871172 | L47: 11843.16802 | M47: -0.104022898 | N47: 11821.498 | O47: -0.001829748845 | P47: 10552.62812 | Q47: -0.1073357949
B48: 39 Actividades de descontaminación y otros servicios de gestión de residuos | C48: =(+'Hoja 13'!C48/'Hoja 19'!B44)*100000 -> 120895.5224 | D48: =(+'Hoja 13'!E48/'Hoja 19'!C44)*100000 -> 144110.8545 | E48: 0.1920280558 | F48: 62479.33884 | G48: -0.3942307692 | H48: 70909.09091 | I48: 0.1349206349 | J48: 64907.65172 | K48: -0.08463568094 | L48: 55619.04762 | M48: -0.1431049168 | N48: 56035.76751 | O48: 0.007492395321 | P48: 16623.37662 | Q48: -0.703343465
B49: 41 Construcción de edificios | C49: =(+'Hoja 13'!C49/'Hoja 19'!B45)*100000 -> 7252.912042 | D49: =(+'Hoja 13'!E49/'Hoja 19'!C45)*100000 -> 6581.228155 | E49: -0.09260885604 | F49: 6141.920978 | G49: -0.103626943 | H49: 6112.178162 | I49: -0.004842591618 | J49: 6597.124988 | K49: 0.07934108152 | L49: 7106.832553 | M49: 0.0772620748 | N49: 7231.428222 | O49: 0.01753181437 | P49: 6299.404271 | Q49: -0.1288851831
B50: 42 Ingeniería civil | C50: =(+'Hoja 13'!C50/'Hoja 19'!B46)*100000 -> 8939.71644 | D50: =(+'Hoja 13'!E50/'Hoja 19'!C46)*100000 -> 9422.20705 | E50: 0.05397157872 | F50: 8655.325697 | G50: -0.08288043478 | H50: 7631.883249 | I50: -0.1182442445 | J50: 6978.404611 | K50: -0.08562482113 | L50: 7376.868607 | M50: 0.05709958346 | N50: 7715.727395 | O50: 0.04593531555 | P50: 6650.769403 | Q50: -0.1380243155
B51: 43 Actividades de construcción especializada | C51: =(+'Hoja 13'!C51/'Hoja 19'!B47)*100000 -> 8699.806466 | D51: =(+'Hoja 13'!E51/'Hoja 19'!C47)*100000 -> 8513.767974 | E51: -0.02138421048 | F51: 8077.499808 | G51: -0.07006584501 | H51: 8637.396873 | I51: 0.0693156396 | J51: 9046.465389 | K51: 0.0473601621 | L51: 8868.770208 | M51: -0.01964249835 | N51: 8623.674676 | O51: -0.02763579685 | P51: 6549.759315 | Q51: -0.2404909089
B52: 45 Venta y reparación de vehículos de motor y motocicletas | C52: =(+'Hoja 13'!C52/'Hoja 19'!B48)*100000 -> 8999.136164 | D52: =(+'Hoja 13'!E52/'Hoja 19'!C48)*100000 -> 9134.526176 | E52: 0.0150447787 | F52: 8650.95452 | G52: -0.05252466628 | H52: 8048.557484 | I52: -0.0696335918 | J52: 8181.295124 | K52: 0.01649210317 | L52: 7457.126876 | M52: -0.08851511128 | N52: 7205.94 | O52: -0.03368413594 | P52: 5844.013539 | Q52: -0.1890005276
B53: 46 Comercio al por mayor e intermediarios del comercio, excepto de vehículos de motor y motocicletas | C53: =(+'Hoja 13'!C53/'Hoja 19'!B49)*100000 -> 3409.117652 | D53: =(+'Hoja 13'!E53/'Hoja 19'!C49)*100000 -> 3496.751359 | E53: 0.02570568568 | F53: 3415.13624 | G53: -0.02497308934 | H53: 3464.593646 | I53: 0.01448182539 | J53: 3473.064941 | K53: 0.002445104741 | L53: 3258.108495 | M53: -0.06189243498 | N53: 3074.793557 | O53: -0.05626422132 | P53: 2541.82883 | Q53: -0.1733334995
B54: 47 Comercio al por menor, excepto de vehículos de motor y motocicletas | C54: =(+'Hoja 13'!C54/'Hoja 19'!B50)*100000 -> 4798.910377 | D54: =(+'Hoja 13'!E54/'Hoja 19'!C50)*100000 -> 4667.904565 | E54: -0.02729907458 | F54: 4580.84321 | G54: -0.008778125315 | H54: 4590.79171 | I54: 0.002171761846 | J54: 4697.188338 | K54: 0.02317609568 | L54: 4628.31372 | M54: -0.01466294574 | N54: 4248.528951 | O54: -0.08205683381 | P54: 3462.883153 | Q54: -0.1849218416
B55: 49 Transporte terrestre y por tubería | C55: =(+'Hoja 13'!C55/'Hoja 19'!B51)*100000 -> 4339.21374 | D55: =(+'Hoja 13'!E55/'Hoja 19'!C51)*100000 -> 4595.093542 | E55: 0.05896916295 | F55: 4345.06494 | G55: -0.06295559973 | H55: 4280.215473 | I55: -0.01492485578 | J55: 4283.863366 | K55: 0.0008522685246 | L55: 3916.64251 | M55: -0.08572188808 | N55: 3886.805319 | O55: -0.007618053188 | P55: 2868.892227 | Q55: -0.2618893945
B56: 50 Transporte marítimo y por vías navegables interiores | C56: =(+'Hoja 13'!C56/'Hoja 19'!B52)*100000 -> 7692.118771 | D56: =(+'Hoja 13'!E56/'Hoja 19'!C52)*100000 -> 7530.523828 | E56: -0.02100785851 | F56: 6665.072152 | G56: -0.1255230126 | H56: 7428.779518 | I56: 0.1145835106 | J56: 8870.875671 | K56: 0.1941228905 | L56: 8170.908162 | M56: -0.07890624718 | N56: 8219.178082 | O56: 0.005907534247 | P56: 7557.609112 | Q56: -0.08049089143
B57: 51 Transporte aéreo | C57: =(+'Hoja 13'!C57/'Hoja 19'!B53)*100000 -> 3007.798466 | D57: =(+'Hoja 13'!E57/'Hoja 19'!C53)*100000 -> 3070.907532 | E57: 0.02098181331 | F57: 3345.822588 | G57: 0.03243243243 | H57: 2650.33515 | I57: -0.2078673987 | J57: 2633.466737 | K57: -0.006364633767 | L57: 2204.800207 | M57: -0.1627765119 | N57: 1898.53109 | O57: -0.1389101456 | P57: 1263.477089 | Q57: -0.3344975513
B58: 52 Almacenamiento y actividades anexas al transporte | C58: =(+'Hoja 13'!C58/'Hoja 19'!B54)*100000 -> 4734.581426 | D58: =(+'Hoja 13'!E58/'Hoja 19'!C54)*100000 -> 5206.044572 | E58: 0.09957863292 | F58: 5797.597303 | G58: 0.1311369509 | H58: 5158.763253 | I58: -0.1101894486 | J58: 5127.976292 | K58: -0.005967895627 | L58: 4818.656773 | M58: -0.06031999789 | N58: 4888.181126 | O58: 0.01442816041 | P58: 3962.546373 | Q58: -0.189361795
B59: 53 Actividades postales y de correos | C59: =(+'Hoja 13'!C59/'Hoja 19'!B55)*100000 -> 7065.194948 | D59: =(+'Hoja 13'!E59/'Hoja 19'!C55)*100000 -> 5602.820664 | E59: -0.2069828638 | F59: 5356.885364 | G59: -0.0425257732 | H59: 5976.164831 | I59: 0.1156043904 | J59: 5741.096136 | K59: -0.0393343727 | L59: 5748.862329 | M59: 0.001352737001 | N59: 5566.172957 | O59: -0.0317783522 | P59: 4385.80765 | Q59: -0.2120604796
B60: 55 Servicios de alojamiento | C60: =(+'Hoja 13'!C60/'Hoja 19'!B56)*100000 -> 5427.901468 | D60: =(+'Hoja 13'!E60/'Hoja 19'!C56)*100000 -> 5219.388288 | E60: -0.03841506369 | F60: 5489.307035 | G60: 0.03771428571 | H60: 5199.93609 | I60: -0.0527153871 | J60: 4314.000221 | K60: -0.1703743764 | L60: 4580.433677 | M60: 0.06176018605 | N60: 4155.49821 | O60: -0.09277188518 | P60: 3493.541762 | Q60: -0.1592965306
B61: 56 Servicios de comidas y bebidas | C61: =(+'Hoja 13'!C61/'Hoja 19'!B57)*100000 -> 3828.054079 | D61: =(+'Hoja 13'!E61/'Hoja 19'!C57)*100000 -> 4375.359522 | E61: 0.1429722339 | F61: 4155.417259 | G61: -0.02013657853 | H61: 4260.919348 | I61: 0.02538904811 | J61: 4405.430863 | K61: 0.03391557167 | L61: 4220.977014 | M61: -0.04186965007 | N61: 4116.887093 | O61: -0.02466014879 | P61: 3442.867742 | Q61: -0.1637206307
B62: 58 Edición | C62: =(+'Hoja 13'!C62/'Hoja 19'!B58)*100000 -> 998.7554449 | D62: =(+'Hoja 13'!E62/'Hoja 19'!C58)*100000 -> 1244.50239 | E62: 0.2460531713 | F62: 1222.440515 | G62: -0.02857142857 | H62: 1170.555627 | I62: -0.04244369141 | J62: 1216.984876 | K62: 0.03966428218 | L62: 1178.175163 | M62: -0.03189005356 | N62: 1251.780377 | O62: 0.06247391394 | P62: 747.8395746 | Q62: -0.4025792476
B63: 59 Actividades cinematográficas, de vídeo y de programas de televisión, grabación de sonido y edición musical | C63: =(+'Hoja 13'!C63/'Hoja 19'!B59)*100000 -> 2429.446728 | D63: =(+'Hoja 13'!E63/'Hoja 19'!C59)*100000 -> 2190.38887 | E63: -0.09840012354 | F63: 1733.520475 | G63: -0.1889400922 | H63: 2122.070413 | I63: 0.2241392264 | J63: 2353.707755 | K63: 0.109156294 | L63: 2524.243885 | M63: 0.07245425015 | N63: 2454.676158 | O63: -0.02755982786 | P63: 1941.720092 | Q63: -0.2089709733
B64: 60 Actividades de programación y emisión de radio y televisión | C64: =(+'Hoja 13'!C64/'Hoja 19'!B60)*100000 -> 3688.134518 | D64: =(+'Hoja 13'!E64/'Hoja 19'!C60)*100000 -> 2233.791206 | E64: -0.3943303328 | F64: 2144.191793 | G64: -0.03846153846 | H64: 1854.637624 | I64: -0.13504117 | J64: 1750.281435 | K64: -0.05626769778 | L64: 1715.759468 | M64: -0.01972366643 | N64: 1868.427233 | O64: 0.08897970145 | P64: 1470.158699 | Q64: -0.2131571018
B65: 61 Telecomunicaciones | C65: =(+'Hoja 13'!C65/'Hoja 19'!B61)*100000 -> 1822.940403 | D65: =(+'Hoja 13'!E65/'Hoja 19'!C61)*100000 -> 1948.06066 | E65: 0.06863650448 | F65: 2044.415458 | G65: 0.05785123967 | H65: 2007.901953 | I65: -0.01786012005 | J65: 1977.231036 | K65: -0.01527510659 | L65: 1650.145249 | M65: -0.1654261852 | N65: 1637.642659 | O65: -0.007576660052 | P65: 1352.98097 | Q65: -0.1738240559
B66: 62 Programación, consultoría y otras actividades relacionadas con la informática | C66: =(+'Hoja 13'!C66/'Hoja 19'!B62)*100000 -> 947.3034583 | D66: =(+'Hoja 13'!E66/'Hoja 19'!C62)*100000 -> 957.1693054 | E66: 0.01041466381 | F66: 926.8485105 | G66: 0.006345177665 | H66: 851.3623307 | I66: -0.08144392421 | J66: 924.3896076 | K66: 0.08577696515 | L66: 847.4923794 | M66: -0.08318703241 | N66: 797.4857725 | O66: -0.05900537644 | P66: 701.3248229 | Q66: -0.1205801445
B67: 63 Servicios de información | C67: =(+'Hoja 13'!C67/'Hoja 19'!B63)*100000 -> 2059.607463 | D67: =(+'Hoja 13'!E67/'Hoja 19'!C63)*100000 -> 1544.608287 | E67: -0.2500472468 | F67: 1725.310381 | G67: 0.184 | H67: 1361.753636 | I67: -0.2107196183 | J67: 1262.70733 | K67: -0.07273437964 | L67: 1110.092033 | M67: -0.120863555 | N67: 923.9670781 | O67: -0.1676662381 | P67: 1017.59271 | Q67: 0.1013300516
B68: 64 Servicios financieros, excepto seguros y fondos de pensiones | C68: =(+'Hoja 13'!C68/'Hoja 19'!B64)*100000 -> 820.6850503 | D68: =(+'Hoja 13'!E68/'Hoja 19'!C64)*100000 -> 949.0377596 | E68: 0.1563970359 | F68: 1134.818843 | G68: 0.1522094926 | H68: 985.2920755 | I68: -0.1317626758 | J68: 1117.019345 | K68: 0.133693625 | L68: 1008.342547 | M68: -0.09729177766 | N68: 898.7029899 | O68: -0.1087324515 | P68: 806.910955 | Q68: -0.1021383437
B69: 65 Seguros, reaseguros y fondos de pensiones, excepto Seguridad Social obligatoria | C69: =(+'Hoja 13'!C69/'Hoja 19'!B65)*100000 -> 1189.300619 | D69: =(+'Hoja 13'!E69/'Hoja 19'!C65)*100000 -> 1294.664866 | E69: 0.08859345172 | F69: 1273.058214 | G69: -0.009933774834 | H69: 1172.507022 | I69: -0.07898397014 | J69: 1167.259201 | K69: -0.004475726135 | L69: 1129.348904 | M69: -0.03247804543 | N69: 1087.68645 | O69: -0.03689068453 | P69: 1015.221968 | Q69: -0.06662258358
B70: 66 Actividades auxiliares a los servicios financieros y a los seguros | C70: =(+'Hoja 13'!C70/'Hoja 19'!B66)*100000 -> 922.2633072 | D70: =(+'Hoja 13'!E70/'Hoja 19'!C66)*100000 -> 1016.740431 | E70: 0.1024405105 | F70: 1005.015223 | G70: 0.05590062112 | H70: 891.2436728 | I70: -0.1132038078 | J70: 908.1816009 | K70: 0.01900482281 | L70: 934.7257857 | M70: 0.02922783805 | N70: 899.2880636 | O70: -0.03791242586 | P70: 603.025585 | Q70: -0.329441133
B71: 68 Actividades inmobiliarias | C71: =(+'Hoja 13'!C71/'Hoja 19'!B67)*100000 -> 1958.993295 | D71: =(+'Hoja 13'!E71/'Hoja 19'!C67)*100000 -> 2144.619202 | E71: 0.09475576415 | F71: 1900.755902 | G71: -0.04255319149 | H71: 1963.819718 | I71: 0.033178282 | J71: 1592.351745 | K71: -0.1891558422 | L71: 1662.905159 | M71: 0.04430768109 | N71: 1382.365973 | O71: -0.1687042611 | P71: 1008.471664 | Q71: -0.2704741843
B72: 69 Actividades jurídicas y de contabilidad | C72: =(+'Hoja 13'!C72/'Hoja 19'!B68)*100000 -> 906.6193819 | D72: =(+'Hoja 13'!E72/'Hoja 19'!C68)*100000 -> 918.5123771 | E72: 0.01311795831 | F72: 882.1670626 | G72: -0.02127659574 | H72: 901.1004627 | I72: 0.02146237477 | J72: 933.3703973 | K72: 0.03581169466 | L72: 834.5887198 | M72: -0.1058333088 | N72: 798.9696185 | O72: -0.04267862783 | P72: 645.9677081 | Q72: -0.1914990343
B73: 70 Actividades de las sedes centrales; actividades de consultoría de gestión empresarial | C73: =(+'Hoja 13'!C73/'Hoja 19'!B69)*100000 -> 1053.574628 | D73: =(+'Hoja 13'!E73/'Hoja 19'!C69)*100000 -> 1021.860835 | E73: -0.03010113624 | F73: 963.3579907 | G73: 0.005128205128 | H73: 1337.250071 | I73: 0.3881133327 | J73: 1013.854009 | K73: -0.2418366385 | L73: 1014.210054 | M73: 0.0003511795227 | N73: 936.7951442 | O73: -0.07633025261 | P73: 829.8535756 | Q73: -0.1141568349
B74: 71 Servicios técnicos de arquitectura e ingeniería; ensayos y análisis técnicos | C74: =(+'Hoja 13'!C74/'Hoja 19'!B70)*100000 -> 1448.944866 | D74: =(+'Hoja 13'!E74/'Hoja 19'!C70)*100000 -> 1540.289823 | E74: 0.06304239648 | F74: 1455.91638 | G74: -0.03939745075 | H74: 1546.260543 | I74: 0.06205312646 | J74: 1493.090706 | K74: -0.03438607893 | L74: 1407.834199 | M74: -0.05710068809 | N74: 1448.142422 | O74: 0.02863137062 | P74: 1258.179778 | Q74: -0.131176769
B75: 72 Investigación y desarrollo | C75: =(+'Hoja 13'!C75/'Hoja 19'!B71)*100000 -> 2452.60259 | D75: =(+'Hoja 13'!E75/'Hoja 19'!C71)*100000 -> 2312.649535 | E75: -0.05706307893 | F75: 2186.138158 | G75: -0.07317073171 | H75: 2354.166279 | I75: 0.07686070547 | J75: 2368.417527 | K75: =(+J75/H75)-1 -> 0.006053628506 | L75: 2284.462525 | M75: =(+L75/J75)-1 -> -0.03544772025 | N75: 1975.308642 | O75: -0.1353289362 | P75: 1564.893768 | Q75: -0.2077725299
B76: 73 Publicidad y estudios de mercado | C76: =(+'Hoja 13'!C76/'Hoja 19'!B72)*100000 -> 1366.117616 | D76: =(+'Hoja 13'!E76/'Hoja 19'!C72)*100000 -> 1524.159873 | E76: =(+D76/C76)-1 -> 0.1156871526 | F76: 1155.152888 | G76: -0.2348336595 | H76: 1352.712485 | I76: 0.1710246317 | J76: 1378.240866 | K76: 0.01887199323 | L76: 1302.60977 | M76: -0.05487509347 | N76: 1324.16603 | O76: 0.01654851743 | P76: 904.6882236 | Q76: -0.3167864127
B77: 74 Otras actividades profesionales, científicas y técnicas | C77: =(+'Hoja 13'!C77/'Hoja 19'!B73)*100000 -> 5179.558011 | D77: =(+'Hoja 13'!E77/'Hoja 19'!C73)*100000 -> 4762.423952 | E77: -0.0805346824 | F77: 4438.035132 | G77: -0.04532967033 | H77: 3049.139891 | I77: -0.3129527369 | J77: 2782.6212 | K77: -0.08740782649 | L77: 2901.288004 | M77: 0.04264569089 | N77: 2666.666667 | O77: -0.08086799277 | P77: 1522.055284 | Q77: -0.4292292685
B78: 75 Actividades veterinarias | C78: =(+'Hoja 13'!C78/'Hoja 19'!B74)*100000 -> 908.999091 | D78: =(+'Hoja 13'!E78/'Hoja 19'!C74)*100000 -> 1413.982718 | E78: 0.555538099 | F78: 1338.849891 | G78: 0 | H78: 1507.407087 | I78: 0.1258970083 | J78: 2422.035776 | K78: 0.6067562625 | L78: 2848.336699 | M78: 0.1760093416 | N78: 2619.404444 | O78: -0.08037401447 | P78: 1573.753001 | Q78: -0.3991943457
B79: 77Actividades de alquiler | C79: =(+'Hoja 13'!C79/'Hoja 19'!B75)*100000 -> 1827.786748 | D79: =(+'Hoja 13'!E79/'Hoja 19'!C75)*100000 -> 1967.044055 | E79: 0.07618903419 | F79: 1778.527698 | G79: -0.2427184466 | H79: 2248.633477 | I79: 0.2643230009 | J79: 2250.626244 | K79: 0.0008862127824 | L79: 2421.796165 | M79: 0.07605435218 | N79: 2475.857099 | O79: 0.02232266035 | P79: 2247.359047 | Q79: =(+P79/N79)-1 -> -0.09229048463
B80: 78 Actividades relacionadas con el empleo | C80: =(+'Hoja 13'!C80/'Hoja 19'!B76)*100000 -> 3885.828289 | D80: =(+'Hoja 13'!E80/'Hoja 19'!C76)*100000 -> 4431.293644 | E80: 0.1403729951 | F80: 4547.743915 | G80: 0.1495726496 | H80: 4521.272588 | I80: -0.005820760283 | J80: 5207.991873 | K80: 0.1518862824 | L80: 4870.113438 | M80: -0.06487691275 | N80: 5273.227786 | O80: 0.08277309205 | P80: 5430.834994 | Q80: 0.02988818499
B81: 79 Actividades de agencias de viajes, operadores turísticos, servicios de reservas y act. relacionadas con los mismos | C81: =(+'Hoja 13'!C81/'Hoja 19'!B77)*100000 -> 1422.442004 | D81: =(+'Hoja 13'!E81/'Hoja 19'!C77)*100000 -> 1079.405873 | E81: -0.2411600121 | F81: 973.9381369 | G81: -0.09243697479 | H81: 1037.683935 | I81: 0.06545158865 | J81: 1011.572388 | K81: -0.02516329509 | L81: 1267.504325 | M81: 0.253004076 | N81: 1237.322135 | O81: -0.02381229784 | P81: 1243.594551 | Q81: 0.005069347392
B82: 80 Actividades de seguridad e investigación | C82: =(+'Hoja 13'!C82/'Hoja 19'!B78)*100000 -> 4575.816396 | D82: =(+'Hoja 13'!E82/'Hoja 19'!C78)*100000 -> 4262.249177 | E82: -0.06852705458 | F82: 4456.931043 | G82: 0.04771784232 | H82: 4133.051469 | I82: -0.07266874235 | J82: 3908.284132 | K82: -0.05438290293 | L82: 3746.547652 | M82: -0.04138298913 | N82: 3671.950022 | O82: -0.01991103202 | P82: 3327.826292 | Q82: -0.09371688826
B83: 81 Servicios a edificios y actividades de jardinería | C83: =(+'Hoja 13'!C83/'Hoja 19'!B79)*100000 -> 4578.204397 | D83: =(+'Hoja 13'!E83/'Hoja 19'!C79)*100000 -> 4915.772456 | E83: 0.07373372396 | F83: 5306.821141 | G83: 0.0881377022 | H83: 5073.516606 | I83: -0.04396314267 | J83: 5124.621992 | K83: 0.01007297107 | L83: 4940.093526 | M83: -0.03600821028 | N83: 4688.504353 | O83: -0.05092801815 | P83: 3869.400443 | Q83: -0.1747047349
B84: 82 Actividades administrativas de oficina y otras actividades auxiliares a las empresas | C84: =(+'Hoja 13'!C84/'Hoja 19'!B80)*100000 -> 3950.982211 | D84: =(+'Hoja 13'!E84/'Hoja 19'!C80)*100000 -> 4065.061195 | E84: 0.02887357577 | F84: 3564.390627 | G84: -0.01616245338 | H84: 3796.159817 | I84: 0.06502351016 | J84: 3663.974152 | K84: -0.03482089038 | L84: 3578.820912 | M84: -0.02324067701 | N84: 3323.732822 | O84: -0.07127713182 | P84: 2698.549341 | Q84: -0.1880967921
B85: 84 Administración Pública y defensa; Seguridad Social obligatoria | C85: =(+'Hoja 13'!C85/'Hoja 19'!B81)*100000 -> 3919.730861 | D85: =(+'Hoja 13'!E85/'Hoja 19'!C81)*100000 -> 4798.801705 | E85: 0.224268164 | F85: 4685.9505 | G85: -0.06878661088 | H85: 5345.35308 | I85: 0.1407190665 | J85: 4899.796563 | K85: -0.08335399181 | L85: 4079.295293 | M85: -0.1674561912 | N85: 3676.537419 | O85: -0.0987322184 | P85: 3134.606583 | Q85: -0.1474025078
B86: 85 Educación | C86: =(+'Hoja 13'!C86/'Hoja 19'!B82)*100000 -> 1741.280401 | D86: =(+'Hoja 13'!E86/'Hoja 19'!C82)*100000 -> 1832.832321 | E86: 0.05257735628 | F86: 1688.272044 | G86: -0.01388321764 | H86: 1746.706347 | I86: 0.03461189987 | J86: 1698.998324 | K86: -0.02731313265 | L86: 1510.360272 | M86: -0.111028981 | N86: 1538.247195 | O86: 0.01846375579 | P86: 1316.783537 | Q86: -0.1439714364
B87: 86 Actividades sanitarias | C87: =(+'Hoja 13'!C87/'Hoja 19'!B83)*100000 -> 4194.188362 | D87: =(+'Hoja 13'!E87/'Hoja 19'!C83)*100000 -> 4400.167929 | E87: 0.04911070978 | F87: 4109.050535 | G87: -0.05202619005 | H87: 4271.863821 | I87: 0.03962309183 | J87: 4414.383023 | K87: 0.0333622999 | L87: 4494.559989 | M87: 0.01816266632 | N87: 4451.331745 | O87: -0.00961790341 | P87: 3957.15796 | Q87: -0.1110170649
B88: 87 Asistencia en establecimientos residenciales | C88: =(+'Hoja 13'!C88/'Hoja 19'!B84)*100000 -> 4472.837577 | D88: =(+'Hoja 13'!E88/'Hoja 19'!C84)*100000 -> 5428.540398 | E88: 0.2136681256 | F88: 5673.631355 | G88: 0.08231259187 | H88: 5988.58844 | I88: 0.05551243369 | J88: 6421.804566 | K88: 0.07234027358 | L88: 5969.594123 | M88: -0.07041797016 | N88: 5677.295902 | O88: -0.04896450509 | P88: 5411.919289 | Q88: -0.04674348787
B89: 88 Actividades de servicios sociales sin alojamiento | C89: =(+'Hoja 13'!C89/'Hoja 19'!B85)*100000 -> 3858.66595 | D89: =(+'Hoja 13'!E89/'Hoja 19'!C85)*100000 -> 4283.10838 | E89: 0.1099971948 | F89: 4433.251345 | G89: 0.0885466795 | H89: 4525.183145 | I89: 0.02073687964 | J89: 4689.959081 | K89: 0.03641309779 | L89: 5112.64499 | M89: 0.09012571363 | N89: 4669.867153 | O89: -0.08660445581 | P89: 4367.728704 | Q89: -0.06469958123
B90: 90 Actividades de creación, artísticas y espectáculos | C90: =(+'Hoja 13'!C90/'Hoja 19'!B86)*100000 -> 5786.699563 | D90: =(+'Hoja 13'!E90/'Hoja 19'!C86)*100000 -> 7942.14637 | E90: 0.3724829298 | F90: 6976.979112 | G90: -0.09440559441 | H90: 7501.455024 | I90: 0.07517234945 | J90: 7417.207591 | K90: -0.01123081222 | L90: 6560.412932 | M90: -0.1155144505 | N90: 6241.843469 | O90: -0.0485593614 | P90: 3847.5061 | Q90: -0.3835945872
B91: 91 Actividades de bibliotecas, archivos, museos y otras actividades culturales | C91: =(+'Hoja 13'!C91/'Hoja 19'!B87)*100000 -> 3431.805044 | D91: =(+'Hoja 13'!E91/'Hoja 19'!C87)*100000 -> 3723.908144 | E91: 0.08511646074 | F91: 4579.574844 | G91: 0.2736842105 | H91: 4013.13825 | I91: -0.1236875939 | J91: 3887.614679 | K91: -0.03127815777 | L91: 2919.628212 | M91: -0.2489923891 | N91: 2991.64567 | O91: 0.02466665375 | P91: 3303.04728 | Q91: 0.1040904052
B92: 92 Actividades de juegos de azar y apuestas | C92: =(+'Hoja 13'!C92/'Hoja 19'!B88)*100000 -> 2918.869614 | D92: =(+'Hoja 13'!E92/'Hoja 19'!C88)*100000 -> 3085.082301 | E92: 0.05694419742 | F92: 2942.675159 | G92: -0.03144654088 | H92: 2666.843572 | I92: -0.09373497671 | J92: 2285.376545 | K92: -0.1430406457 | L92: 2611.677392 | M92: 0.1427777175 | N92: 2260.764518 | O92: -0.1343630247 | P92: 2075.869853 | Q92: -0.08178413246
B93: 93 Actividades deportivas, recreativas y de entretenimiento | C93: =(+'Hoja 13'!C93/'Hoja 19'!B89)*100000 -> 4351.025476 | D93: =(+'Hoja 13'!E93/'Hoja 19'!C89)*100000 -> 4908.523706 | E93: 0.1281303071 | F93: 4484.945394 | G93: -0.04369414101 | H93: 4568.643215 | I93: 0.01866194891 | J93: 5074.216787 | K93: 0.1106616445 | L93: 4422.8092 | M93: -0.1283759867 | N93: 3936.893906 | O93: -0.1098657599 | P93: 3042.25756 | Q93: -0.2272442103
B94: 94 Actividades asociativas | C94: =(+'Hoja 13'!C94/'Hoja 19'!B90)*100000 -> 1360.319609 | D94: =(+'Hoja 13'!E94/'Hoja 19'!C90)*100000 -> 1486.937666 | E94: 0.09307963785 | F94: 1330.427801 | G94: -0.1049382716 | H94: 1339.114621 | I94: 0.006529343371 | J94: 1572.271948 | K94: 0.1741130469 | L94: 1353.538326 | M94: -0.1391194588 | N94: 1399.134707 | O94: 0.03368680476 | P94: 1011.086848 | Q94: -0.2773484618
B95: 95 Reparación de ordenadores, efectos personales y artículos de uso doméstico | C95: =(+'Hoja 13'!C95/'Hoja 19'!B91)*100000 -> 4269.233788 | D95: =(+'Hoja 13'!E95/'Hoja 19'!C91)*100000 -> 4308.606601 | E95: 0.009222454237 | F95: 4266.253652 | G95: -0.004926108374 | H95: 3736.071116 | I95: -0.1242735617 | J95: 3809.94088 | K95: 0.01977204458 | L95: 4283.601223 | M95: 0.124322229 | N95: 4226.144581 | O95: -0.01341316312 | P95: 2654.867257 | Q95: -0.3717992355
B96: 96 Otros servicios personales | C96: =(+'Hoja 13'!C96/'Hoja 19'!B92)*100000 -> 6421.364119 | D96: =(+'Hoja 13'!E96/'Hoja 19'!C92)*100000 -> 7002.743265 | E96: 0.09053826185 | F96: 6651.722584 | G96: -0.02492522433 | H96: 6916.360357 | I96: 0.03978484812 | J96: 5828.485183 | K96: -0.1572901234 | L96: 5504.531013 | M96: -0.05558119461 | N96: 4868.653886 | O96: -0.1155188564 | P96: 3196.432623 | Q96: -0.34346686
B97: 97 Actividades de los hogares como empleadores de personal doméstico | C97: =(+'Hoja 13'!C97/'Hoja 19'!B93)*100000 -> 191.6914442 | D97: =(+'Hoja 13'!E97/'Hoja 19'!C93)*100000 -> 214.8928362 | E97: 0.1210350939 | F97: 192.6754265 | G97: -0.07604562738 | H97: 181.0439682 | I97: -0.06036814607 | J97: 205.8071662 | K97: 0.1367800224 | L97: 239.9516939 | M97: 0.1659054363 | N97: 205.3779335 | O97: -0.1440863361 | P97: 181.8804047 | Q97: -0.1144111657
B98: 99 Actividades de organizaciones y organismos extraterritoriales | C98: =(+'Hoja 13'!C98/'Hoja 19'!B94)*100000 -> 1261.195394 | D98: =(+'Hoja 13'!E98/'Hoja 19'!C94)*100000 -> 1472.891184 | E98: 0.167853285 | F98: 1971.059836 | G98: 0.4482758621 | H98: 1740.856685 | I98: -0.116791559 | J98: 1501.932634 | K98: -0.1372451006 | L98: 3257.211103 | M98: 1.168679893 | N98: 3648.06867 | O98: 0.1199976156 | P98: 3858.660308 | Q98: 0.05772688438
B99: Fuente; IRSST

Sheet Hoja 13 (hidden)
B1: Estadística de accidentes de trabajo sin baja registrados en la Comunidad de Madrid
B2: =Índice!A6 -> 2012-2019
B3: IRSST
B7: S2. Accidentes en jornada de trabajo sin baja según división de actividad económica
C9: 2012 | E9: 2013 | G9: % Variación | H9: 2014 | J9: % Variación | K9: 2015 | M9: % Variación | N9: 2016 | P9: % Variación | Q9: 2017 | S9: % Variación | T9: 2018 | V9: % Variación | W9: 2019 | Y9: % Variación
B10: CNAE 09 | C10: Total | D10: % | E10: Total | F10: % | G10: 2013-2012 | H10: Total | I10: % | J10: 2014-2013 | K10: Total | L10: % | M10: 2015-2014 | N10: Total | O10: % | P10: 2016-2015 | Q10: Total | R10: % | S10: 2016-2017 | T10: Total | U10: % | V10: 2017-2018 | W10: Total | X10: % | Y10: 2018-2019
B11: Total | C11: 95210 | D11: 100 | E11: =SUM(E12:E98) -> 94536 | F11: 100 | G11: =(+E11/C11)-1 -> -0.007079088331 | H11: 91479 | I11: 100 | J11: =(+H11/E11)-1 -> -0.03233688753 | K11: 96152 | L11: 100 | M11: =(+K11/H11)-1 -> 0.05108276216 | N11: 99688 | O11: 100 | P11: =(+N11/K11)-1 -> 0.03677510608 | Q11: 99305 | R11: 100 | S11: =(+Q11/N11)-1 -> -0.003841986999 | T11: 99425 | U11: 100 | V11: =IFERROR((+T11/Q11)-1,"-") -> 0.001208398369 | W11: 95213 | X11: 100 | Y11: =IFERROR((+W11/T11)-1,"-") -> -0.04236359065
B12: 01 Agricultura, ganadería, caza y servicios relacionados con las mismas | C12: 294 | D12: 0.3 | E12: 287 | F12: 0.3 | G12: =(+E12/C12)-1 -> -0.02380952381 | H12: 270 | I12: 0.2951497065 | J12: =(+H12/E12)-1 -> -0.05923344948 | K12: 207 | L12: 0.2152841335 | M12: =(+K12/H12)-1 -> -0.2333333333 | N12: 196 | O12: 0.2 | P12: =(+N12/K12)-1 -> -0.05314009662 | Q12: 190 | R12: 0.2 | S12: =(+Q12/N12)-1 -> -0.0306122449 | T12: 194 | U12: 0.2 | V12: =IFERROR((+T12/Q12)-1,"-") -> 0.02105263158 | W12: 173 | X12: 0.2 | Y12: =IFERROR((+W12/T12)-1,"-") -> -0.1082474227
B13: 02 Silvicultura y explotación forestal | C13: 350 | D13: 0.4 | E13: 301 | F13: 0.3 | G13: -0.14 | H13: 96 | I13: 0.1049421179 | J13: =(+H13/E13)-1 -> -0.6810631229 | K13: 92 | L13: 0.09568183709 | M13: -0.04166666667 | N13: 80 | O13: 0.1 | P13: =(+N13/K13)-1 -> -0.1304347826 | Q13: 123 | R13: 0.1 | S13: =(+Q13/N13)-1 -> 0.5375 | T13: 99 | U13: 0.1 | V13: -0.1951219512 | W13: 99 | X13: 0.1 | Y13: 0
B14: 03 Pesca y acuicultura | C14: 3 | D14: 0 | E14: 6 | F14: 0 | G14: 1 | H14: 4 | I14: 0.004372588244 | J14: =(+H14/E14)-1 -> -0.3333333333 | K14: 5 | L14: 0.005200099842 | M14: 0.25 | N14: 2 | O14: 0 | P14: =(+N14/K14)-1 -> -0.6 | Q14: 0 | R14: 0 | S14: =(+Q14/N14)-1 -> -1 | T14: 3 | U14: 0 | V14: - | W14: 1 | X14: 0 | Y14: -0.6666666667
B15: 05 Extracción de antracita, hulla y lignito | C15: 0 | D15: 0 | E15: 1 | F15: 0 | G15: =IFERROR((+E15/C15)-1,"-") -> - | H15: - | I15: - | J15: - | K15: 3 | L15: 0.003120059905 | M15: - | N15: 2 | O15: 0 | P15: - | Q15: 2 | R15: 0 | S15: - | T15: 1 | U15: 0 | V15: -0.5 | W15: 0 | X15: 0 | Y15: -1
B16: 06 Extracción de crudo de petróleo y gas natural | C16: 9 | D16: 0 | E16: 2 | F16: 0 | G16: -0.7777777778 | H16: 10 | I16: 0.01093147061 | J16: =(+H16/E16)-1 -> 4 | K16: 11 | L16: 0.01144021965 | M16: 0.1 | N16: 5 | O16: 0 | P16: =(+N16/K16)-1 -> -0.5454545455 | Q16: 3 | R16: 0 | S16: =(+Q16/N16)-1 -> -0.4 | T16: 3 | U16: 0 | V16: 0 | W16: 2 | X16: 0 | Y16: -0.3333333333
B17: 07 Extracción de minerales metálicos | C17: 1 | D17: 0 | E17: 0 | F17: 0 | G17: -1 | H17: 1 | I17: 0.001093147061 | J17: - | K17: 2 | L17: 0.002080039937 | M17: 1 | N17: 1 | O17: 0 | P17: -0.5 | Q17: 2 | R17: 0 | S17: 1 | T17: 1 | U17: 0 | V17: -0.5 | W17: 3 | X17: 0 | Y17: 2
B18: 08 Otras industrias extractivas | C18: 43 | D18: 0 | E18: 50 | F18: 0.1 | G18: 0.1627906977 | H18: 32 | I18: 0.03498070595 | J18: =(+H18/E18)-1 -> -0.36 | K18: 37 | L18: 0.03848073883 | M18: 0.15625 | N18: 30 | O18: 0 | P18: -0.1891891892 | Q18: 24 | R18: 0 | S18: -0.2 | T18: 41 | U18: 0 | V18: 0.7083333333 | W18: 30 | X18: 0 | Y18: -0.2682926829
B19: 09 Actividades de apoyo a las industrias extractivas | C19: 4 | D19: 0 | E19: 12 | F19: 0 | G19: 2 | H19: 7 | I19: 0.007652029428 | J19: -0.4166666667 | K19: 18 | L19: 0.01872035943 | M19: 1.571428571 | N19: 14 | O19: 0 | P19: -0.2222222222 | Q19: 8 | R19: 0 | S19: -0.4285714286 | T19: 7 | U19: 0 | V19: -0.125 | W19: 12 | X19: 0 | Y19: 0.7142857143
B20: 10 Industria de la alimentación | C20: 1170 | D20: 1.2 | E20: 1207 | F20: 1.3 | G20: 0.03162393162 | H20: 1221 | I20: 1.334732562 | J20: 0.0115990058 | K20: 1265 | L20: 1.31562526 | M20: 0.03603603604 | N20: 1355 | O20: 1.4 | P20: 0.07114624506 | Q20: 1320 | R20: 1.3 | S20: -0.0258302583 | T20: 1355 | U20: 1.4 | V20: 0.02651515152 | W20: 1260 | X20: 1.3 | Y20: -0.07011070111
B21: 11 Fabricación de bebidas | C21: 114 | D21: 0.1 | E21: 126 | F21: 0.1 | G21: 0.1052631579 | H21: 115 | I21: 0.125711912 | J21: -0.0873015873 | K21: 80 | L21: 0.08320159747 | M21: -0.3043478261 | N21: 86 | O21: 0.1 | P21: 0.075 | Q21: 67 | R21: 0.1 | S21: -0.2209302326 | T21: 66 | U21: 0.1 | V21: -0.01492537313 | W21: 68 | X21: 0.1 | Y21: 0.0303030303
B22: 12 Industria del tabaco | C22: 21 | D22: 0 | E22: 16 | F22: 0 | G22: -0.2380952381 | H22: 11 | I22: 0.01202461767 | J22: -0.3125 | K22: 17 | L22: 0.01768033946 | M22: 0.5454545455 | N22: 22 | O22: 0 | P22: 0.2941176471 | Q22: 12 | R22: 0 | S22: -0.4545454545 | T22: 12 | U22: 0 | V22: 0 | W22: 12 | X22: 0 | Y22: 0
B23: 13 Industria textil | C23: 132 | D23: 0.1 | E23: 134 | F23: 0.1 | G23: 0.01515151515 | H23: 132 | I23: 0.1442954121 | J23: -0.01492537313 | K23: 121 | L23: 0.1258424162 | M23: -0.08333333333 | N23: 156 | O23: 0.2 | P23: 0.2892561983 | Q23: 119 | R23: 0.1 | S23: -0.2371794872 | T23: 130 | U23: 0.1 | V23: 0.09243697479 | W23: 105 | X23: 0.1 | Y23: -0.1923076923
B24: 14 Confección de prendas de vestir | C24: 148 | D24: 0.2 | E24: 103 | F24: 0.1 | G24: -0.3040540541 | H24: 55 | I24: 0.06012308836 | J24: -0.4660194175 | K24: 92 | L24: 0.09568183709 | M24: 0.6727272727 | N24: 81 | O24: 0.1 | P24: -0.1195652174 | Q24: 82 | R24: 0.1 | S24: 0.01234567901 | T24: 84 | U24: 0.1 | V24: 0.0243902439 | W24: 60 | X24: 0.1 | Y24: -0.2857142857
B25: 15 Industria del cuero y del calzado | C25: 48 | D25: 0.1 | E25: 52 | F25: 0.1 | G25: 0.08333333333 | H25: 49 | I25: 0.05356420599 | J25: -0.05769230769 | K25: 63 | L25: 0.06552125801 | M25: 0.2857142857 | N25: 33 | O25: 0 | P25: -0.4761904762 | Q25: 48 | R25: 0 | S25: 0.4545454545 | T25: 26 | U25: 0 | V25: -0.4583333333 | W25: 35 | X25: 0 | Y25: 0.3461538462
B26: 16 Industria de la madera y del corcho, excepto muebles; cestería y espartería | C26: 316 | D26: 0.3 | E26: 324 | F26: 0.3 | G26: 0.0253164557 | H26: 258 | I26: 0.2820319418 | J26: -0.2037037037 | K26: 293 | L26: 0.3047258507 | M26: 0.1356589147 | N26: 305 | O26: 0.3 | P26: 0.0409556314 | Q26: 328 | R26: 0.3 | S26: 0.07540983607 | T26: 289 | U26: 0.3 | V26: -0.118902439 | W26: 269 | X26: 0.3 | Y26: -0.06920415225
B27: 17 Industria del papel | C27: 385 | D27: 0.4 | E27: 335 | F27: 0.4 | G27: -0.1298701299 | H27: 367 | I27: 0.4011849714 | J27: 0.09552238806 | K27: 346 | L27: 0.3598469091 | M27: -0.05722070845 | N27: 328 | O27: 0.3 | P27: -0.05202312139 | Q27: 331 | R27: 0.3 | S27: 0.009146341463 | T27: 366 | U27: 0.4 | V27: 0.1057401813 | W27: 264 | X27: 0.3 | Y27: -0.2786885246
B28: 18 Artes gráficas y reproducción de soportes grabados: impresión, encuadernación | C28: 1180 | D28: 1.2 | E28: 1199 | F28: 1.3 | G28: 0.01610169492 | H28: 1056 | I28: 1.154363296 | J28: -0.119266055 | K28: 993 | L28: 1.032739829 | M28: -0.05965909091 | N28: 1134 | O28: 1.1 | P28: 0.1419939577 | Q28: 1005 | R28: 1 | S28: -0.1137566138 | T28: 1005 | U28: 1 | V28: 0 | W28: 852 | X28: 0.9 | Y28: -0.152238806
B29: 19 Coquerías y refino de petróleo | C29: 14 | D29: 0 | E29: 18 | F29: 0 | G29: 0.2857142857 | H29: 9 | I29: 0.00983832355 | J29: -0.5 | K29: 9 | L29: 0.009360179715 | M29: 0 | N29: 24 | O29: 0 | P29: 1.666666667 | Q29: 12 | R29: 0 | S29: -0.5 | T29: 13 | U29: 0 | V29: 0.08333333333 | W29: 21 | X29: 0 | Y29: 0.6153846154
B30: 20 Industria química | C30: 436 | D30: 0.5 | E30: 398 | F30: 0.4 | G30: -0.0871559633 | H30: 390 | I30: 0.4263273538 | J30: -0.02010050251 | K30: 371 | L30: 0.3858474083 | M30: -0.04871794872 | N30: 296 | O30: 0.3 | P30: -0.2021563342 | Q30: 292 | R30: 0.3 | S30: -0.01351351351 | T30: 295 | U30: 0.3 | V30: 0.0102739726 | W30: 277 | X30: 0.3 | Y30: -0.06101694915
B31: 21 Fabricación de productos farmacéuticos | C31: 399 | D31: 0.4 | E31: 382 | F31: 0.4 | G31: -0.04260651629 | H31: 399 | I31: 0.4361656774 | J31: 0.0445026178 | K31: 388 | L31: 0.4035277477 | M31: -0.02756892231 | N31: 385 | O31: 0.4 | P31: -0.007731958763 | Q31: 438 | R31: 0.4 | S31: 0.1376623377 | T31: 436 | U31: 0.4 | V31: -0.004566210046 | W31: 384 | X31: 0.4 | Y31: -0.119266055
B32: 22 Fabricación de productos de caucho y plásticos | C32: 496 | D32: 0.5 | E32: 458 | F32: 0.5 | G32: -0.07661290323 | H32: 442 | I32: 0.483171001 | J32: -0.03493449782 | K32: 426 | L32: 0.4430485065 | M32: -0.03619909502 | N32: 433 | O32: 0.4 | P32: 0.01643192488 | Q32: 465 | R32: 0.5 | S32: 0.07390300231 | T32: 421 | U32: 0.4 | V32: -0.09462365591 | W32: 376 | X32: 0.4 | Y32: -0.106888361
B33: 23 Fabricación de otros productos minerales no metálicos | C33: 478 | D33: 0.5 | E33: 505 | F33: 0.5 | G33: 0.05648535565 | H33: 351 | I33: 0.3836946184 | J33: -0.304950495 | K33: 383 | L33: 0.3983276479 | M33: 0.09116809117 | N33: 311 | O33: 0.3 | P33: -0.1879895561 | Q33: 327 | R33: 0.3 | S33: 0.05144694534 | T33: 312 | U33: 0.3 | V33: -0.04587155963 | W33: 343 | X33: 0.4 | Y33: 0.09935897436
B34: 24 Metalurgia; fabricación de productos de hierro, acero y ferroaleaciones | C34: 1051 | D34: 1.1 | E34: 866 | F34: 0.9 | G34: -0.1760228354 | H34: 816 | I34: 0.8920080018 | J34: -0.05773672055 | K34: 793 | L34: 0.8247358349 | M34: -0.02818627451 | N34: 779 | O34: 0.8 | P34: -0.01765447667 | Q34: 828 | R34: 0.8 | S34: 0.06290115533 | T34: 844 | U34: 0.8 | V34: 0.0193236715 | W34: 777 | X34: 0.8 | Y34: -0.07938388626
B35: 25 Fabricación de productos metálicos, excepto maquinaria y equipo | C35: 2481 | D35: 2.6 | E35: 2305 | F35: 2.4 | G35: -0.07093913744 | H35: 2093 | I35: 2.287956799 | J35: -0.09197396963 | K35: 2251 | L35: 2.341084949 | M35: 0.07548972766 | N35: 2350 | O35: 2.4 | P35: 0.04398045313 | Q35: 2247 | R35: 2.3 | S35: -0.04382978723 | T35: 2413 | U35: 2.4 | V35: 0.07387627948 | W35: 2207 | X35: 2.3 | Y35: -0.08537090758
B36: 26 Fabricación de productos informáticos, electrónicos y ópticos | C36: 315 | D36: 0.3 | E36: 287 | F36: 0.3 | G36: -0.08888888889 | H36: 310 | I36: 0.3388755889 | J36: 0.08013937282 | K36: 301 | L36: 0.3130460105 | M36: -0.02903225806 | N36: 277 | O36: 0.3 | P36: -0.07973421927 | Q36: 264 | R36: 0.3 | S36: -0.04693140794 | T36: 270 | U36: 0.3 | V36: 0.02272727273 | W36: 246 | X36: 0.3 | Y36: -0.08888888889
B37: 27 Fabricación de material y equipo eléctrico | C37: 409 | D37: 0.4 | E37: 403 | F37: 0.4 | G37: -0.01466992665 | H37: 330 | I37: 0.3607385302 | J37: -0.1811414392 | K37: 352 | L37: 0.3660870289 | M37: 0.06666666667 | N37: 362 | O37: 0.4 | P37: 0.02840909091 | Q37: 300 | R37: 0.3 | S37: -0.1712707182 | T37: 284 | U37: 0.3 | V37: -0.05333333333 | W37: 238 | X37: 0.2 | Y37: -0.161971831
B38: 28 Fabricación de maquinaria y equipo n.c.o.p. | C38: 966 | D38: 1 | E38: 931 | F38: 1 | G38: -0.03623188406 | H38: 936 | I38: 1.023185649 | J38: 0.00537056928 | K38: 993 | L38: 1.032739829 | M38: 0.0608974359 | N38: 1015 | O38: 1 | P38: 0.0221550856 | Q38: 975 | R38: 1 | S38: -0.039408867 | T38: 943 | U38: 0.9 | V38: -0.03282051282 | W38: 809 | X38: 0.8 | Y38: -0.1420996819
B39: 29 Fabricación de vehículos de motor, remolques y semirremolques | C39: 575 | D39: 0.6 | E39: 637 | F39: 0.7 | G39: 0.107826087 | H39: 452 | I39: 0.4941024716 | J39: -0.2904238619 | K39: 553 | L39: 0.5751310425 | M39: 0.2234513274 | N39: 637 | O39: 0.6 | P39: 0.1518987342 | Q39: 651 | R39: 0.7 | S39: 0.02197802198 | T39: 579 | U39: 0.6 | V39: -0.1105990783 | W39: 530 | X39: 0.6 | Y39: -0.08462867012
B40: 30 Fabricación de otro material de transporte | C40: 369 | D40: 0.4 | E40: 383 | F40: 0.4 | G40: 0.0379403794 | H40: 397 | I40: 0.4339793832 | J40: 0.0365535248 | K40: 537 | L40: 0.558490723 | M40: 0.3526448363 | N40: 557 | O40: 0.6 | P40: 0.03724394786 | Q40: 471 | R40: 0.5 | S40: -0.1543985637 | T40: 560 | U40: 0.6 | V40: 0.1889596603 | W40: 499 | X40: 0.5 | Y40: -0.1089285714
B41: 31 Fabricación de muebles | C41: 538 | D41: 0.6 | E41: 444 | F41: 0.5 | G41: -0.1747211896 | H41: 386 | I41: 0.4219547656 | J41: -0.1306306306 | K41: 428 | L41: 0.4451285465 | M41: 0.1088082902 | N41: 534 | O41: 0.5 | P41: 0.2476635514 | Q41: 547 | R41: 0.6 | S41: 0.02434456929 | T41: 504 | U41: 0.5 | V41: -0.07861060329 | W41: 437 | X41: 0.5 | Y41: -0.1329365079
B42: 32 Otras industrias manufactureras | C42: 409 | D42: 0.4 | E42: 357 | F42: 0.4 | G42: -0.1271393643 | H42: 374 | I42: 0.4088370008 | J42: 0.04761904762 | K42: 408 | L42: 0.4243281471 | M42: 0.09090909091 | N42: 444 | O42: 0.4 | P42: 0.08823529412 | Q42: 547 | R42: 0.6 | S42: 0.231981982 | T42: 522 | U42: 0.5 | V42: -0.04570383912 | W42: 390 | X42: 0.4 | Y42: -0.2528735632
B43: 33 Reparación e instalación de maquinaria y equipo | C43: 593 | D43: 0.6 | E43: 574 | F43: 0.6 | G43: -0.03204047218 | H43: 602 | I43: 0.6580745308 | J43: 0.0487804878 | K43: 676 | L43: 0.7030534986 | M43: 0.122923588 | N43: 655 | O43: 0.7 | P43: -0.03106508876 | Q43: 702 | R43: 0.7 | S43: 0.07175572519 | T43: 776 | U43: 0.8 | V43: 0.1054131054 | W43: 763 | X43: 0.8 | Y43: -0.01675257732
B44: 35 Suministro de energía eléctrica, gas, vapor y aire acondicionado | C44: 229 | D44: 0.2 | E44: 231 | F44: 0.2 | G44: 0.008733624454 | H44: 214 | I44: 0.2339334711 | J44: -0.07359307359 | K44: 219 | L44: 0.2277643731 | M44: 0.02336448598 | N44: 242 | O44: 0.2 | P44: 0.1050228311 | Q44: 269 | R44: 0.3 | S44: 0.1115702479 | T44: 282 | U44: 0.3 | V44: 0.04832713755 | W44: 241 | X44: 0.3 | Y44: -0.1453900709
B45: 36 Captación, depuración y distribución de agua | C45: 131 | D45: 0.1 | E45: 144 | F45: 0.2 | G45: 0.09923664122 | H45: 108 | I45: 0.1180598826 | J45: -0.25 | K45: 226 | L45: 0.2350445129 | M45: 1.092592593 | N45: 132 | O45: 0.1 | P45: -0.4159292035 | Q45: 148 | R45: 0.1 | S45: 0.1212121212 | T45: 188 | U45: 0.2 | V45: 0.2702702703 | W45: 175 | X45: 0.2 | Y45: -0.06914893617
B46: 37 Recogida y tratamiento de aguas residuales | C46: 54 | D46: 0.1 | E46: 76 | F46: 0.1 | G46: 0.4074074074 | H46: 74 | I46: 0.08089288252 | J46: -0.02631578947 | K46: 49 | L46: 0.05096097845 | M46: -0.3378378378 | N46: 54 | O46: 0.1 | P46: 0.1020408163 | Q46: 44 | R46: 0 | S46: -0.1851851852 | T46: 40 | U46: 0 | V46: -0.09090909091 | W46: 54 | X46: 0.1 | Y46: 0.35
B47: 38 Recogida, tratamiento y eliminación de residuos; valorización | C47: 1553 | D47: 1.6 | E47: 1545 | F47: 1.6 | G47: -0.005151320026 | H47: 1315 | I47: 1.437488385 | J47: -0.1488673139 | K47: 1391 | L47: 1.446667776 | M47: 0.05779467681 | N47: 1367 | O47: 1.4 | P47: -0.01725377426 | Q47: 1283 | R47: 1.3 | S47: -0.06144842721 | T47: 1353 | U47: 1.4 | V47: 0.05455962588 | W47: 1270 | X47: 1.3 | Y47: -0.06134515891
B48: 39 Actividades de descontaminación y otros servicios de gestión de residuos | C48: 108 | D48: 0.1 | E48: 104 | F48: 0.1 | G48: -0.03703703704 | H48: 63 | I48: 0.06886826485 | J48: -0.3942307692 | K48: 78 | L48: 0.08112155753 | M48: 0.2380952381 | N48: 82 | O48: 0.1 | P48: 0.05128205128 | Q48: 73 | R48: 0.1 | S48: -0.1097560976 | T48: 94 | U48: 0.1 | V48: 0.2876712329 | W48: 32 | X48: 0 | Y48: -0.6595744681
B49: 41 Construcción de edificios | C49: 3434 | D49: 3.6 | E49: 2702 | F49: 2.9 | G49: -0.2131624927 | H49: 2422 | I49: 2.647602182 | J49: -0.103626943 | K49: 2514 | L49: 2.614610201 | M49: 0.03798513625 | N49: 2827 | O49: 2.8 | P49: 0.1245027844 | Q49: 3295 | R49: 3.3 | S49: 0.1655465157 | T49: 3693 | U49: 3.7 | V49: 0.1207890744 | W49: 3968 | X49: 4.2 | Y49: 0.07446520444
B50: 42 ingeniería civil | C50: 826 | D50: 0.9 | E50: 736 | F50: 0.8 | G50: -0.1089588378 | H50: 670 | I50: 0.7324085309 | J50: =(+H50/E50)-1 -> -0.08967391304 | K50: 638 | L50: 0.6635327398 | M50: -0.04776119403 | N50: 562 | O50: 0.6 | P50: -0.1191222571 | Q50: 586 | R50: 0.6 | S50: 0.04270462633 | T50: 604 | U50: 0.6 | V50: 0.03071672355 | W50: 595 | X50: 0.6 | Y50: -0.01490066225
B51: 43 Actividades de construcción especializada | C51: 6844 | D51: 7.2 | E51: 5923 | F51: 6.3 | G51: -0.1345704267 | H51: 5507 | I51: 6.019960865 | J51: -0.07023467837 | K51: 6238 | L51: 6.487644563 | M51: 0.1327401489 | N51: 6768 | O51: 6.8 | P51: 0.08496312921 | Q51: 7125 | R51: 7.2 | S51: 0.05274822695 | T51: 7430 | U51: 7.5 | V51: 0.04280701754 | W51: 7555 | X51: 7.9 | Y51: 0.01682368775
B52: 45 Venta y reparación de vehículos de motor y motocicletas | C52: 3542 | D52: 3.7 | E52: 3446 | F52: 3.6 | G52: -0.02710333145 | H52: 3263 | I52: 3.56693886 | J52: -0.05310504933 | K52: 3125 | L52: 3.250062401 | M52: -0.04229236899 | N52: 3306 | O52: 3.3 | P52: 0.05792 | Q52: 3133 | R52: 3.2 | S52: -0.05232909861 | T52: 3125 | U52: 3.1 | V52: -0.002553463134 | W52: 3000 | X52: 3.2 | Y52: -0.04
B53: 46 Comercio al por mayor e intermediarios del comercio, excepto de vehículos de motor y motocicletas | C53: 4708 | D53: 4.9 | E53: 4645 | F53: 4.9 | G53: -0.01338147833 | H53: 4525 | I53: 4.946490451 | J53: -0.02583423036 | K53: 4765 | L53: 4.955695149 | M53: 0.05303867403 | N53: 4894 | O53: 4.9 | P53: 0.02707240294 | Q53: 4688 | R53: 4.7 | S53: -0.04209235799 | T53: 4539 | U53: 4.6 | V53: -0.03178327645 | W53: 4286 | X53: 4.5 | Y53: -0.05573914959
B54: 47 Comercio al por menor, excepto de vehículos de motor y motocicletas | C54: 10711 | D54: 11.2 | E54: 9911 | F54: 10.5 | G54: -0.07468957147 | H54: 9824 | I54: 10.73907673 | J54: -0.008778125315 | K54: 10142 | L54: 10.54788252 | M54: 0.03236970684 | N54: 10617 | O54: 10.7 | P54: 0.0468349438 | Q54: 10709 | R54: 10.8 | S54: 0.008665348027 | T54: 9991 | U54: 10 | V54: -0.06704640956 | W54: 9719 | X54: 10.2 | Y54: -0.02722450205
B55: 49 Transporte terrestre y por tubería | C55: 2678 | D55: 2.8 | E55: 3018 | F55: 3.2 | G55: 0.1269604182 | H55: 2827 | I55: 3.090326742 | J55: -0.063286945 | K55: 2830 | L55: 2.943256511 | M55: 0.001061195614 | N55: 2860 | O55: 2.9 | P55: 0.01060070671 | Q55: 2736 | R55: 2.8 | S55: -0.04335664336 | T55: 2850 | U55: 2.9 | V55: 0.04166666667 | W55: 2858 | X55: 3 | Y55: 0.002807017544
B56: 50 Transporte marítimo y por vías navegables interiores | C56: 261 | D56: 0.3 | E56: 239 | F56: 0.3 | G56: -0.08429118774 | H56: 209 | I56: 0.2284677358 | J56: -0.1255230126 | K56: 221 | L56: 0.229844413 | M56: 0.05741626794 | N56: 259 | O56: 0.3 | P56: 0.1719457014 | Q56: 240 | R56: 0.2 | S56: -0.07335907336 | T56: 252 | U56: 0.3 | V56: 0.05 | W56: 214 | X56: 0.2 | Y56: -0.1507936508
B57: 51 Transporte aéreo | C57: 593 | D57: 0.6 | E57: 555 | F57: 0.6 | G57: -0.06408094435 | H57: 573 | I57: 0.626373266 | J57: 0.03243243243 | K57: 458 | L57: 0.4763291455 | M57: -0.2006980803 | N57: 465 | O57: 0.5 | P57: 0.01528384279 | Q57: 397 | R57: 0.4 | S57: -0.1462365591 | T57: 355 | U57: 0.4 | V57: -0.1057934509 | W57: 250 | X57: 0.3 | Y57: -0.2957746479
B58: 52 Almacenamiento y actividades anexas al transporte | C58: 1455 | D58: 1.5 | E58: 1548 | F58: 1.6 | G58: 0.06391752577 | H58: 1751 | I58: 1.914100504 | J58: 0.1311369509 | K58: 1598 | L58: 1.661951909 | M58: -0.08737864078 | N58: 1628 | O58: 1.6 | P58: 0.01877346683 | Q58: 1591 | R58: 1.6 | S58: -0.02272727273 | T58: 1765 | U58: 1.8 | V58: 0.1093651791 | W58: 1563 | X58: 1.6 | Y58: -0.1144475921
B59: 53 Actividades postales y de correos | C59: 998 | D59: 1 | E59: 776 | F59: 0.8 | G59: -0.2224448898 | H59: 743 | I59: 0.8122082664 | J59: -0.0425257732 | K59: 860 | L59: 0.8944171728 | M59: 0.1574697174 | N59: 880 | O59: 0.9 | P59: 0.02325581395 | Q59: 958 | R59: 1 | S59: 0.08863636364 | T59: 932 | U59: 0.9 | V59: -0.02713987474 | W59: 897 | X59: 0.9 | Y59: -0.03755364807
B60: 55 Servicios de alojamiento | C60: 951 | D60: 1 | E60: 875 | F60: 0.9 | G60: -0.07991587802 | H60: 908 | I60: 0.9925775315 | J60: 0.03771428571 | K60: 895 | L60: 0.9308178717 | M60: -0.01431718062 | N60: 780 | O60: 0.8 | P60: -0.1284916201 | Q60: 871 | R60: 0.9 | S60: 0.1166666667 | T60: 832 | U60: 0.8 | V60: -0.0447761194 | W60: 774 | X60: 0.8 | Y60: -0.06971153846
B61: 56 Servicios de comidas y bebidas | C61: 5120 | D61: 5.4 | E61: 5711 | F61: 6 | G61: 0.1154296875 | H61: 5595 | I61: 6.116157807 | J61: -0.02031167922 | K61: 6103 | L61: 6.347241867 | M61: 0.09079535299 | N61: 6692 | O61: 6.7 | P61: 0.09650991316 | Q61: 6767 | R61: 6.8 | S61: 0.01120741184 | T61: 6891 | U61: 6.9 | V61: 0.01832422048 | W61: 6721 | X61: 7.1 | Y61: -0.02466985924
B62: 58 Edición | C62: 214 | D62: 0.2 | E62: 245 | F62: 0.3 | G62: 0.1448598131 | H62: 238 | I62: 0.2601690005 | J62: -0.02857142857 | K62: 227 | L62: 0.2360845328 | M62: -0.04621848739 | N62: 230 | O62: 0.2 | P62: 0.01321585903 | Q62: 206 | R62: 0.2 | S62: -0.1043478261 | T62: 208 | U62: 0.2 | V62: 0.009708737864 | W62: 135 | X62: 0.1 | Y62: -0.3509615385
B63: 59 Actividades cinematográficas, de vídeo y de programas de televisión, grabación de sonido y edición musical | C63: 265 | D63: 0.3 | E63: 217 | F63: 0.2 | G63: -0.1811320755 | H63: 175 | I63: 0.1913007357 | J63: -0.1935483871 | K63: 241 | L63: 0.2506448124 | M63: 0.3771428571 | N63: 295 | O63: 0.3 | P63: 0.22406639 | Q63: 336 | R63: 0.3 | S63: 0.1389830508 | T63: 350 | U63: 0.4 | V63: 0.04166666667 | W63: 343 | X63: 0.4 | Y63: -0.02
B64: 60 Actividades de programación y emisión de radio y televisión | C64: 310 | D64: 0.3 | E64: 182 | F64: 0.2 | G64: -0.4129032258 | H64: 175 | I64: 0.1913007357 | J64: -0.03846153846 | K64: 150 | L64: 0.1560029953 | M64: -0.1428571429 | N64: 149 | O64: 0.1 | P64: -0.006666666667 | Q64: 158 | R64: 0.2 | S64: 0.06040268456 | T64: 179 | U64: 0.2 | V64: 0.1329113924 | W64: 151 | X64: 0.2 | Y64: -0.156424581
B65: 61 Telecomunicaciones | C65: 700 | D65: 0.7 | E65: 726 | F65: 0.8 | G65: 0.03714285714 | H65: 767 | I65: 0.8384437958 | J65: 0.0564738292 | K65: 764 | L65: 0.7945752558 | M65: -0.003911342894 | N65: 706 | O65: 0.7 | P65: -0.07591623037 | Q65: 551 | R65: 0.6 | S65: -0.2195467422 | T65: 543 | U65: 0.5 | V65: -0.01451905626 | W65: 460 | X65: 0.5 | Y65: -0.152854512
B66: 62 Programación, consultoría y otras actividades relacionadas con la informática | C66: 779 | D66: 0.8 | E66: 788 | F66: 0.8 | G66: 0.01155327343 | H66: 793 | I66: 0.8668656194 | J66: 0.006345177665 | K66: 799 | L66: 0.8309759547 | M66: 0.007566204288 | N66: 942 | O66: 0.9 | P66: 0.1789737171 | Q66: 930 | R66: 0.9 | S66: -0.0127388535 | T66: 978 | U66: 1 | V66: 0.05161290323 | W66: 992 | X66: 1 | Y66: 0.01431492843
B67: 63 Servicios de información | C67: 170 | D67: 0.2 | E67: 125 | F67: 0.1 | G67: -0.2647058824 | H67: 148 | I67: 0.161785765 | J67: 0.184 | K67: 120 | L67: 0.1248023962 | M67: -0.1891891892 | N67: 118 | O67: 0.1 | P67: -0.01666666667 | Q67: 117 | R67: 0.1 | S67: -0.008474576271 | T67: 103 | U67: 0.1 | V67: -0.1196581197 | W67: 134 | X67: 0.1 | Y67: 0.3009708738
B68: 64 Servicios financieros, excepto seguros y fondos de pensiones | C68: 549 | D68: 0.6 | E68: 611 | F68: 0.6 | G68: 0.1129326047 | H68: 704 | I68: 0.769575531 | J68: 0.1522094926 | K68: 609 | L68: 0.6333721607 | M68: -0.1349431818 | N68: 692 | O68: 0.7 | P68: 0.1362889984 | Q68: 627 | R68: 0.6 | S68: -0.09393063584 | T68: 559 | U68: 0.6 | V68: -0.1084529506 | W68: 510 | X68: 0.5 | Y68: -0.08765652952
B69: 65 Seguros, reaseguros y fondos de pensiones, excepto Seguridad Social obligatoria | C69: 275 | D69: 0.3 | E69: 302 | F69: 0.3 | G69: 0.09818181818 | H69: 299 | I69: 0.3268509713 | J69: -0.009933774834 | K69: 279 | L69: 0.2901655712 | M69: -0.06688963211 | N69: 284 | O69: 0.3 | P69: 0.01792114695 | Q69: 279 | R69: 0.3 | S69: -0.0176056338 | T69: 274 | U69: 0.3 | V69: -0.01792114695 | W69: 266 | X69: 0.3 | Y69: -0.02919708029
B70: 66 Actividades auxiliares a los servicios financieros y a los seguros | C70: 143 | D70: 0.2 | E70: 161 | F70: 0.2 | G70: 0.1258741259 | H70: 170 | I70: 0.1858350004 | J70: 0.05590062112 | K70: 157 | L70: 0.163283135 | M70: -0.07647058824 | N70: 171 | O70: 0.2 | P70: 0.08917197452 | Q70: 194 | R70: 0.2 | S70: 0.134502924 | T70: 198 | U70: 0.2 | V70: 0.0206185567 | W70: 173 | X70: 0.2 | Y70: -0.1262626263
B71: 68 Actividades inmobiliarias | C71: 336 | D71: 0.4 | E71: 376 | F71: 0.4 | G71: 0.119047619 | H71: 360 | I71: 0.393532942 | J71: -0.04255319149 | K71: 407 | L71: 0.4232881271 | M71: 0.1305555556 | N71: 342 | O71: 0.3 | P71: -0.1597051597 | Q71: 377 | R71: 0.4 | S71: 0.1023391813 | T71: 338 | U71: 0.3 | V71: -0.1034482759 | W71: 335 | X71: 0.4 | Y71: -0.008875739645
B72: 69 Actividades jurídicas y de contabilidad | C72: 513 | D72: 0.5 | E72: 517 | F72: 0.5 | G72: 0.007797270955 | H72: 506 | I72: 0.5531324129 | J72: -0.02127659574 | K72: 539 | L72: 0.560570763 | M72: 0.0652173913 | N72: 582 | O72: 0.6 | P72: 0.07977736549 | Q72: 536 | R72: 0.5 | S72: -0.07903780069 | T72: 534 | U72: 0.5 | V72: -0.003731343284 | W72: 500 | X72: 0.5 | Y72: -0.06367041199
B73: 70 Actividades de las sedes centrales; actividades de consultoría de gestión empresarial | C73: 196 | D73: 0.2 | E73: 195 | F73: 0.2 | G73: -0.005102040816 | H73: 196 | I73: 0.214256824 | J73: 0.005128205128 | K73: 294 | L73: 0.3057658707 | M73: 0.5 | N73: 254 | O73: 0.3 | P73: -0.1360544218 | Q73: 289 | R73: 0.3 | S73: 0.1377952756 | T73: 298 | U73: 0.3 | V73: 0.03114186851 | W73: 340 | X73: 0.4 | Y73: 0.1409395973
B74: 71 Servicios técnicos de arquitectura e ingeniería; ensayos y análisis técnicos | C74: 826 | D74: 0.9 | E74: 863 | F74: 0.9 | G74: 0.04479418886 | H74: 829 | I74: 0.9062189136 | J74: -0.03939745075 | K74: 896 | L74: 0.9318578917 | M74: 0.08082026538 | N74: 896 | O74: 0.9 | P74: 0 | Q74: 855 | R74: 0.9 | S74: -0.04575892857 | T74: 900 | U74: 0.9 | V74: 0.05263157895 | W74: 912 | X74: 1 | Y74: 0.01333333333
B75: 72 Investigación y desarrollo | C75: 449 | D75: 0.5 | E75: 410 | F75: 0.4 | G75: -0.0868596882 | H75: 380 | I75: 0.4153958832 | J75: -0.07317073171 | K75: 422 | L75: 0.4388884267 | M75: 0.1105263158 | N75: 442 | O75: 0.4 | P75: 0.04739336493 | Q75: 438 | R75: 0.4 | S75: -0.009049773756 | T75: 384 | U75: 0.4 | V75: -0.1232876712 | W75: 349 | X75: 0.4 | Y75: -0.09114583333
B76: 73 Publicidad y estudios de mercado | C76: 478 | D76: 0.5 | E76: 511 | F76: 0.5 | G76: =(+E76/C76)-1 -> 0.0690376569 | H76: 389 | I76: 0.4252342068 | J76: -0.2387475538 | K76: 479 | L76: 0.4981695649 | M76: =(+K76/H76)-1 -> 0.2313624679 | N76: 514 | O76: 0.5 | P76: 0.07306889353 | Q76: 501 | R76: 0.5 | S76: -0.02529182879 | T76: 520 | U76: 0.5 | V76: =IFERROR((+T76/Q76)-1,"-") -> 0.0379241517 | W76: 420 | X76: 0.4 | Y76: =IFERROR((+W76/T76)-1,"-") -> -0.1923076923
B77: 74 Otras actividades profesionales, científicas y técnicas | C77: 750 | D77: 0.8 | E77: 728 | F77: 0.8 | G77: -0.02933333333 | H77: 695 | I77: 0.7597372074 | J77: -0.04532967033 | K77: 513 | L77: 0.5335302438 | M77: -0.2618705036 | N77: 516 | O77: 0.5 | P77: 0.005847953216 | Q77: 553 | R77: 0.6 | S77: 0.07170542636 | T77: 548 | U77: 0.6 | V77: -0.00904159132 | W77: 498 | X77: 0.5 | Y77: -0.09124087591
B78: 75 Actividades veterinarias | C78: 15 | D78: 0 | E78: 24 | F78: 0 | G78: 0.6 | H78: 24 | I78: 0.02623552947 | J78: 0 | K78: 29 | L78: 0.03016057908 | M78: 0.2083333333 | N78: 51 | O78: 0.1 | P78: 0.7586206897 | Q78: 67 | R78: 0.1 | S78: 0.3137254902 | T78: 67 | U78: 0.1 | V78: 0 | W78: 59 | X78: 0.1 | Y78: -0.1194029851
B79: 77Actividades de alquiler | C79: 583 | D79: 0.6 | E79: 515 | F79: 0.5 | G79: -0.1166380789 | H79: 389 | I79: 0.4252342068 | J79: -0.2446601942 | K79: 470 | L79: 0.4888093851 | M79: 0.2082262211 | N79: 438 | O79: 0.4 | P79: -0.06808510638 | Q79: 484 | R79: 0.5 | S79: 0.1050228311 | T79: 501 | U79: 0.5 | V79: 0.03512396694 | W79: 551 | X79: 0.6 | Y79: 0.0998003992
B80: 78 Actividades relacionadas con el empleo | C80: 857 | D80: 0.9 | E80: 936 | F80: 1 | G80: 0.09218203034 | H80: 1076 | I80: 1.176226238 | J80: 0.1495726496 | K80: 1250 | L80: 1.30002496 | M80: 0.1617100372 | N80: 1602 | O80: 1.6 | P80: =(+N80/K80)-1 -> 0.2816 | Q80: 1684 | R80: 1.7 | S80: =(+Q80/N80)-1 -> 0.05118601748 | T80: 1989 | U80: 2 | V80: 0.1811163895 | W80: 2253 | X80: 2.4 | Y80: 0.1327300151
B81: 79 Actividades de agencias de viajes, operadores turísticos, servicios de reservas y act. relacionadas con los mismos | C81: 163 | D81: 0.2 | E81: 119 | F81: 0.1 | G81: -0.2699386503 | H81: 108 | I81: 0.1180598826 | J81: -0.09243697479 | K81: 121 | L81: 0.1258424162 | M81: 0.1203703704 | N81: 125 | O81: 0.1 | P81: 0.03305785124 | Q81: 163 | R81: 0.2 | S81: 0.304 | T81: 165 | U81: 0.2 | V81: 0.01226993865 | W81: 199 | X81: 0.2 | Y81: 0.2060606061
B82: 80 Actividades de seguridad e investigación | C82: 1603 | D82: 1.7 | E82: 1446 | F82: 1.5 | G82: -0.09794135995 | H82: 1515 | I82: 1.656117798 | J82: =(+H82/E82)-1 -> 0.04771784232 | K82: 1437 | L82: 1.494508695 | M82: -0.05148514851 | N82: 1421 | O82: 1.4 | P82: -0.01113430759 | Q82: 1404 | R82: 1.4 | S82: -0.01196340605 | T82: 1418 | U82: 1.4 | V82: 0.009971509972 | W82: 1269 | X82: 1.3 | Y82: -0.105077574
B83: 81 Servicios a edificios y actividades de jardinería | C83: 4628 | D83: 4.9 | E83: 4822 | F83: 5.1 | G83: 0.0419187554 | H83: 5245 | I83: 5.733556335 | J83: 0.08772293654 | K83: 5171 | L83: 5.377943257 | M83: -0.01410867493 | N83: 5403 | O83: 5.4 | P83: 0.0448655966 | Q83: 5356 | R83: 5.4 | S83: -0.008698870998 | T83: 5197 | U83: 5.2 | V83: -0.02968633308 | W83: 4643 | X83: 4.9 | Y83: -0.1065999615
B84: 82 Actividades administrativas de oficina y otras actividades auxiliares a las empresas | C84: 2201 | D84: 2.3 | E84: 2413 | F84: 2.6 | G84: 0.09631985461 | H84: 2374 | I84: 2.595131123 | J84: -0.01616245338 | K84: 2745 | L84: 2.854854813 | M84: 0.1562763269 | N84: 2835 | O84: 2.8 | P84: 0.03278688525 | Q84: 2984 | R84: 3 | S84: 0.05255731922 | T84: 2936 | U84: 3 | V84: -0.01608579088 | W84: 2675 | X84: 2.8 | Y84: -0.08889645777
B85: 84 Administración Pública y defensa; Seguridad Social obligatoria | C85: 5144 | D85: 5.4 | E85: 5975 | F85: 6.3 | G85: 0.1615474339 | H85: 5563 | I85: 6.081177101 | J85: -0.0689539749 | K85: 6226 | L85: 6.475164323 | M85: 0.1191802984 | N85: 5660 | O85: 5.7 | P85: -0.09090909091 | Q85: 4749 | R85: 4.8 | S85: -0.1609540636 | T85: 4281 | U85: 4.3 | V85: -0.09854706254 | W85: 3670 | X85: 3.9 | Y85: -0.1427236627
B86: 85 Educación | C86: 2364 | D86: 2.5 | E86: 2449 | F86: 2.6 | G86: 0.03595600677 | H86: 2413 | I86: 2.637763858 | J86: -0.0146998775 | K86: 2605 | L86: 2.709252018 | M86: 0.07956900124 | N86: 2633 | O86: 2.6 | P86: 0.01074856046 | Q86: 2455 | R86: 2.5 | S86: -0.06760349411 | T86: 2613 | U86: 2.6 | V86: 0.06435845214 | W86: 2475 | X86: 2.6 | Y86: -0.05281285878
B87: 86 Actividades sanitarias | C87: 5627 | D87: 5.9 | E87: 5651 | F87: 6 | G87: 0.004265150169 | H87: 5357 | I87: 5.855988806 | J87: -0.05202619005 | K87: 5772 | L87: 6.002995258 | M87: 0.0774687325 | N87: 6155 | O87: 6.2 | P87: 0.06635481635 | Q87: 6432 | R87: 6.5 | S87: 0.04500406174 | T87: 6578 | U87: 6.6 | V87: 0.02269900498 | W87: 6675 | X87: 7 | Y87: 0.01474612344
B88: 87 Asistencia en establecimientos residenciales | C88: 1622 | D88: 1.7 | E88: 2041 | F88: 2.2 | G88: 0.258323058 | H88: 2209 | I88: 2.414761858 | J88: 0.08231259187 | K88: 2414 | L88: 2.510608204 | M88: 0.09280217293 | N88: 2664 | O88: 2.7 | P88: 0.1035625518 | Q88: 2568 | R88: 2.6 | S88: -0.03603603604 | T88: 2512 | U88: 2.5 | V88: -0.02180685358 | W88: 2485 | X88: 2.6 | Y88: -0.01074840764
B89: 88 Actividades de servicios sociales sin alojamiento | C89: 1112 | D89: 1.2 | E89: 1039 | F89: 1.1 | G89: -0.06564748201 | H89: 1131 | I89: 1.236349326 | J89: 0.0885466795 | K89: 1221 | L89: 1.269864381 | M89: 0.07957559682 | N89: 1341 | O89: 1.3 | P89: 0.09828009828 | Q89: 1553 | R89: 1.6 | S89: 0.1580909769 | T89: 1588 | U89: 1.6 | V89: 0.02253702511 | W89: 1599 | X89: 1.7 | Y89: 0.006926952141
B90: 90 Actividades de creación, artísticas y espectáculos | C90: 430 | D90: 0.5 | E90: 572 | F90: 0.6 | G90: 0.3302325581 | H90: 518 | I90: 0.5662501776 | J90: -0.09440559441 | K90: 580 | L90: 0.6032115817 | M90: 0.1196911197 | N90: 598 | O90: 0.6 | P90: 0.03103448276 | Q90: 555 | R90: 0.6 | S90: -0.07190635452 | T90: 558 | U90: 0.6 | V90: 0.005405405405 | W90: 611 | X90: 0.6 | Y90: 0.09498207885
B91: 91 Actividades de bibliotecas, archivos, museos y otras actividades culturales | C91: 94 | D91: 0.1 | E91: 95 | F91: 0.1 | G91: 0.01063829787 | H91: 121 | I91: 0.1322707944 | J91: 0.2736842105 | K91: 112 | L91: 0.1164822365 | M91: -0.07438016529 | N91: 113 | O91: 0.1 | P91: 0.008928571429 | Q91: 89 | R91: 0.1 | S91: -0.2123893805 | T91: 94 | U91: 0.1 | V91: 0.05617977528 | W91: 113 | X91: 0.1 | Y91: 0.2021276596
B92: 92 Actividades de juegos de azar y apuestas | C92: 144 | D92: 0.2 | E92: 159 | F92: 0.2 | G92: 0.1041666667 | H92: 152 | I92: 0.1661583533 | J92: -0.04402515723 | K92: 134 | L92: 0.1393626758 | M92: -0.1184210526 | N92: 116 | O92: 0.1 | P92: -0.1343283582 | Q92: 139 | R92: 0.1 | S92: 0.1982758621 | T92: 131 | U92: 0.1 | V92: -0.05755395683 | W92: 141 | X92: 0.1 | Y92: 0.07633587786
B93: 93 Actividades deportivas, recreativas y de entretenimiento | C93: 882 | D93: 0.9 | E93: 1007 | F93: 1.1 | G93: 0.141723356 | H93: 963 | I93: 1.05270062 | J93: -0.04369414101 | K93: 1056 | L93: 1.098261087 | M93: 0.09657320872 | N93: 1262 | O93: 1.3 | P93: 0.1950757576 | Q93: 1194 | R93: 1.2 | S93: -0.05388272583 | T93: 1156 | U93: 1.2 | V93: -0.03182579564 | W93: 1061 | X93: 1.1 | Y93: -0.0821799308
B94: 94 Actividades asociativas | C94: 309 | D94: 0.3 | E94: 324 | F94: 0.3 | G94: 0.04854368932 | H94: 290 | I94: 0.3170126477 | J94: -0.1049382716 | K94: 297 | L94: 0.3088859306 | M94: 0.02413793103 | N94: 344 | O94: 0.3 | P94: 0.1582491582 | Q94: 299 | R94: 0.3 | S94: -0.1308139535 | T94: 318 | U94: 0.3 | V94: 0.0635451505 | W94: 240 | X94: 0.3 | Y94: -0.2452830189
B95: 95 Reparación de ordenadores, efectos personales y artículos de uso doméstico | C95: 408 | D95: 0.4 | E95: 406 | F95: 0.4 | G95: -0.004901960784 | H95: 404 | I95: 0.4416314127 | J95: -0.004926108374 | K95: 373 | L95: 0.3879274482 | M95: -0.07673267327 | N95: 377 | O95: 0.4 | P95: 0.01072386059 | Q95: 362 | R95: 0.4 | S95: -0.03978779841 | T95: 338 | U95: 0.3 | V95: -0.06629834254 | W95: 332 | X95: 0.3 | Y95: -0.01775147929
B96: 96 Otros servicios personales | C96: 1906 | D96: 2 | E96: 2006 | F96: 2.1 | G96: 0.05246589717 | H96: 1956 | I96: 2.138195651 | J96: -0.02492522433 | K96: 2109 | L96: 2.193402113 | M96: 0.0782208589 | N96: 1815 | O96: 1.8 | P96: -0.1394025605 | Q96: 1799 | R96: 1.8 | S96: -0.008815426997 | T96: 1660 | U96: 1.7 | V96: -0.0772651473 | W96: 1620 | X96: 1.7 | Y96: -0.02409638554
B97: 97 Actividades de los hogares como empleadores de personal doméstico | C97: 199 | D97: 0.2 | E97: 263 | F97: 0.3 | G97: 0.3216080402 | H97: 243 | I97: 0.2656347358 | J97: -0.07604562738 | K97: 232 | L97: 0.2412846327 | M97: -0.04526748971 | N97: 264 | O97: 0.3 | P97: 0.1379310345 | Q97: 304 | R97: 0.3 | S97: 0.1515151515 | T97: 256 | U97: 0.3 | V97: -0.1578947368 | W97: 221 | X97: 0.2 | Y97: -0.13671875
B98: 99 Actividades de organizaciones y organismos extraterritoriales | C98: 23 | D98: 0 | E98: 29 | F98: 0 | G98: 0.2608695652 | H98: 42 | I98: 0.04591217657 | J98: 0.4482758621 | K98: 38 | L98: 0.0395207588 | M98: -0.09523809524 | N98: 34 | O98: 0 | P98: -0.1052631579 | Q98: 75 | R98: 0.1 | S98: 1.205882353 | T98: 85 | U98: 0.1 | V98: 0.1333333333 | W98: 89 | X98: 0.1 | Y98: 0.04705882353
B99: Fuente; IRSST

Sheet Hoja 14 (hidden)
B1: Estadística de accidentes de trabajo sin baja registrados en la Comunidad de Madrid
B2: =Índice!A6 -> 2012-2019
B3: IRSST
B7: S3. Accidentes sin baja registrados, según tipo de contrato
C9: 2012 | E9: 2013 | G9: % Variación | H9: 2014 | J9: % Variación | K9: 2015 | M9: % Variación | N9: 2016 | P9: % Variación | Q9: 2017 | S9: % Variación | T9: 2018 | V9: % Variación | W9: 2019 | Y9: % Variación
B10: Tipo contrato | C10: Total | D10: % | E10: Total | F10: % | G10: 2012-2013 | H10: Total | I10: % | J10: 2013-2014 | K10: Total | L10: % | M10: 2015-2014 | N10: Total | O10: % | P10: 2016-2015 | Q10: Total | R10: % | S10: 2017-2016 | T10: Total | U10: % | V10: 2018-2017 | W10: Total | X10: % | Y10: 2019-2018
B11: Total | C11: 95210 | D11: 1 | E11: 94536 | F11: 1 | G11: =(+E11/C11)-1 -> -0.007079088331 | H11: 91479 | I11: 1 | J11: =(+H11/E11)-1 -> -0.03233688753 | K11: 96152 | L11: 1 | M11: =(+K11/H11)-1 -> 0.05108276216 | N11: 99688 | O11: 1 | P11: =(+N11/K11)-1 -> 0.03677510608 | Q11: 99305 | R11: 1 | S11: =(+Q11/N11)-1 -> -0.003841986999 | T11: 99425 | U11: 1 | V11: =(+T11/Q11)-1 -> 0.001208398369 | W11: 95213 | X11: 1 | Y11: =(+W11/T11)-1 -> -0.04236359065
B12: Indefinido | C12: 72147 | D12: 0.758 | E12: 73108 | F12: 0.773 | G12: =(+E12/C12)-1 -> 0.01332002717 | H12: 69608 | I12: 0.773 | J12: =(+H12/E12)-1 -> -0.04787437763 | K12: 71181 | L12: =+K12/K11 -> 0.7402966137 | M12: =(+K12/H12)-1 -> 0.02259797724 | N12: 72706 | O12: =+N12/N11 -> 0.7293355268 | P12: =(+N12/K12)-1 -> 0.02142425647 | Q12: 69982 | R12: 0.7047060956 | S12: =(+Q12/N12)-1 -> -0.03746595879 | T12: 68977 | U12: 0.694 | V12: =(+T12/Q12)-1 -> -0.01436083564 | W12: 66224 | X12: 0.696 | Y12: =(+W12/T12)-1 -> -0.03991185468
B13: Temporal | C13: 23063 | D13: 0.242 | E13: 21428 | F13: 0.227 | G13: =(+E13/C13)-1 -> -0.07089277197 | H13: 21871 | I13: 0.227 | J13: =(+H13/E13)-1 -> 0.02067388464 | K13: 24971 | L13: =+K13/K11 -> 0.2597033863 | M13: =(+K13/H13)-1 -> 0.1417402039 | N13: 26982 | O13: =+N13/N11 -> 0.2706644732 | P13: =(+N13/K13)-1 -> 0.08053341877 | Q13: 29323 | R13: 0.2952939044 | S13: =(+Q13/N13)-1 -> 0.08676154473 | T13: 30448 | U13: 0.306 | V13: =(+T13/Q13)-1 -> 0.03836578795 | W13: 28989 | X13: 0.304 | Y13: =(+W13/T13)-1 -> -0.04791776143
B14: Fuente; IRSST

Sheet Hoja 15 (hidden)
B1: Estadística de accidentes de trabajo sin baja registrados en la Comunidad de Madrid
B2: ='Hoja 14'!B2 -> 2012-2019
B3: IRSST
B6: S4. Accidentes sin baja registrados, según plantilla de la empresa
C8: 2012 | E8: 2013 | G8: % Variación | H8: 2014 | J8: % Variación | K8: 2015 | M8: % Variación | N8: 2016 | P8: % Variación | Q8: 2017 | S8: % Variación | T8: 2018 | V8: % Variación | W8: 2019 | Y8: % Variación
C9: Total | D9: % | E9: Total | F9: % | H9: Total | I9: % | J9: 2013-2014 | K9: Total | L9: % | M9: 2015-2014 | N9: Total | O9: % | P9: 2016-2015 | Q9: Total | R9: % | S9: 2017-2016 | T9: Total | U9: % | V9: 2018-2017 | W9: Total | X9: % | Y9: 2019-2018
B10: Total | C10: 95210 | D10: 1 | E10: 94536 | F10: 1 | G10: =(+E10/C10)-1 -> -0.007079088331 | H10: 91479 | I10: =SUM(I11:I16) -> 1 | J10: =(+H10/E10)-1 -> -0.03233688753 | K10: 96152 | L10: =SUM(L11:L16) -> 1 | M10: =(+K10/H10)-1 -> 0.05108276216 | N10: 99688 | O10: =SUM(O11:O16) -> 1 | P10: =(+N10/K10)-1 -> 0.03677510608 | Q10: 99305 | R10: =SUM(R11:R16) -> 1 | S10: =(+Q10/N10)-1 -> -0.003841986999 | T10: 99425 | U10: 1 | V10: =(+T10/Q10)-1 -> 0.001208398369 | W10: 95213 | X10: 1 | Y10: =(+W10/T10)-1 -> -0.04236359065
B11: Menos de 3 trab. | C11: 4163 | D11: 0.044 | E11: 4330 | F11: 0.046 | G11: 0.04011530147 | H11: 4287 | I11: =+H11/$H$10 -> 0.04686321451 | J11: -0.009930715935 | K11: 4299 | L11: =+K11/$K$10 -> 0.04471045844 | M11: =(+K11/H11)-1 -> 0.002799160252 | N11: 4518 | O11: =+N11/$N$10 -> 0.04532140278 | P11: =(+N11/K11)-1 -> 0.05094207955 | Q11: 4043 | R11: =+Q11/$Q$10 -> 0.04071295504 | S11: =(+Q11/N11)-1 -> -0.1051350155 | T11: 4008 | U11: 0.04 | V11: =(+T11/Q11)-1 -> -0.008656937917 | W11: 4840 | X11: 0.051 | Y11: =(+W11/T11)-1 -> 0.2075848303
B12: De 3 a 9 trab. | C12: 9378 | D12: 0.098 | E12: 9660 | F12: 0.102 | G12: 0.03007037748 | H12: 9225 | I12: 0.1008428164 | J12: -0.0450310559 | K12: 9930 | L12: 0.1032739829 | M12: 0.07642276423 | N12: 10239 | O12: 0.1027104566 | P12: 0.03111782477 | Q12: 9757 | R12: 0.09825285736 | S12: -0.04707490966 | T12: 9588 | U12: 0.096 | V12: -0.01732089782 | W12: 8541 | X12: 0.09 | Y12: -0.1091989987
B13: De 10 a 49 trab. | C13: 22804 | D13: 0.24 | E13: 22415 | F13: 0.237 | G13: -0.01705841081 | H13: 21377 | I13: 0.2336820472 | J13: -0.04630827571 | K13: 22635 | L13: 0.2354085198 | M13: 0.0588482949 | N13: 24056 | O13: 0.2413128962 | P13: 0.06277888226 | Q13: 24298 | R13: 0.2446805297 | S13: 0.01005986033 | T13: 24129 | U13: 0.243 | V13: -0.006955304963 | W13: 22874 | X13: 0.24 | Y13: -0.05201210162
B14: De 50 a 99 trab. | C14: 9315 | D14: 0.098 | E14: 9046 | F14: 0.096 | G14: -0.02887815352 | H14: 9080 | I14: 0.09925775315 | J14: 0.003758567323 | K14: 9628 | L14: 0.1001331226 | M14: 0.06035242291 | N14: 9988 | O14: 0.1001926009 | P14: 0.03739094308 | Q14: 10298 | R14: 0.10370072 | S14: 0.03103724469 | T14: 10611 | U14: 0.107 | V14: 0.03039425131 | W14: 10070 | X14: 0.106 | Y14: -0.05098482707
B15: De 100 a 249 trab. | C15: 12333 | D15: 0.13 | E15: 12567 | F15: 0.133 | G15: 0.01897348577 | H15: 12087 | I15: 0.1321286853 | J15: -0.03819527333 | K15: 11987 | L15: 0.1246671936 | M15: -0.008273351535 | N15: 12100 | O15: 0.1213787015 | P15: 0.009426879119 | Q15: 12378 | R15: 0.1246462917 | S15: 0.02297520661 | T15: 12663 | U15: 0.127 | V15: 0.02302472128 | W15: 11979 | X15: 0.126 | Y15: -0.05401563611
B16: 250 y más trab. | C16: 37217 | D16: 0.391 | E16: 36518 | F16: 0.386 | G16: -0.01878173953 | H16: 35423 | I16: 0.3872254834 | J16: -0.02998521277 | K16: 37673 | L16: 0.3918067227 | M16: 0.06351805324 | N16: 38787 | O16: 0.3890839419 | P16: 0.02957024925 | Q16: 38531 | R16: 0.3880066462 | S16: -0.006600149535 | T16: 38426 | U16: 0.386 | V16: -0.002725078508 | W16: 36909 | X16: 0.388 | Y16: -0.03947847811
B17: Fuente: IRSST

Sheet Hoja 16 (hidden)
B1: Estadística de accidentes de trabajo sin baja registrados en la Comunidad de Madrid
B2: ='Hoja 15'!B2 -> 2012-2019
B3: IRSST
B6: S5. Accidentes sin baja registrados, por forma de contacto
C8: 2012 | E8: 2013 | G8: % Variación | H8: 2014 | J8: % Variación | K8: 2015 | M8: % Variación | N8: 2016 | P8: % Variación | Q8: 2017 | S8: % Variación | T8: 2018 | V8: % Variación | W8: 2019 | Y8: % Variación
C9: Total | D9: % | E9: Total | F9: % | H9: Total | I9: % | J9: 2013-2014 | K9: Total | L9: % | M9: 2015-2014 | N9: Total | O9: % | P9: 2016-2015 | Q9: Total | R9: % | S9: 2017-2016 | T9: Total | U9: % | V9: 2018-2017 | W9: Total | X9: % | Y9: 2019-2018
B10: Total | C10: 95210 | D10: 100 | E10: 94536 | F10: 100 | G10: =(+E10/C10)-1 -> -0.007079088331 | H10: 91479 | I10: =+H10/$H$10*100 -> 100 | J10: =(+H10/E10)-1 -> -0.03233688753 | K10: 96152 | L10: 100 | M10: =(+K10/H10)-1 -> 0.05108276216 | N10: 99688 | O10: 100 | P10: =(+N10/K10)-1 -> 0.03677510608 | Q10: 99305 | R10: 100 | S10: =(+Q10/N10)-1 -> -0.003841986999 | T10: 99425 | U10: 100 | V10: =(+T10/Q10)-1 -> 0.001208398369 | W10: 95213 | X10: 100 | Y10: =(+W10/T10)-1 -> -0.04236359065
B11: No consta | C11: 1450 | D11: 1.5 | E11: 1161 | F11: 1.2 | G11: =(+E11/C11)-1 -> -0.1993103448 | H11: 1179 | I11: =+H11/$H$10*100 -> 1.288820385 | J11: 0.01550387597 | K11: 819 | L11: 0.8517763541 | M11: =(+K11/H11)-1 -> -0.3053435115 | N11: 615 | O11: 0.8517763541 | P11: =(+N11/K11)-1 -> -0.2490842491 | Q11: 612 | R11: 0.6 | S11: =(+Q11/N11)-1 -> -0.00487804878 | T11: 687 | U11: 0.7 | V11: =(+T11/Q11)-1 -> 0.1225490196 | W11: 535 | X11: 0.6 | Y11: =(+W11/T11)-1 -> -0.2212518195
B12: Contacto eléctrico, con fuego, temp. o sust. peligrosas | C12: 6329 | D12: 6.6 | E12: 5974 | F12: 6.3 | G12: -0.05609100964 | H12: 6501 | I12: 7.106549044 | J12: 0.08821560094 | K12: 7546 | L12: 7.847990681 | M12: 0.1607445008 | N12: 8392 | O12: 7.847990681 | P12: 0.1121123774 | Q12: 8572 | R12: 8.6 | S12: 0.02144899905 | T12: 8893 | U12: 8.9 | V12: 0.0374475035 | W12: 8776 | X12: 9.2 | Y12: -0.01315641516
B13: Ahogamiento, quedar sepultado, o envuelto | C13: 329 | D13: 0.3 | E13: 326 | F13: 0.3 | G13: -0.009118541033 | H13: 317 | I13: 0.3465276184 | J13: -0.02760736196 | K13: 425 | L13: 0.4420084866 | M13: 0.3406940063 | N13: 379 | O13: 0.4420084866 | P13: -0.1082352941 | Q13: 324 | R13: 0.3 | S13: -0.1451187335 | T13: 334 | U13: 0.3 | V13: 0.03086419753 | W13: 305 | X13: 0.3 | Y13: -0.08682634731
B14: Golpe contra un obj inmóvil, trab. en movimiento | C14: 17841 | D14: 18.7 | E14: 18380 | F14: 19.4 | G14: 0.03021131103 | H14: 17351 | I14: 18.96719466 | J14: -0.05598476605 | K14: 17599 | L14: 18.30331142 | M14: 0.01429312432 | N14: 17857 | O14: 18.30331142 | P14: 0.01465992386 | Q14: 18033 | R14: 18.2 | S14: 0.009856078849 | T14: 18026 | U14: 18.1 | V14: -0.0003881772306 | W14: 17780 | X14: 18.7 | Y14: -0.0136469544
B15: Choque o golpe contra objeto en movimiento | C15: 23587 | D15: 24.8 | E15: 23635 | F15: 25 | G15: 0.00203501929 | H15: 21653 | I15: 23.66991331 | J15: -0.08385868415 | K15: 22492 | L15: 23.39212913 | M15: 0.03874751766 | N15: 23784 | O15: 23.39212913 | P15: 0.05744264627 | Q15: 24323 | R15: 24.5 | S15: 0.02266229398 | T15: 24586 | U15: 24.7 | V15: 0.01081281092 | W15: 24033 | X15: 25.2 | Y15: -0.02249247539
B16: Contacto con Agente material cortante, punzante o duro | C16: 9910 | D16: 10.4 | E16: 9612 | F16: 10.2 | G16: -0.03007063572 | H16: 9194 | I16: 10.05039408 | J16: -0.04348730753 | K16: 10028 | L16: 10.42932024 | M16: 0.09071133348 | N16: 10500 | O16: 10.42932024 | P16: 0.04706820901 | Q16: 10532 | R16: 10.6 | S16: 0.003047619048 | T16: 10850 | U16: 10.9 | V16: 0.0301936954 | W16: 10961 | X16: 11.5 | Y16: 0.01023041475
B17: Quedar atrapado, ser aplastado o sufrir amputación | C17: 1320 | D17: 1.4 | E17: 1364 | F17: 1.4 | G17: 0.03333333333 | H17: 1216 | I17: 1.329266826 | J17: -0.1085043988 | K17: 1207 | L17: 1.255304102 | M17: -0.007401315789 | N17: 1431 | O17: 1.255304102 | P17: 0.1855840928 | Q17: 1518 | R17: 1.5 | S17: 0.0607966457 | T17: 1642 | U17: 1.7 | V17: 0.08168642951 | W17: 1550 | X17: 1.6 | Y17: -0.05602923264
B18: Sobreesfuerzo, trauma psíquico, radiaciones, ruido | C18: 31686 | D18: 33.3 | E18: 31366 | F18: 33.2 | G18: -0.01009909739 | H18: 31314 | I18: 34.23080707 | J18: -0.001657846075 | K18: 33208 | L18: 34.53698311 | M18: 0.0604841285 | N18: 34050 | O18: 34.53698311 | P18: 0.02535533606 | Q18: 32358 | R18: 32.6 | S18: -0.04969162996 | T18: 31172 | U18: 31.4 | V18: -0.03665245071 | W18: 27765 | X18: 29.2 | Y18: -0.1092968048
B19: Mordeduras, patadas (de animales o personas) | C19: 2305 | D19: 2.4 | E19: 2340 | F19: 2.5 | G19: 0.01518438178 | H19: 2311 | I19: 2.526262858 | J19: -0.01239316239 | K19: 2227 | L19: 2.31612447 | M19: -0.03634790134 | N19: 2132 | O19: 2.31612447 | P19: -0.04265828469 | Q19: 2411 | R19: 2.4 | S19: 0.1308630394 | T19: 2561 | U19: 2.6 | V19: 0.06221484861 | W19: 2548 | X19: 2.7 | Y19: -0.005076142132
B20: Infartos, derrames cerebrales y otras patologías no traum. | C20: 453 | D20: 0.5 | E20: 378 | F20: 0.4 | G20: -0.1655629139 | H20: 443 | I20: 0.4842641481 | J20: 0.171957672 | K20: 601 | L20: 0.625052001 | M20: 0.3566591422 | N20: 548 | O20: 0.625052001 | P20: -0.08818635607 | Q20: 622 | R20: 0.6 | S20: 0.1350364964 | T20: 674 | U20: 0.7 | V20: 0.08360128617 | W20: 960 | X20: 1 | Y20: 0.4243323442
B21: Fuente: IRSST

Sheet Hoja 17 (hidden)
B1: Estadística de accidentes de trabajo sin baja registrados en la Comunidad de Madrid
B2: ='Hoja 16'!B2 -> 2012-2019
B3: IRSST
B7: S6. Accidentes sin baja registrados, por parte lesionada
C9: 2012 | E9: 2013 | G9: % Variación | H9: 2014 | J9: % Variación | K9: 2015 | M9: % Variación | N9: 2016 | P9: % Variación | Q9: 2017 | S9: % Variación | T9: 2018 | V9: % Variación | W9: 2019 | Y9: % Variación
C10: Total | D10: % | E10: Total | F10: % | G10: 2012-2013% | H10: Total | I10: % | J10: 2013-2014 | K10: Total | L10: % | M10: 2015-2014 | N10: Total | O10: % | P10: 2016-2015 | Q10: Total | R10: % | S10: 2017-2016 | T10: Total | U10: % | V10: 2018-2017 | W10: Total | X10: % | Y10: 2019-2018
B11: Total | C11: 95210 | D11: 100 | E11: 94536 | F11: 100 | G11: =(+E11/C11)-1 -> -0.007079088331 | H11: 91479 | I11: 100 | J11: =(+H11/E11)-1 -> -0.03233688753 | K11: 96152 | L11: 100 | M11: =+(+K11/H11)-1 -> 0.05108276216 | N11: 99688 | O11: 100 | P11: =+(+N11/K11)-1 -> 0.03677510608 | Q11: 99305 | R11: 100 | S11: =+(+Q11/N11)-1 -> -0.003841986999 | T11: 99425 | U11: 100 | V11: =+(+T11/Q11)-1 -> 0.001208398369 | W11: 95213 | X11: 100 | Y11: =+(+W11/T11)-1 -> -0.04236359065
B12: No consta | C12: 639 | D12: 0.7 | E12: 584 | F12: 0.6177540831 | G12: -0.08607198748 | H12: 521 | I12: 0.5695296188 | J12: -0.1078767123 | K12: 377 | L12: 0.3920875281 | M12: =+(+K12/H12)-1 -> -0.2763915547 | N12: 260 | O12: 0.3920875281 | P12: =+(+N12/K12)-1 -> -0.3103448276 | Q12: 334 | R12: 0.3 | S12: =+(+Q12/N12)-1 -> 0.2846153846 | T12: 343 | U12: 0.3 | V12: =+(+T12/Q12)-1 -> 0.02694610778 | W12: 284 | X12: 0.3 | Y12: =+(+W12/T12)-1 -> -0.1720116618
B13: Cabeza | C13: 13163 | D13: 13.8 | E13: 12415 | F13: 13.13256326 | G13: -0.05682595153 | H13: 12466 | I13: 13.62717126 | J13: 0.004107933951 | K13: 13627 | L13: 14.17235211 | M13: 0.09313332264 | N13: 14346 | O13: 14.17235211 | P13: 0.05276289719 | Q13: 14342 | R13: 14.4 | S13: -0.0002788233654 | T13: 14389 | U13: 14.5 | V13: 0.003277088272 | W13: 14438 | X13: 15.2 | Y13: 0.003405379109
B14: Cuello | C14: 5047 | D14: 5.3 | E14: 5011 | F14: 5.300626216 | G14: -0.007132950267 | H14: 5807 | I14: 6.347904984 | J14: 0.1588505288 | K14: 6148 | L14: 6.394042766 | M14: 0.05872223179 | N14: 6515 | O14: 6.394042766 | P14: 0.0596942095 | Q14: 6448 | R14: 6.5 | S14: -0.01028396009 | T14: 6438 | U14: 6.5 | V14: -0.001550868486 | W14: 6098 | X14: 6.4 | Y14: -0.05281143212
B15: Espalda | C15: 13316 | D15: 14 | E15: 13017 | F15: 13.76935771 | G15: -0.02245419045 | H15: 13043 | I15: 14.25791712 | J15: 0.001997388031 | K15: 13572 | L15: 14.11515101 | M15: 0.0405581538 | N15: 13929 | O15: 14.11515101 | P15: 0.02630415561 | Q15: 13716 | R15: 13.8 | S15: -0.01529183717 | T15: 13276 | U15: 13.4 | V15: -0.03207932342 | W15: 12124 | X15: 12.7 | Y15: -0.08677312444
B16: Tronco y órganos | C16: 2906 | D16: 3.1 | E16: 3077 | F16: 3.254844715 | G16: 0.05884377151 | H16: 3315 | I16: 3.623782507 | J16: 0.0773480663 | K16: 3496 | L16: 3.635909809 | M16: 0.05460030166 | N16: 3744 | O16: 3.635909809 | P16: 0.0709382151 | Q16: 3632 | R16: 3.7 | S16: -0.02991452991 | T16: 3683 | U16: 3.7 | V16: 0.01404185022 | W16: 3513 | X16: 3.7 | Y16: -0.04615802335
B17: Extremidades superiores | C17: 27789 | D17: 29.2 | E17: 27999 | F17: 29.61728865 | G17: 0.007556946993 | H17: 29089 | I17: 31.79855486 | J17: 0.03892996178 | K17: 31369 | L17: 32.62438639 | M17: 0.0783801437 | N17: 32412 | O17: 32.62438639 | P17: 0.03324938634 | Q17: 32355 | R17: 32.6 | S17: -0.001758607923 | T17: 33131 | U17: 33.3 | V17: 0.0239839283 | W17: 32036 | X17: 33.6 | Y17: -0.03305061725
B18: Extremidades inferiores | C18: 19689 | D18: 20.7 | E18: 19888 | F18: 21.03748836 | G18: 0.01010716644 | H18: 20493 | I18: 22.40186272 | J18: 0.03042035398 | K18: 21942 | L18: 22.82011815 | M18: 0.07070707071 | N18: 22659 | O18: 22.82011815 | P18: 0.0326770577 | Q18: 22187 | R18: 22.3 | S18: -0.02083057505 | T18: 21722 | U18: 21.8 | V18: -0.02095821878 | W18: 20647 | X18: 21.7 | Y18: -0.04948899733
B19: Todo el cuerpo y múltiples partes | C19: 12112 | D19: 12.7 | E19: 12149 | F19: 12.85118897 | G19: 0.003054821664 | H19: 6324 | I19: 6.913062014 | J19: -0.4794633303 | K19: 5219 | L19: 5.427864215 | M19: -0.1747311828 | N19: 5538 | O19: 5.427864215 | P19: 0.06112282046 | Q19: 5987 | R19: 6 | S19: 0.08107620079 | T19: 6089 | U19: 6.1 | V19: 0.01703691331 | W19: 5729 | X19: 6 | Y19: -0.0591230087
B20: Otras partes no mencionadas | C20: 549 | D20: 0.6 | E20: 396 | F20: 0.4188880427 | G20: -0.2786885246 | H20: 421 | I20: 0.4602149127 | J20: 0.06313131313 | K20: 402 | L20: 0.4180880273 | M20: -0.04513064133 | N20: 285 | O20: 0.4180880273 | P20: -0.2910447761 | Q20: 304 | R20: 0.3 | S20: 0.06666666667 | T20: 354 | U20: 0.4 | V20: 0.1644736842 | W20: 344 | X20: 0.4 | Y20: -0.02824858757
B21: Fuente: IRSST

Sheet Hoja 18 (hidden)
B1: Estadística de accidentes de trabajo sin baja registrados en la Comunidad de Madrid
B2: ='Hoja 17'!B2 -> 2012-2019
B3: IRSST
B6: S7. Accidentes sin baja registrados, por tipo de lesión
C8: 2012 | E8: 2013 | G8: % Variación | H8: 2014 | J8: % Variación | K8: 2015 | M8: % Variación | N8: 2016 | P8: % Variación | Q8: 2017 | S8: % Variación | T8: 2018 | V8: % Variación | W8: 2019 | Y8: % Variación
C9: Total | D9: % | E9: Total | F9: % | H9: Total | I9: % | J9: 2013-2014 | K9: Total | L9: % | M9: 2015-2014 | N9: Total | O9: % | P9: 2016-2015 | Q9: Total | R9: % | S9: 2017-2016 | T9: Total | U9: % | V9: 2018-2017 | W9: Total | X9: % | Y9: 2019-2018
B10: Total | C10: 95210 | D10: 100 | E10: 94536 | F10: 100 | G10: =(+E10/C10)-1 -> -0.007079088331 | H10: 91506 | I10: 100 | J10: =(+H10/E10)-1 -> -0.03205128205 | K10: 96152 | L10: 100 | M10: =+(+K10/H10)-1 -> 0.05077262693 | N10: 99688 | O10: 100 | P10: =+(+N10/K10)-1 -> 0.03677510608 | Q10: 99305 | R10: 100 | S10: =+(+Q10/N10)-1 -> -0.003841986999 | T10: 99425 | U10: 100 | V10: =+(+T10/Q10)-1 -> 0.001208398369 | W10: 95213 | X10: 100 | Y10: =+(+W10/T10)-1 -> -0.04236359065
B11: Desconocida | C11: 1853 | D11: 1.9 | E11: 1705 | F11: 1.803545739 | G11: =(+E11/C11)-1 -> -0.0798704803 | H11: 1596 | I11: 1.744147925 | J11: -0.06392961877 | K11: 1263 | L11: 1.31354522 | M11: =+(+K11/H11)-1 -> -0.2086466165 | N11: 1173 | O11: 1.31354522 | P11: =+(+N11/K11)-1 -> -0.07125890736 | Q11: 1668 | R11: 1.7 | S11: =+(+Q11/N11)-1 -> 0.4219948849 | T11: 1247 | U11: 1.3 | V11: =+(+T11/Q11)-1 -> -0.2523980815 | W11: 1123 | X11: 1.2 | Y11: =+(+W11/T11)-1 -> -0.09943865277
B12: Heridas y lesiones superficiales | C12: 58136 | D12: 61.1 | E12: 54918 | F12: 58.09215537 | G12: -0.05535296546 | H12: 48819 | I12: 53.35059996 | J12: -0.1110564842 | K12: 50734 | L12: 52.76437308 | M12: 0.03922653065 | N12: 53212 | O12: 52.76437308 | P12: 0.04884298498 | Q12: 54174 | R12: 54.6 | S12: 0.01807862888 | T12: 55431 | U12: 55.8 | V12: 0.02320301252 | W12: 53652 | X12: 56.3 | Y12: -0.03209395465
B13: Fracturas de hueso | C13: 590 | D13: 0.6 | E13: 637 | F13: 0.6738173817 | G13: 0.07966101695 | H13: 727 | I13: 0.7944834219 | J13: 0.1412872841 | K13: 746 | L13: 0.7758548964 | M13: 0.02613480055 | N13: 761 | O13: 0.7758548964 | P13: 0.02010723861 | Q13: 749 | R13: 0.8 | S13: -0.01576872536 | T13: 755 | U13: 0.8 | V13: 0.008010680908 | W13: 714 | X13: 0.7 | Y13: -0.05430463576
B14: Dislocaciones, esguinces y torceduras | C14: 25098 | D14: 26.4 | E14: 26940 | F14: 28.49708048 | G14: 0.07339230218 | H14: 27525 | I14: 30.07999475 | J14: 0.02171492205 | K14: 29124 | L14: 30.28954156 | M14: 0.05809264305 | N14: 29244 | O14: 30.28954156 | P14: 0.004120313144 | Q14: 26458 | R14: 26.6 | S14: -0.09526740528 | T14: 25742 | U14: 25.9 | V14: -0.02706175826 | W14: 24012 | X14: 25.2 | Y14: -0.06720534535
B15: Amputaciones traumáticas, pérdidas de partes de cuerpo | C15: 8 | D15: 0 | E15: 10 | F15: 0.01057798088 | G15: 0.25 | H15: 5 | I15: 0.005464122571 | J15: -0.5 | K15: 6 | L15: 0.00624011981 | M15: 0.2 | N15: 9 | O15: 0.00624011981 | P15: 0.5 | Q15: 9 | R15: 0 | S15: 0 | T15: 9 | U15: 0 | V15: 0 | W15: 7 | X15: 0 | Y15: -0.2222222222
B16: Conmoción y lesiones internas | C16: 3233 | D16: 3.4 | E16: 5626 | F16: 5.95117204 | G16: 0.7401793999 | H16: 7999 | I16: 8.741503289 | J16: 0.4217916815 | K16: 9173 | L16: 9.54010317 | M16: 0.146768346 | N16: 10232 | O16: 9.54010317 | P16: 0.115447509 | Q16: 10851 | R16: 10.9 | S16: 0.06049648163 | T16: 10861 | U16: 10.9 | V16: 0.0009215740485 | W16: 10587 | X16: 11.1 | Y16: -0.02522787957
B17: Quemaduras, escaldaduras y congelación | C17: 748 | D17: 0.8 | E17: 840 | F17: 0.8885503935 | G17: 0.1229946524 | H17: 789 | I17: 0.8622385417 | J17: -0.06071428571 | K17: 879 | L17: 0.9141775522 | M17: 0.1140684411 | N17: 988 | O17: 0.9141775522 | P17: 0.1240045506 | Q17: 969 | R17: 1 | S17: -0.01923076923 | T17: 1058 | U17: 1.1 | V17: 0.09184726522 | W17: 901 | X17: 0.9 | Y17: -0.1483931947
B18: Envenenamientos e infecciones | C18: 457 | D18: 0.5 | E18: 311 | F18: 0.3289752052 | G18: -0.3194748359 | H18: 316 | I18: 0.3453325465 | J18: 0.01607717042 | K18: 308 | L18: 0.3203261503 | M18: -0.0253164557 | N18: 294 | O18: 0.3203261503 | P18: -0.04545454545 | Q18: 226 | R18: 0.2 | S18: -0.231292517 | T18: 321 | U18: 0.3 | V18: 0.4203539823 | W18: 284 | X18: 0.3 | Y18: -0.1152647975
B19: Ahogamiento y asfixia | C19: 99 | D19: 0.1 | E19: 85 | F19: 0.08991283744 | G19: -0.1414141414 | H19: 62 | I19: 0.06775511988 | J19: -0.2705882353 | K19: 82 | L19: 0.08528163741 | M19: 0.3225806452 | N19: 103 | O19: 0.08528163741 | P19: 0.256097561 | Q19: 68 | R19: 0.1 | S19: -0.3398058252 | T19: 65 | U19: 0.1 | V19: -0.04411764706 | W19: 79 | X19: 0.1 | Y19: 0.2153846154
B20: Efectos del ruido, la vibración y la presión | C20: 59 | D20: 0.1 | E20: 34 | F20: 0.03596513498 | G20: -0.4237288136 | H20: 19 | I20: 0.02076366577 | J20: -0.4411764706 | K20: 39 | L20: 0.04056077877 | M20: 1.052631579 | N20: 37 | O20: 0.04056077877 | P20: -0.05128205128 | Q20: 39 | R20: 0 | S20: 0.05405405405 | T20: 34 | U20: 0 | V20: -0.1282051282 | W20: 36 | X20: 0 | Y20: 0.05882352941
B21: Efectos de las temperaturas extremas, luz y radiación | C21: 63 | D21: 0.1 | E21: 78 | F21: 0.08250825083 | G21: 0.2380952381 | H21: 70 | I21: 0.076497716 | J21: -0.1025641026 | K21: 75 | L21: 0.07800149763 | M21: 0.07142857143 | N21: 77 | O21: 0.07800149763 | P21: 0.02666666667 | Q21: 99 | R21: 0.1 | S21: 0.2857142857 | T21: 87 | U21: 0.1 | V21: -0.1212121212 | W21: 65 | X21: 0.1 | Y21: -0.2528735632
B22: Daños psicológicos, choques traumáticos | C22: 315 | D22: 0.3 | E22: 346 | F22: 0.3659981383 | G22: 0.09841269841 | H22: 719 | I22: 0.7857408257 | J22: 1.078034682 | K22: 814 | L22: 0.8465762543 | M22: 0.1321279555 | N22: 763 | O22: 0.8465762543 | P22: -0.06265356265 | Q22: 903 | R22: 0.9 | S22: 0.1834862385 | T22: 824 | U22: 0.8 | V22: -0.08748615725 | W22: 773 | X22: 0.8 | Y22: -0.06189320388
B23: Lesiones múltiples | C23: 541 | D23: 0.6 | E23: 553 | F23: 0.5849623424 | G23: 0.02218114603 | H23: 674 | I23: 0.7365637226 | J23: 0.2188065099 | K23: 700 | L23: 0.7280139779 | M23: 0.03857566766 | N23: 723 | O23: 0.7280139779 | P23: 0.03285714286 | Q23: 857 | R23: 0.9 | S23: 0.1853388658 | T23: 877 | U23: 0.9 | V23: 0.02333722287 | W23: 914 | X23: 1 | Y23: 0.04218928164
B24: Infartos, derrames cerebrales y otras PNT | C24: 63 | D24: 0.1 | E24: 38 | F24: 0.04019632733 | G24: -0.3968253968 | H24: 35 | I24: 0.038248858 | J24: -0.07894736842 | K24: 49 | L24: 0.05096097845 | M24: 0.4 | N24: 44 | O24: 0.05096097845 | P24: -0.1020408163 | Q24: 41 | R24: 0 | S24: -0.06818181818 | T24: 43 | U24: 0 | V24: 0.0487804878 | W24: 62 | X24: 0.1 | Y24: 0.4418604651
B25: Otras lesiones | C25: 3947 | D25: 4.1 | E25: 2415 | F25: 2.554582381 | G25: -0.3881428933 | H25: 2151 | I25: 2.35066553 | J25: -0.1093167702 | K25: 2160 | L25: 2.246443132 | M25: 0.004184100418 | N25: 2028 | O25: 2.246443132 | P25: -0.06111111111 | Q25: 2194 | R25: 2.2 | S25: 0.08185404339 | T25: 2071 | U25: 2.1 | V25: -0.05606198724 | W25: 2004 | X25: 2.1 | Y25: -0.032351521
B26: Fuente: IRSST

Sheet Hoja 19 (hidden)
A2: Media anual de Afiliados a la Seguridad Social con las prestaciones cubiertas.
A5: CNAE09 | B5: 2012 | C5: 2013 | D5: 2014 | E5: 2015 | F5: 2016 | G5: 2017 | H5: 2018 | I5: 2019
A7: Total | B7: =SUM(B8:B94) -> 2441219.083 | C7: 2374863.833 | D7: 2402016 | E7: 2483804.75 | F7: 2561625.417 | G7: 2652584.833 | H7: 2749850.417 | I7: =SUM(I8:I94) -> 3153641.917
A8: 1 | B8: 4348 | C8: 4298.666667 | D8: 4359.916667 | E8: 4258.166667 | F8: 4130.833333 | G8: 4172.333333 | H8: 4256.166667 | I8: 5411.083333
A9: 2 | B9: 729.75 | C9: 711.5833333 | D9: 744 | E9: 682.1666667 | F9: 691.1666667 | G9: 779.5 | H9: 793.25 | I9: 849
A10: 3 | B10: 144.3333333 | C10: 143.6666667 | D10: 136.9166667 | E10: 129.4166667 | F10: 74.41666667 | G10: 56.75 | H10: 94.91666667 | I10: 125.8333333
A11: 5 | B11: 11.08333333 | C11: 13 | D11: 13.75 | E11: 12.41666667 | F11: 10.25 | G11: 6.666666667 | H11: 4.083333333 | I11: 6.833333333
A12: 6 | B12: 71.08333333 | C12: 70.91666667 | D12: 87.58333333 | E12: 114.75 | F12: 94.75 | G12: 77.66666667 | H12: 68.58333333 | I12: 195.6666667
A13: 7 | B13: 1.25 | C13: 3.5 | D13: 8.666666667 | E13: 11.08333333 | F13: 9.583333333 | G13: 8 | H13: 7.25 | I13: 8.083333333
A14: 8 | B14: 518.5 | C14: 426.0833333 | D14: 344.5833333 | E14: 310.6666667 | F14: 317.8333333 | G14: 344.6666667 | H14: 381.1666667 | I14: 486.4166667
A15: 9 | B15: 1282.833333 | C15: 1321.833333 | D15: 1336.916667 | E15: 1366.5 | F15: 1289.416667 | G15: 1172.416667 | H15: 1126.833333 | I15: 957.4166667
A16: 10 | B16: 15555.08333 | C16: 14930 | D16: 14845.25 | E16: 15115.25 | F16: 15651.91667 | G16: 16432 | H16: 17096.83333 | I16: 18901.83333
A17: 11 | B17: 3543.916667 | C17: 3476.583333 | D17: 3183.333333 | E17: 2574.25 | F17: 2398.666667 | G17: 2461.916667 | H17: 2506.166667 | I17: 2526.083333
A18: 12 | B18: 511.6666667 | C18: 443.1666667 | D18: 437.6666667 | E18: 444.5833333 | F18: 445.75 | G18: 425.0833333 | H18: 409.5833333 | I18: 390.3333333
A19: 13 | B19: 1427 | C19: 1350.75 | D19: 1376.5 | E19: 1431.5 | F19: 1573.5 | G19: 1702.666667 | H19: 1824.583333 | I19: 2209.333333
A20: 14 | B20: 5062.083333 | C20: 4486.75 | D20: 3850.083333 | E20: 3889.583333 | F20: 3920.75 | G20: 3879.5 | H20: 3978.833333 | I20: 4910.083333
A21: 15 | B21: 921.5 | C21: 899.75 | D21: 924.4166667 | E21: 969.25 | F21: 976.25 | G21: 983.0833333 | H21: 977.5833333 | I21: 1165.666667
A22: 16 | B22: 2240.833333 | C22: 1904.166667 | D22: 1901.083333 | E22: 2022.416667 | F22: 2098.416667 | G22: 2160 | H22: 2189.25 | I22: 2705.75
A23: 17 | B23: 4956.25 | C23: 4737.833333 | D23: 4724 | E23: 4893.666667 | F23: 4915.833333 | G23: 5052.75 | H23: 4984.666667 | I23: 4988.75
A24: 18 | B24: 16391.16667 | C24: 14621.16667 | D24: 14055.08333 | E24: 13909.41667 | F24: 14097.75 | G24: 13935.25 | H24: 14105.83333 | I24: 17164.83333
A25: 19 | B25: 905.25 | C25: 846.6666667 | D25: 875 | E25: 866.8333333 | F25: 888.0833333 | G25: 885.1666667 | H25: 950.25 | I25: 1065.416667
A26: 20 | B26: 6113.333333 | C26: 5877.25 | D26: 5775.5 | E26: 5761.166667 | F26: 5732.75 | G26: 6035.166667 | H26: 6200.833333 | I26: 6556.833333
A27: 21 | B27: 10236.58333 | C27: 10415.91667 | D27: 11026.16667 | E27: 11132.83333 | F27: 11567.83333 | G27: 12019.91667 | H27: 12785.75 | I27: 13826.66667
A28: 22 | B28: 5618 | C28: 5279.166667 | D28: 5208.333333 | E28: 5292.916667 | F28: 5540 | G28: 5527.916667 | H28: 5431.5 | I28: 5551.25
A29: 23 | B29: 6082.083333 | C29: 5169.25 | D29: 4606.083333 | E29: 4369.333333 | F29: 4251.416667 | G29: 4403.416667 | H29: 4418.416667 | I29: 4874.583333
A30: 24 | B30: 3429.083333 | C30: 3001 | D30: 2854.25 | E30: 2944.416667 | F30: 2927 | G30: 3026.333333 | H30: 3241.916667 | I30: 3481.583333
A31: 25 | B31: 16674 | C31: 14799.33333 | D31: 14413.66667 | E31: 14881.25 | F31: 15670.75 | G31: 16552.41667 | H31: 17053.16667 | I31: 19296.5
A32: 26 | B32: 13447.25 | C32: 12534.91667 | D32: 12652.5 | E32: 13049.41667 | F32: 12043.08333 | G32: 12109.66667 | H32: 9570.5 | I32: 9248.333333
A33: 27 | B33: 5041.166667 | C33: 4714.416667 | D33: 4563.333333 | E33: 4556.583333 | F33: 4526.166667 | G33: 4453.5 | H33: 4530.666667 | I33: 4771.666667
A34: 28 | B34: 12096.91667 | C34: 11369.41667 | D34: 11239.58333 | E34: 11324.58333 | F34: 11817 | G34: 12452.75 | H34: 12369.66667 | I34: 13008.66667
A35: 29 | B35: 10593.83333 | C35: 10679.83333 | D35: 10297.08333 | E35: 10048.83333 | F35: 9952.916667 | G35: 9641.166667 | H35: 9512.5 | I35: 9049.416667
A36: 30 | B36: 11312.33333 | C36: 11453.58333 | D36: 11483.83333 | E36: 10866.16667 | F36: 11799.83333 | G36: 12947.83333 | H36: 13993 | I36: 14491.75
A37: 31 | B37: 5183.916667 | C37: 4318.75 | D37: 4143 | E37: 4260.166667 | F37: 4500.166667 | G37: 4632.666667 | H37: 4785.333333 | I37: 5690.166667
A38: 32 | B38: 4740.5 | C38: 4583.25 | D38: 4694.5 | E38: 5056.416667 | F38: 5237.166667 | G38: 5329.166667 | H38: 5309.916667 | I38: 6269.916667
A39: 33 | B39: 10368.91667 | C39: 10023 | D39: 10328.91667 | E39: 10346.16667 | F39: 9457.583333 | G39: 9697.833333 | H39: 10028.33333 | I39: 11586.08333
A40: 35 | B40: 7550.416667 | C40: 7585.25 | D40: 7491.666667 | E40: 7018.5 | F40: 7166 | G40: 7464.5 | H40: 7730.916667 | I40: 8140
A41: 36 | B41: 3579.25 | C41: 3521.833333 | D41: 3534.833333 | E41: 3631.083333 | F41: 3694.333333 | G41: 3861.25 | H41: 4156.583333 | I41: 4417.833333
A42: 37 | B42: 515.6666667 | C42: 570.25 | D42: 630.1666667 | E42: 556.3333333 | F42: 596.9166667 | G42: 506.75 | H42: 478.25 | I42: 498.75
A43: 38 | B43: 12698.08333 | C43: 11193.16667 | D43: 10269.41667 | E43: 10217.5 | F43: 10341.83333 | G43: 10833.25 | H43: 11445.25 | I43: 12034.91667
A44: 39 | B44: 89.33333333 | C44: 72.16666667 | D44: 100.8333333 | E44: 110 | F44: 126.3333333 | G44: 131.25 | H44: 167.75 | I44: 192.5
A45: 41 | B45: 47346.5 | C45: 41056.16667 | D45: 39433.91667 | E45: 41131 | F45: 42852 | G45: 46363.83333 | H45: 51068.75 | I45: 62990.08333
A46: 42 | B46: 9239.666667 | C46: 7811.333333 | D46: 7798.666667 | E46: 8359.666667 | F46: 8053.416667 | G46: 7943.75 | H46: 7828.166667 | I46: 8946.333333
A47: 43 | B47: 78668.41667 | C47: 69569.66667 | D47: 68189.41667 | E47: 72220.83333 | F47: 74813.75 | G47: 80338.08333 | H47: 86158.16667 | I47: 115347.75
A48: 45 | B48: 39359.33333 | C48: 37725 | D48: 37741.5 | E48: 38826.83333 | F48: 40409.25 | G48: 42013.5 | H48: 43367 | I48: 51334.58333
A49: 46 | B49: 138100.25 | C49: 132837.5833 | D49: 132615.5 | E49: 137534.1667 | F49: 140913 | G49: 143887.1667 | H49: 147619.6667 | I49: 168618.75
A50: 47 | B50: 223196.5 | C50: 212322.25 | D50: 214458.3333 | E50: 220920.5 | F50: 226028.8333 | G50: 231380.1667 | H50: 235163.75 | I50: 280662.0833
A51: 49 | B51: 61716.25 | C51: 65678.75 | D51: 65085.33333 | E51: 66118.16667 | F51: 66762.16667 | G51: 69855.75 | H51: 73325 | I51: 99620.33333
A52: 50 | B52: 3393.083333 | C52: 3173.75 | D52: 3135.75 | E52: 2974.916667 | F52: 2919.666667 | G52: 2937.25 | H52: 3066 | I52: 2831.583333
A53: 51 | B53: 19715.41667 | C53: 18072.83333 | D53: 17125.83333 | E53: 17280.83333 | F53: 17657.33333 | G53: 18006.16667 | H53: 18698.66667 | I53: 19786.66667
A54: 52 | B54: 30731.33333 | C54: 29734.66667 | D54: 30202.16667 | E54: 30976.41667 | F54: 31747.41667 | G54: 33017.5 | H54: 36107.5 | I54: 39444.33333
A55: 53 | B55: 14125.58333 | C55: 13850.16667 | D55: 13870 | E55: 14390.5 | F55: 15328.08333 | G55: 16664.16667 | H55: 16744 | I55: 20452.33333
A56: 55 | B56: 17520.58333 | C56: 16764.41667 | D56: 16541.25 | E56: 17211.75 | F56: 18080.66667 | G56: 19015.66667 | H56: 20021.66667 | I56: 22155.16667
A57: 56 | B57: 133749.4167 | C57: 130526.4167 | D57: 134667.5833 | E57: 143232 | F57: 151903.4167 | G57: 160318.3333 | H57: 167383.75 | I57: 195215.1667
A58: 58 | B58: 21426.66667 | C58: 19686.58333 | D58: 19469.25 | E58: 19392.5 | F58: 18899.16667 | G58: 17484.66667 | H58: 16616.33333 | I58: 18052
A59: 59 | B59: 10907.83333 | C59: 9906.916667 | D59: 10152.75 | E59: 11356.83333 | F59: 12533.41667 | G59: 13310.91667 | H59: 14258.5 | I59: 17664.75
A60: 60 | B60: 8405.333333 | C60: 8147.583333 | D60: 8161.583333 | E60: 8087.833333 | F60: 8512.916667 | G60: 9208.75 | H60: 9580.25 | I60: 10271
A61: 61 | B61: 38399.5 | C61: 37267.83333 | D61: 37565.75 | E61: 38049.66667 | F61: 35706.5 | G61: 33391 | H61: 33157.41667 | I61: 33999
A62: 62 | B62: 82233.41667 | C62: 82326.08333 | D62: 85558.75 | E62: 93849.58333 | F62: 101905.0833 | G62: 109735.5 | H62: 122635.4167 | I62: 141446.5833
A63: 63 | B63: 8254 | C63: 8092.666667 | D63: 8578.166667 | E63: 8812.166667 | F63: 9345 | G63: 10539.66667 | H63: 11147.58333 | I63: 13168.33333
A64: 64 | B64: 66895.33333 | C64: 64381 | D64: 62036.33333 | E64: 61809.08333 | F64: 61950.58333 | G64: 62181.25 | H64: 62200.75 | I64: 63204
A65: 65 | B65: 23122.83333 | C65: 23326.5 | D65: 23486.75 | E65: 23795.16667 | F65: 24330.5 | G65: 24704.5 | H65: 25191.08333 | I65: 26201.16667
A66: 66 | B66: 15505.33333 | C66: 15834.91667 | D66: 16915.16667 | E66: 17615.83333 | F66: 18828.83333 | G66: 20754.75 | H66: 22017.41667 | I66: 28688.66667
A67: 68 | B67: 17151.66667 | C67: 17532.25 | D67: 18939.83333 | E67: 20724.91667 | F67: 21477.66667 | G67: 22671.16667 | H67: 24450.83333 | I67: 33218.58333
A68: 69 | B68: 56583.83333 | C68: 56286.66667 | D68: 57358.75 | E68: 59815.75 | F68: 62354.66667 | G68: 64223.25 | H68: 66836.08333 | I68: 77403.25
A69: 70 | B69: 18603.33333 | C69: 19082.83333 | D69: 20345.5 | E69: 21985.41667 | F69: 25052.91667 | G69: 28495.08333 | H69: 31810.58333 | I69: 40971.08333
A70: 71 | B70: 57007 | C70: 56028.41667 | D70: 56940.08333 | E70: 57946.25 | F70: 60009.75 | G70: 60731.58333 | H70: 62148.58333 | I70: 72485.66667
A71: 72 | B71: 18307.08333 | C71: 17728.58333 | D71: 17382.25 | E71: 17925.66667 | F71: 18662.25 | G71: 19173 | H71: 19440 | I71: 22301.83333
A72: 73 | B72: 34989.66667 | C72: 33526.66667 | D72: 33848.33333 | E72: 35410.33333 | F72: 37293.91667 | G72: 38461.25 | H72: 39270 | I72: 46424.83333
A73: 74 | B73: 14480 | C73: 15286.33333 | D73: 15660.08333 | E73: 16824.41667 | F73: 18543.66667 | G73: 19060.5 | H73: 20550 | I73: 32718.91667
A74: 75 | B74: 1650.166667 | C74: 1697.333333 | D74: 1792.583333 | E74: 1923.833333 | F74: 2105.666667 | G74: 2352.25 | H74: 2557.833333 | I74: 3749
A75: 77 | B75: 31896.5 | C75: 26181.41667 | D75: 21928.25 | E75: 20901.58333 | F75: 19461.25 | G75: 19985.16667 | H75: 20235.41667 | I75: 24517.66667
A76: 78 | B76: 22054.5 | C76: 21122.5 | D76: 23660.08333 | E76: 27647.08333 | F76: 30760.41667 | G76: 34578.25 | H76: 37718.83333 | I76: 41485.33333
A77: 79 | B77: 11459.16667 | C77: 11024.58333 | D77: 11089 | E77: 11660.58333 | F77: 12357 | G77: 12859.91667 | H77: 13335.25 | I77: 16002
A78: 80 | B78: 35032 | C78: 33925.75 | D78: 33992 | E78: 34768.5 | F78: 36358.66667 | G78: 37474.5 | H78: 38617.08333 | I78: 38133
A79: 81 | B79: 101087.6667 | C79: 98092.41667 | D79: 98872.75 | E79: 101921.4167 | F79: 105432.1667 | G79: 108419 | H79: 110845.5833 | I79: 119992.75
A80: 82 | B80: 55707.66667 | C80: 59359.5 | D80: 66603.25 | E80: 72309.91667 | F80: 77375 | G80: 83379.41667 | H80: 88334.41667 | I80: 99127.33333
A81: 84 | B81: 131233.5 | C81: 124510.25 | D81: 118737.9167 | E81: 116475 | F81: 115515 | G81: 116417.1667 | H81: 116441.0833 | I81: 117080.0833
A82: 85 | B82: 135762.1667 | C82: 133618.3333 | D82: 143045.6667 | E82: 149137.8333 | F82: 154973.6667 | G82: 162544 | H82: 169868.6667 | I82: 187958
A83: 86 | B83: 134161.8333 | C83: 128426.9167 | D83: 130370.75 | E83: 135116.6667 | F83: 139430.5833 | G83: 143106.3333 | H83: 147776 | I83: 168681.6667
A84: 87 | B84: 36263.33333 | C84: 37597.58333 | D84: 38934.5 | E84: 40310 | F84: 41483.66667 | G84: 43018 | H84: 44246.41667 | I84: 45917.16667
A85: 88 | B85: 28818.25 | C85: 24258.08333 | D85: 25511.75 | E85: 26982.33333 | F85: 28593 | G85: 30375.66667 | H85: 34005.25 | I85: 36609.41667
A86: 90 | B86: 7430.833333 | C86: 7202.083333 | D86: 7424.416667 | E86: 7731.833333 | F86: 8062.333333 | G86: 8459.833333 | H86: 8939.666667 | I86: 15880.41667
A87: 91 | B87: 2739.083333 | C87: 2551.083333 | D87: 2642.166667 | E87: 2790.833333 | F87: 2906.666667 | G87: 3048.333333 | H87: 3142.083333 | I87: 3421.083333
A88: 92 | B88: 4933.416667 | C88: 5153.833333 | D88: 5233.333333 | E88: 5024.666667 | F88: 5075.75 | G88: 5322.25 | H88: 5794.5 | I88: 6792.333333
A89: 93 | B89: 20271.08333 | C89: 20515.33333 | D89: 21471.83333 | E89: 23114.08333 | F89: 24870.83333 | G89: 26996.41667 | H89: 29363.25 | I89: 34875.41667
A90: 94 | B90: 22715.25 | C90: 21789.75 | D90: 21797.5 | E90: 22178.83333 | F90: 21879.16667 | G90: 22090.25 | H90: 22728.33333 | I90: 23736.83333
A91: 95 | B91: 9556.75 | C91: 9423 | D91: 9469.666667 | E91: 9983.75 | F91: 9895.166667 | G91: 8450.833333 | H91: 7997.833333 | I91: 12505.33333
A92: 96 | B92: 29682.16667 | C92: 28645.91667 | D92: 29405.91667 | E92: 30492.91667 | F92: 31140.16667 | G92: 32682.16667 | H92: 34095.66667 | I92: 50681.5
A93: 97 | B93: 103812.6667 | C93: 122386.5833 | D93: 126118.8333 | E93: 128145.6667 | F93: 128275.4167 | G93: 126692.1667 | H93: 124648.25 | I93: 121508.4167
A94: 99 | B94: 1823.666667 | C94: 1968.916667 | D94: 2130.833333 | E94: 2182.833333 | F94: 2263.75 | G94: 2302.583333 | H94: 2330 | I94: 2306.5
A95: Fuente: Seguridad Social
A98: Afiliados a la Seguridad Social con la contingencia por accidentes de trabajo cubierta, que corresponden a:
A100: Régimen General (excepto Sistema Especial Agrario y Sistema Especial Hogar) (*)
A101: · Sistema Especial para Trabajadores por Cuenta Ajena Agrarios del Régimen General, en periodos de actividad.
A102: · Sistema Especial para Empleados de Hogar del Régimen General
A103: · Régimen Especial de Minería del Carbón
A104: · Régimen Especial de Trabajadores del Mar
A105: · Régimen Especial de Autónomos, que han optado por la cobertura especial de las contingencias profesionales
A107: (*) En el Régimen General se exceptúan los funcionarios afectados por la disposición adicional tercera del texto refundido de la Ley General de la Seguridad Social aprobado por el Real Decreto Legislativo 8/2015, de 30 de octubre, debido a que la gestión de las contingencias profesionales de este colectivo se lleva a cabo a través de las mutualidades de funcionarios (MUFACE, ISFAS y MUGEJU).

Sheet Hoja 20 (hidden)
A2: NOTAS
A7: La normativa de referencia principal del Sistema Delt@ es la siguiente:
A9: · Orden Ministerial de Trabajo y Seguridad Social de 16 de diciembre de 1987, por la que se dan instrucciones para la cumplimentación y tramitación de los modelos de notificación de accidentes de trabajo. En esta Orden se recoge el procedimiento administrativo que regula la notificación a través del parte de accidente de trabajo.
A11: · Orden Ministerial TAS/2926/2002, de 19 de noviembre, por la que se establecen nuevos modelos para la notificación de los accidentes de trabajo y se posibilita su transmisión por procedimiento electrónico.
A13: · Resolución de 26 de noviembre de 2002, de la Subsecretaría [de Trabajo y Asuntos Sociales], por la que se regula la utilización del Sistema de Declaración Electrónica de Accidentes de Trabajo (Delt@) que posibilita la transmisión por procedimiento electrónico de los nuevos modelos para la notificación de accidentes de trabajo aprobados por la Orden TAS/2926/2002, de 19 de noviembre.
A14: La tabulación se lleva a cabo sobre los partes de accidentes de trabajo sin baja recepcionados en el año, se tiene en cuenta la fecha de la recepción no la fecha del accidente.
A16: 1 CUMPLIMENTACIÓN DE LA RELACIÓN DE ACCIDENTES DE TRABAJO SIN BAJA (RATSB)
A19: 1.1. Qué es la relación de accidentes de trabajo ocurridos sin baja médica
A21: La relación de accidentes de trabajo ocurridos sin baja médica (RATSB) es un documento donde se recopilan todos los casos de accidente de trabajo sin baja sufridos por los trabajadores afiliados a una misma cuenta de cotización de la Seguridad Social (CCC) que hayan sucedido a lo largo de un mes concreto.
A23: 1.2. Obligación de notificar el accidente sin baja y plazo para su remisión
A25: Deben incluirse en la relación de accidentes sin baja médica (RATSB) los casos de accidente de trabajo[1] donde se haya producido una de las siguientes circunstancias:
A27: El trabajador ha recibido asistencia médica por el accidente de trabajo pero éste no ha ocasionado la baja médica de trabajador accidentado.
A28: El accidente de trabajo sí ha ocasionado la baja médica del trabajador accidentado pero la fecha de alta consignada en el parte médico es exactamente igual a la fecha de baja[2].
A30: La responsabilidad de cumplimentación recae en el empresario con trabajadores por cuenta ajena o por el trabajador por cuenta propia que tenga cubierta la contingencia por accidentes de trabajo por la Seguridad Social. Se debe proceder a la remisión de la RATSB dentro de los cinco primeros días hábiles del mes siguiente al de ocurrencia de los accidentes[3].
A33: [1] El concepto de accidente de trabajo está definido legalmente, respecto de los trabajadores por cuenta ajena, en el en el artículo 156 del texto refundido de la Ley General de la Seguridad Social (aprobado por el Real Decreto Legislativo 8/2015, de 30 de octubre) y respecto de los trabajadores por cuenta propia en los artículos 316 y 317 del citado texto refundido y en el artículo 3.2 del Real Decreto 1273/2003, de 10 de octubre.
A34: [2] Se incluye también este supuesto debido a que en este caso no corresponde la emisión de parte de accidente de trabajo (PAT).
A35: [3] Según artículo 3.b de la Orden Ministerial de 16 de diciembre de 1987 y las instrucciones del modelo de RATSB contenidas en la Orden TAS/2926/2002, de 19 de noviembre.
A36: Sin perjuicio de lo indicado, pueden incluirse en una RATSB accidentes de meses anteriores al de referencia de la RATSB cuando no haya podido realizarse la inclusión de estos casos en la relación del mes que correspondía.
A39: 2. Datos de la relación de accidentes sin baja
A42: Número de referencia Delt@
A48: Fecha de la relación de accidentes sin baja (mes y año)
A52: Entidad Gestora o Colaboradora. Entidad aseguradora responsable de la cobertura de la contingencia. A esta entidad se le enviará la RATSB para continuar la tramitación.
A55: Datos de la empresa
A57: CIF o NIF/NIE de la empresa
A60: Nombre o razón social de la empresa
A62: Datos del centro de trabajo en el que los trabajadores están dados de alta en la Seguridad Social
A64: Código de cuenta de cotización (CCC) a la Seguridad Social en el que están afiliados los trabajadores accidentados
A67: Número de afiliación a la Seguridad Social (NAF) del trabajador por cuenta propia
A71: Provincia donde está radicado el centro de trabajo.
A75: Municipio donde está radicado el centro de trabajo.
A79: Se debe consignar la actividad principal, entendiendo por tal aquella a la que se dedica la mayor parte de los trabajadores incluidos en la Cuenta de Cotización
A82: Código de la actividad económica principal
A83: Se trata de codificar la actividad económica indicada en el campo anterior, a través de la codificación CNAE-2009, según Real Decreto 475/2007, de 13 de abril, por el que se aprueba la Clasificación Nacional de Actividades Económicas 2009. (Véase Guía de cumplimentación PAT Delt@, Anexo II, tabla 1).
A86: Plantilla
A87: Se debe consignar la plantilla a fin del mes de referencia incluida en la Cuenta de Cotización citada anteriormente.
A90: Relación de accidentados sin baja
A92: Por cada uno de los accidentados incluidos en la RATSB se deben cumplimentar los siguientes campos:
A94: Datos personales del trabajador accidentado
A97: Apellidos y nombre
A100: Sexo
A103: Número de afiliación a la Seguridad Social (NAF)
A105: Identificador de persona física (IPF)
A106: Tipo de documento
A107: 1 | B107: NIF (Número de Identificador Fiscal)
A108: 2 | B108: Pasaporte
A109: 6 | B109: NIE (Número de Identificación de Extranjero)
A114: Tipo de contrato
A115: Debe indicarse si el tipo de contrato del trabajador accidentado es indefinido o temporal.
A117: Datos descriptivos del accidente de trabajo sin baja
A119: Fecha del accidente
A120: Se debe indicar la fecha exacta en que se produjo el accidente de trabajo.
A122: Forma o contacto que ha producido la lesión
A123: Describe el modo en que la víctima ha resultado lesionada (la lesión puede ser tanto física como psicológica) por el agente material que ha provocado dicha lesión. Si hubiera varias formas o contactos, se debe registrar el que produzca la lesión más grave.
A126: Parte del cuerpo lesionada
A127: Debe indicarse la parte del cuerpo que ha recibido las lesiones indicadas en el campo descripción de la lesión.
A130: Descripción de la lesión
A131: Debe seleccionarse de entre las opciones disponibles la descripción más adecuada de acuerdo al diagnóstico emitido por el médico en el parte de baja médica.
A133: Pie de la RATSB
A136: Nombre y apellidos del emisor de la RATSB
A138: En calidad de
A139: Cargo o representación que ostenta el firmante.
A142: Lugar de emisión de la relación de accidentes sin baja
A145: Fecha de emisión de la relación de accidentes sin baja
A146: Este campo lo cumplimenta automáticamente el Sistema Delt@ en el momento de la firma por parte de la empresa.
A149: Fecha de aceptación por la Entidad Gestora o Colaboradora
A150: Este campo lo cumplimenta automáticamente el Sistema Delt@ en el momento de la firma de la aceptación por parte de la Entidad Gestora o Colaboradora.
A153: Cuadro de texto: 28 Provincia de la Autoridad Laboral
A154: Este campo lo cumplimenta automáticamente el Sistema Delt@ en función del lugar donde radica el centro de trabajo de los accidentados.
A157: Cuadro de texto: 29 Fecha de aceptación por la Autoridad Laboral
A158: Este campo lo cumplimenta automáticamente el Sistema Delt@ en el momento de la firma de la aceptación por parte de la Autoridad Laboral.
A161: Cuadro de texto: 30 Motivo – Causa de rechazo
